Workbook

Sheet User_Stories
A1: NEW User Story ID | B1: COMMENTS | C1: AS A <type of user> | D1: I WANT TO <perform some task> | E1: SO THAT I CAN <achieve some goal> | F1: Level 1 BCM | G1: Level 2 BCM | H1: Level 3 BCM | I1: BCM Level 1-2-3 | J1: Capability Model Definition
A2: 1 | C2: Examiner - Any | D2: Set up a new customer record | E2: Record data regarding customer contact information to associate all of a customer's DMV transactions - Process A | F2: Manage Customer Records | G2: Create New Record | H2: Capture Contact Information | I2: =TRIM(CONCATENATE(F2,"-",G2,"-",H2)) -> Manage Customer Records-Create New Record-Capture Contact Information | J2: =VLOOKUP(I2,'SADLS Business Capability Model'!$E$1:$F$299,2,FALSE) -> To create a new record DMV must collect standard contact information regarding the contact such as primary/secondary address, phone, email.
A3: =A2+1 -> 2 | C3: Adjudication Officer | D3: Set up a new customer record | E3: Record data regarding customer contact information to associate all of a customer's DMV transactions - Process B | F3: Manage Customer Records | G3: Create New Record | H3: Capture Contact Information | I3: =TRIM(CONCATENATE(F3,"-",G3,"-",H3)) -> Manage Customer Records-Create New Record-Capture Contact Information | J3: =VLOOKUP(I3,'SADLS Business Capability Model'!$E$1:$F$299,2,FALSE) -> To create a new record DMV must collect standard contact information regarding the contact such as primary/secondary address, phone, email.
A4: =A3+1 -> 3 | C4: Examiner - Any | D4: Collect customer's personal information | E4: Record information regarding a customer's personal characteristics such as height, hair color, weight, etc. so DMV can distinguish individual customers. | F4: Manage Customer Records | G4: Create New Record | H4: Capture Personal Information | I4: =TRIM(CONCATENATE(F4,"-",G4,"-",H4)) -> Manage Customer Records-Create New Record-Capture Personal Information | J4: =VLOOKUP(I4,'SADLS Business Capability Model'!$E$1:$F$299,2,FALSE) -> To create a new record DMV must collect personal information regarding the contact such as height, hair color, etc.
A5: 4 | C5: Examiner - Any | D5: Validate customer information | E5: Confirm the authenticity, accuracy and completeness of customer record information provided by the customer or external sources. | F5: Manage Customer Records | G5: Validate Customer Information | H5: Confirm Accuracy of Customer Information | I5: Manage Customer Records-Validate Customer Information-Confirm Accuracy of Customer Information | J5: =VLOOKUP(I5,'SADLS Business Capability Model'!$E$1:$F$299,2,FALSE) -> Confirm that the information entered into the system (regardless of who it was entered by) was typed accurately and meets DMV entry standards
A6: 5 | C6: Central Issuance Verification | D6: Record Legal Presence documentation submitted to the Examiner to verify legal presence | E6: Verify the information using the SAVE interface | F6: Manage Customer Records | G6: Validate Customer Information | H6: Confirm Accuracy of Customer Information | I6: Manage Customer Records-Validate Customer Information-Confirm Accuracy of Customer Information | J6: =VLOOKUP(I6,'SADLS Business Capability Model'!$E$1:$F$299,2,FALSE) -> Confirm that the information entered into the system (regardless of who it was entered by) was typed accurately and meets DMV entry standards
A7: 6 | C7: Traffic Records | D7: Add any missing information and update crash reports | E7: Provide correct crash report information | F7: Manage Customer Records | G7: Validate Customer Information | H7: Confirm Accuracy of Customer Information | I7: Manage Customer Records-Validate Customer Information-Confirm Accuracy of Customer Information | J7: =VLOOKUP(I7,'SADLS Business Capability Model'!$E$1:$F$299,2,FALSE) -> Confirm that the information entered into the system (regardless of who it was entered by) was typed accurately and meets DMV entry standards
A8: 7 | C8: Central Issuance Verification | D8: Verify the documentation given to the Examiner for legal presence via interface with SAVE | E8: Either Print the approval and renew the TDC/TIC or disapprove the issuance | F8: Manage Customer Records | G8: Validate Customer Information | H8: Confirm Accuracy of Customer Information | I8: Manage Customer Records-Validate Customer Information-Confirm Accuracy of Customer Information | J8: =VLOOKUP(I8,'SADLS Business Capability Model'!$E$1:$F$299,2,FALSE) -> Confirm that the information entered into the system (regardless of who it was entered by) was typed accurately and meets DMV entry standards
A9: 8 | C9: Examiner - Any | D9: Review customer documentation | E9: Verify the customer information was entered correctly | F9: Manage Customer Records | G9: Validate Customer Information | H9: Review Documentation for Authenticity | I9: Manage Customer Records-Validate Customer Information-Review Documentation for Authenticity | J9: =VLOOKUP(I9,'SADLS Business Capability Model'!$E$1:$F$299,2,FALSE) -> Review Documentation to verify that Customer information into the system was entered properly and accurately.
A10: 9 | C10: System | D10: Conduct quality assurance check of customer records | E10: Ensure customer addresses are entered correctly | F10: Manage Customer Records | G10: Validate Customer Information | H10: Conduct External Checks | I10: Manage Customer Records-Validate Customer Information-Conduct External Checks | J10: =VLOOKUP(I10,'SADLS Business Capability Model'!$E$1:$F$299,2,FALSE) -> Conduct any automated checks available to ensure information is entered correctly and accurately (e.g., Address validation, SSN, Validation of Lawful Status, and formatted properly)
A11: 10 | C11: System | D11: Conduct quality assurance check of customer records | E11: Ensure customer SSNs are entered correctly | F11: Manage Customer Records | G11: Validate Customer Information | H11: Conduct External Checks | I11: Manage Customer Records-Validate Customer Information-Conduct External Checks | J11: =VLOOKUP(I11,'SADLS Business Capability Model'!$E$1:$F$299,2,FALSE) -> Conduct any automated checks available to ensure information is entered correctly and accurately (e.g., Address validation, SSN, Validation of Lawful Status, and formatted properly)
A12: 11 | C12: System | D12: Conduct quality assurance check of customer records | E12: Ensure customer validation of lawful status | F12: Manage Customer Records | G12: Validate Customer Information | H12: Conduct External Checks | I12: Manage Customer Records-Validate Customer Information-Conduct External Checks | J12: =VLOOKUP(I12,'SADLS Business Capability Model'!$E$1:$F$299,2,FALSE) -> Conduct any automated checks available to ensure information is entered correctly and accurately (e.g., Address validation, SSN, Validation of Lawful Status, and formatted properly)
A13: 12 | C13: System | D13: Conduct quality assurance check of customer records | E13: Ensure customer information is entered correctly and formatted properly. | F13: Manage Customer Records | G13: Validate Customer Information | H13: Conduct External Checks | I13: Manage Customer Records-Validate Customer Information-Conduct External Checks | J13: =VLOOKUP(I13,'SADLS Business Capability Model'!$E$1:$F$299,2,FALSE) -> Conduct any automated checks available to ensure information is entered correctly and accurately (e.g., Address validation, SSN, Validation of Lawful Status, and formatted properly)
A14: 13 | C14: Examiner - Any | D14: Initiate a customer merge request | E14: Flag/Identify records that should be placed on the merge report and researched further | F14: Manage Customer Records | G14: Manage Duplicate Records | H14: Identify Duplicate Record | I14: Manage Customer Records-Manage Duplicate Records-Identify Duplicate Record | J14: =VLOOKUP(I14,'SADLS Business Capability Model'!$E$1:$F$299,2,FALSE) -> Run standard reports using name, address, birthdate and other identifying information in the system to find and eliminate a duplicate record
A15: 14 | C15: System | D15: Generate Merge Report | E15: Generate a list of records that an adjudication officer should evaluate for potentially merging | F15: Manage Customer Records | G15: Manage Duplicate Records | H15: Identify Duplicate Record | I15: Manage Customer Records-Manage Duplicate Records-Identify Duplicate Record | J15: =VLOOKUP(I15,'SADLS Business Capability Model'!$E$1:$F$299,2,FALSE) -> Run standard reports using name, address, birthdate and other identifying information in the system to find and eliminate a duplicate record
A16: 15 | C16: Adjudication Officer | D16: Review the merge report that was generated for me | E16: Identify source and target records prior to merging records | F16: Manage Customer Records | G16: Manage Duplicate Records | H16: Identify Target Record | I16: Manage Customer Records-Manage Duplicate Records-Identify Target Record | J16: =VLOOKUP(I16,'SADLS Business Capability Model'!$E$1:$F$299,2,FALSE) -> Run standard search or process to find target record where information should be consolidated
A17: 16 | C17: Adjudication Officer | D17: Review the merge report that was generated for me | E17: Merge records that have been determined to be the same person | F17: Manage Customer Records | G17: Manage Duplicate Records | H17: Merge Records | I17: Manage Customer Records-Manage Duplicate Records-Merge Records | J17: =VLOOKUP(I17,'SADLS Business Capability Model'!$E$1:$F$299,2,FALSE) -> Merge information from duplicate record to target record based on business rules and user action. (When merge is completed the record is removed from the system)
A18: 17 | C18: System | D18: Merge records that have been determined to be one and same person | E18: Review and correct the records as mandated by law | F18: Manage Customer Records | G18: Manage Duplicate Records | H18: Merge Records | I18: Manage Customer Records-Manage Duplicate Records-Merge Records | J18: =VLOOKUP(I18,'SADLS Business Capability Model'!$E$1:$F$299,2,FALSE) -> Merge information from duplicate record to target record based on business rules and user action. (When merge is completed the record is removed from the system)
A19: 18 | C19: System | D19: Inactivate the Source Record | E19: Remove the SADLS record from the SADLS User Interface but keep record intact on the back-end | F19: Manage Customer Records | G19: Manage Duplicate Records | H19: Inactivate Duplicate Record | I19: Manage Customer Records-Manage Duplicate Records-Inactivate Duplicate Record | J19: =VLOOKUP(I19,'SADLS Business Capability Model'!$E$1:$F$299,2,FALSE) -> Inactivate or remove the duplicate record after merge is completed. Once the record is removed it should no longer be searchable using a standard user search screen.
A20: 19 | C20: Adjudication Officer | D20: Add a Stop Issuance to the record | E20: Assure a DL will not be issued during the time the driving record is being corrected | F20: Manage Credentials | G20: Disable Record | H20: Block Record | I20: Manage Credentials-Disable Record-Block Record | J20: =VLOOKUP(I20,'SADLS Business Capability Model'!$E$1:$F$299,2,FALSE) -> Allow system user to block/stop to an account when it is determined that the user should not be allowed to immediately return the account to active.
A21: 20 | C21: Adjudication Officer | D21: Review Merge Indicators | E21: Determine if records can be merged or should be transferred | F21: Manage Customer Records | G21: Manage Duplicate Records | H21: Merge Records | I21: Manage Customer Records-Manage Duplicate Records-Merge Records | J21: =VLOOKUP(I21,'SADLS Business Capability Model'!$E$1:$F$299,2,FALSE) -> Merge information from duplicate record to target record based on business rules and user action. (When merge is completed the record is removed from the system)
A22: 21 | C22: Adjudication Officer | D22: Transfer convictions, suspensions, issuance data, etc that has been determined to belong to another individual and must be transferred to other record | E22: Review and correct the records as mandated by law | F22: Manage Customer Records | G22: Manage Duplicate Records | H22: Transfer Record Data | I22: Manage Customer Records-Manage Duplicate Records-Transfer Record Data | J22: =VLOOKUP(I22,'SADLS Business Capability Model'!$E$1:$F$299,2,FALSE) -> Transferring certain record information from one record to another while keeping both records intact within the system
A23: 22 | C23: Adjudication Officer | D23: Access customer record | E23: Place a stop issuance on the record data was transferred from | F23: Manage Credentials | G23: Disable Record | H23: Block Record | I23: Manage Credentials-Disable Record-Block Record | J23: =VLOOKUP(I23,'SADLS Business Capability Model'!$E$1:$F$299,2,FALSE) -> Allow system user to block/stop to an account when it is determined that the user should not be allowed to immediately return the account to active.
A24: 23 | C24: Adjudication Officer | D24: Access customer record | E24: Add comments on primary and secondary records | F24: Manage Customer Records | G24: Maintain Records | H24: Update Contact, Personal, Driver, and Other Information | I24: Manage Customer Records-Maintain Records-Update Contact, Personal, Driver, and Other Information | J24: =VLOOKUP(I24,'SADLS Business Capability Model'!$E$1:$F$299,2,FALSE) -> Allow user with appropriate permissions to update standard information available on a motor vehicle record
A25: 24 | C25: System | D25: Transfer convictions, issuance data, etc that has been determined to belong to another individual and must be transferred to other record | E25: Review and correct the records as mandated by law | F25: Manage Customer Records | G25: Manage Duplicate Records | H25: Transfer Record Data | I25: Manage Customer Records-Manage Duplicate Records-Transfer Record Data | J25: =VLOOKUP(I25,'SADLS Business Capability Model'!$E$1:$F$299,2,FALSE) -> Transferring certain record information from one record to another while keeping both records intact within the system
A26: 25 | C26: Call Center | D26: View customer record | E26: Communicate and report on Contact, personal, driver, and other information in a correct manner | F26: Manage Customer Records | G26: Maintain Records | H26: View Contact, Personal, Driver, and Other Information | I26: Manage Customer Records-Maintain Records-View Contact, Personal, Driver, and Other Information | J26: =VLOOKUP(I26,'SADLS Business Capability Model'!$E$1:$F$299,2,FALSE) -> Allow user with appropriate permissions to view standard information available on a motor vehicle record
A27: 26 | C27: Central Issuance Quality Assurance | D27: View customer record | E27: Communicate and report on Contact, personal, driver, and other information in a correct manner | F27: Manage Customer Records | G27: Maintain Records | H27: View Contact, Personal, Driver, and Other Information | I27: Manage Customer Records-Maintain Records-View Contact, Personal, Driver, and Other Information | J27: =VLOOKUP(I27,'SADLS Business Capability Model'!$E$1:$F$299,2,FALSE) -> Allow user with appropriate permissions to view standard information available on a motor vehicle record
A28: 27 | C28: Crash Unit | D28: View customer record | E28: Communicate and report on Contact, personal, driver, and other information in a correct manner | F28: Manage Customer Records | G28: Maintain Records | H28: View Contact, Personal, Driver, and Other Information | I28: Manage Customer Records-Maintain Records-View Contact, Personal, Driver, and Other Information | J28: =VLOOKUP(I28,'SADLS Business Capability Model'!$E$1:$F$299,2,FALSE) -> Allow user with appropriate permissions to view standard information available on a motor vehicle record
A29: 28 | C29: Data Capture Unit | D29: View customer record | E29: Communicate and report on Contact, personal, driver, and other information in a correct manner | F29: Manage Customer Records | G29: Maintain Records | H29: View Contact, Personal, Driver, and Other Information | I29: Manage Customer Records-Maintain Records-View Contact, Personal, Driver, and Other Information | J29: =VLOOKUP(I29,'SADLS Business Capability Model'!$E$1:$F$299,2,FALSE) -> Allow user with appropriate permissions to view standard information available on a motor vehicle record
A30: 29 | C30: DMV - Raleigh | D30: View customer record | E30: Communicate and report on Contact, personal, driver, and other information in a correct manner | F30: Manage Customer Records | G30: Maintain Records | H30: View Contact, Personal, Driver, and Other Information | I30: Manage Customer Records-Maintain Records-View Contact, Personal, Driver, and Other Information | J30: =VLOOKUP(I30,'SADLS Business Capability Model'!$E$1:$F$299,2,FALSE) -> Allow user with appropriate permissions to view standard information available on a motor vehicle record
A31: 30 | C31: DMV Medical Unit | D31: View customer record | E31: Communicate and report on Contact, personal, driver, and other information in a correct manner | F31: Manage Customer Records | G31: Maintain Records | H31: View Contact, Personal, Driver, and Other Information | I31: Manage Customer Records-Maintain Records-View Contact, Personal, Driver, and Other Information | J31: =VLOOKUP(I31,'SADLS Business Capability Model'!$E$1:$F$299,2,FALSE) -> Allow user with appropriate permissions to view standard information available on a motor vehicle record
A32: 31 | C32: Examiner - Any | D32: View customer record | E32: Communicate and report on Contact, personal, driver, and other information in a correct manner | F32: Manage Customer Records | G32: Maintain Records | H32: View Contact, Personal, Driver, and Other Information | I32: Manage Customer Records-Maintain Records-View Contact, Personal, Driver, and Other Information | J32: =VLOOKUP(I32,'SADLS Business Capability Model'!$E$1:$F$299,2,FALSE) -> Allow user with appropriate permissions to view standard information available on a motor vehicle record
A33: 32 | C33: Hearing Officer | D33: View customer record | E33: Communicate and report on Contact, personal, driver, and other information in a correct manner | F33: Manage Customer Records | G33: Maintain Records | H33: View Contact, Personal, Driver, and Other Information | I33: Manage Customer Records-Maintain Records-View Contact, Personal, Driver, and Other Information | J33: =VLOOKUP(I33,'SADLS Business Capability Model'!$E$1:$F$299,2,FALSE) -> Allow user with appropriate permissions to view standard information available on a motor vehicle record
A34: 33 | C34: Ignition Interlock Unit | D34: View customer record | E34: Communicate and report on Contact, personal, driver, and other information in a correct manner | F34: Manage Customer Records | G34: Maintain Records | H34: View Contact, Personal, Driver, and Other Information | I34: Manage Customer Records-Maintain Records-View Contact, Personal, Driver, and Other Information | J34: =VLOOKUP(I34,'SADLS Business Capability Model'!$E$1:$F$299,2,FALSE) -> Allow user with appropriate permissions to view standard information available on a motor vehicle record
A35: 34 | C35: Call Center | D35: Update Customer Record | E35: Update contact, personal, driver, and other information based on information received | F35: Manage Customer Records | G35: Maintain Records | H35: Update Contact, Personal, Driver, and Other Information | I35: Manage Customer Records-Maintain Records-Update Contact, Personal, Driver, and Other Information | J35: =VLOOKUP(I35,'SADLS Business Capability Model'!$E$1:$F$299,2,FALSE) -> Allow user with appropriate permissions to update standard information available on a motor vehicle record
A36: 35 | C36: Crash Unit | D36: Update Customer Record | E36: Update contact, personal, driver, and other information based on information received | F36: Manage Customer Records | G36: Maintain Records | H36: Update Contact, Personal, Driver, and Other Information | I36: Manage Customer Records-Maintain Records-Update Contact, Personal, Driver, and Other Information | J36: =VLOOKUP(I36,'SADLS Business Capability Model'!$E$1:$F$299,2,FALSE) -> Allow user with appropriate permissions to update standard information available on a motor vehicle record
A37: 36 | C37: Data Capture Unit | D37: Update Customer Record | E37: Update contact, personal, driver, and other information based on information received | F37: Manage Customer Records | G37: Maintain Records | H37: Update Contact, Personal, Driver, and Other Information | I37: Manage Customer Records-Maintain Records-Update Contact, Personal, Driver, and Other Information | J37: =VLOOKUP(I37,'SADLS Business Capability Model'!$E$1:$F$299,2,FALSE) -> Allow user with appropriate permissions to update standard information available on a motor vehicle record
A38: 37 | C38: DMV - Raleigh | D38: Update Customer Record | E38: Update contact, personal, driver, and other information based on information received | F38: Manage Customer Records | G38: Maintain Records | H38: Update Contact, Personal, Driver, and Other Information | I38: Manage Customer Records-Maintain Records-Update Contact, Personal, Driver, and Other Information | J38: =VLOOKUP(I38,'SADLS Business Capability Model'!$E$1:$F$299,2,FALSE) -> Allow user with appropriate permissions to update standard information available on a motor vehicle record
A39: 38 | C39: DMV Medical Unit | D39: Update Customer Record | E39: Update contact, personal, driver, and other information based on information received | F39: Manage Customer Records | G39: Maintain Records | H39: Update Contact, Personal, Driver, and Other Information | I39: Manage Customer Records-Maintain Records-Update Contact, Personal, Driver, and Other Information | J39: =VLOOKUP(I39,'SADLS Business Capability Model'!$E$1:$F$299,2,FALSE) -> Allow user with appropriate permissions to update standard information available on a motor vehicle record
A40: 39 | C40: Examiner - Any | D40: Update Customer Record | E40: Update contact, personal, driver, and other information based on information received | F40: Manage Customer Records | G40: Maintain Records | H40: Update Contact, Personal, Driver, and Other Information | I40: Manage Customer Records-Maintain Records-Update Contact, Personal, Driver, and Other Information | J40: =VLOOKUP(I40,'SADLS Business Capability Model'!$E$1:$F$299,2,FALSE) -> Allow user with appropriate permissions to update standard information available on a motor vehicle record
A41: 40 | C41: Hearing Officer | D41: Update Customer Record | E41: Update contact, personal, driver, and other information based on information received | F41: Manage Customer Records | G41: Maintain Records | H41: Update Contact, Personal, Driver, and Other Information | I41: Manage Customer Records-Maintain Records-Update Contact, Personal, Driver, and Other Information | J41: =VLOOKUP(I41,'SADLS Business Capability Model'!$E$1:$F$299,2,FALSE) -> Allow user with appropriate permissions to update standard information available on a motor vehicle record
A42: 41 | C42: System Administrator | D42: Update Customer Record | E42: Update contact, personal, driver, and other information based on information received | F42: Manage Customer Records | G42: Maintain Records | H42: Update Contact, Personal, Driver, and Other Information | I42: Manage Customer Records-Maintain Records-Update Contact, Personal, Driver, and Other Information | J42: =VLOOKUP(I42,'SADLS Business Capability Model'!$E$1:$F$299,2,FALSE) -> Allow user with appropriate permissions to update standard information available on a motor vehicle record
A43: 42 | C43: Adjudication Officer | D43: Update Customer Record | E43: Update contact, personal, driver, and other information based on information received | F43: Manage Customer Records | G43: Maintain Records | H43: Update Contact, Personal, Driver, and Other Information | I43: Manage Customer Records-Maintain Records-Update Contact, Personal, Driver, and Other Information | J43: =VLOOKUP(I43,'SADLS Business Capability Model'!$E$1:$F$299,2,FALSE) -> Allow user with appropriate permissions to update standard information available on a motor vehicle record
A44: 43 | C44: Administrative Support Unit | D44: Update Customer Record | E44: Update contact, personal, driver, and other information based on information received | F44: Manage Customer Records | G44: Maintain Records | H44: Update Contact, Personal, Driver, and Other Information | I44: Manage Customer Records-Maintain Records-Update Contact, Personal, Driver, and Other Information | J44: =VLOOKUP(I44,'SADLS Business Capability Model'!$E$1:$F$299,2,FALSE) -> Allow user with appropriate permissions to update standard information available on a motor vehicle record
A45: 44 | C45: CDL Med CERT | D45: Update Customer Record | E45: Update contact, personal, driver, and other information based on information received | F45: Manage Customer Records | G45: Maintain Records | H45: Update Contact, Personal, Driver, and Other Information | I45: Manage Customer Records-Maintain Records-Update Contact, Personal, Driver, and Other Information | J45: =VLOOKUP(I45,'SADLS Business Capability Model'!$E$1:$F$299,2,FALSE) -> Allow user with appropriate permissions to update standard information available on a motor vehicle record
A46: 45 | C46: CDL Unit | D46: Update Customer Record | E46: Update contact, personal, driver, and other information based on information received | F46: Manage Customer Records | G46: Maintain Records | H46: Update Contact, Personal, Driver, and Other Information | I46: Manage Customer Records-Maintain Records-Update Contact, Personal, Driver, and Other Information | J46: =VLOOKUP(I46,'SADLS Business Capability Model'!$E$1:$F$299,2,FALSE) -> Allow user with appropriate permissions to update standard information available on a motor vehicle record
A47: 46 | C47: Central Issuance Quality Assurance | D47: Update Customer Record | E47: Update contact, personal, driver, and other information based on information received | F47: Manage Customer Records | G47: Maintain Records | H47: Update Contact, Personal, Driver, and Other Information | I47: Manage Customer Records-Maintain Records-Update Contact, Personal, Driver, and Other Information | J47: =VLOOKUP(I47,'SADLS Business Capability Model'!$E$1:$F$299,2,FALSE) -> Allow user with appropriate permissions to update standard information available on a motor vehicle record
A48: 47 | C48: Fraud Unit | D48: Update Customer Record | E48: Update contact, personal, driver, and other information based on information received | F48: Manage Customer Records | G48: Maintain Records | H48: Update Contact, Personal, Driver, and Other Information | I48: Manage Customer Records-Maintain Records-Update Contact, Personal, Driver, and Other Information | J48: =VLOOKUP(I48,'SADLS Business Capability Model'!$E$1:$F$299,2,FALSE) -> Allow user with appropriate permissions to update standard information available on a motor vehicle record
A49: 48 | C49: Help Desk | D49: Update Customer Record | E49: Update contact, personal, driver, and other information based on information received | F49: Manage Customer Records | G49: Maintain Records | H49: Update Contact, Personal, Driver, and Other Information | I49: Manage Customer Records-Maintain Records-Update Contact, Personal, Driver, and Other Information | J49: =VLOOKUP(I49,'SADLS Business Capability Model'!$E$1:$F$299,2,FALSE) -> Allow user with appropriate permissions to update standard information available on a motor vehicle record
A50: 49 | C50: Ignition Interlock Unit | D50: Update Customer Record | E50: Update contact, personal, driver, and other information based on information received | F50: Manage Customer Records | G50: Maintain Records | H50: Update Contact, Personal, Driver, and Other Information | I50: Manage Customer Records-Maintain Records-Update Contact, Personal, Driver, and Other Information | J50: =VLOOKUP(I50,'SADLS Business Capability Model'!$E$1:$F$299,2,FALSE) -> Allow user with appropriate permissions to update standard information available on a motor vehicle record
A51: 50 | C51: Safety & Responsibility Unit | D51: Update Customer Record | E51: Update contact, personal, driver, and other information based on information received | F51: Manage Customer Records | G51: Maintain Records | H51: Update Contact, Personal, Driver, and Other Information | I51: Manage Customer Records-Maintain Records-Update Contact, Personal, Driver, and Other Information | J51: =VLOOKUP(I51,'SADLS Business Capability Model'!$E$1:$F$299,2,FALSE) -> Allow user with appropriate permissions to update standard information available on a motor vehicle record
A52: 51 | C52: SR Hearing Officer | D52: Update Customer Record | E52: Update contact, personal, driver, and other information based on information received | F52: Manage Customer Records | G52: Maintain Records | H52: Update Contact, Personal, Driver, and Other Information | I52: Manage Customer Records-Maintain Records-Update Contact, Personal, Driver, and Other Information | J52: =VLOOKUP(I52,'SADLS Business Capability Model'!$E$1:$F$299,2,FALSE) -> Allow user with appropriate permissions to update standard information available on a motor vehicle record
A53: 52 | C53: School Bus and Traffic Safety | D53: Update Customer Record | E53: Update contact, personal, driver, and other information based on information received | F53: Manage Customer Records | G53: Maintain Records | H53: Update Contact, Personal, Driver, and Other Information | I53: Manage Customer Records-Maintain Records-Update Contact, Personal, Driver, and Other Information | J53: =VLOOKUP(I53,'SADLS Business Capability Model'!$E$1:$F$299,2,FALSE) -> Allow user with appropriate permissions to update standard information available on a motor vehicle record
A54: 53 | C54: System | D54: Update Customer Record | E54: Update contact, personal, driver, and other information based on information received | F54: Manage Customer Records | G54: Maintain Records | H54: Update Contact, Personal, Driver, and Other Information | I54: Manage Customer Records-Maintain Records-Update Contact, Personal, Driver, and Other Information | J54: =VLOOKUP(I54,'SADLS Business Capability Model'!$E$1:$F$299,2,FALSE) -> Allow user with appropriate permissions to update standard information available on a motor vehicle record
A55: 54 | C55: Adjudication Officer | D55: Access customer record | E55: Select the conviction to be re-adjudicated | F55: Facilitate Adjudications | G55: Add Conviction to Driver Records | H55: Update Record | I55: Facilitate Adjudications-Add Conviction to Driver Records-Update Record | J55: =VLOOKUP(I55,'SADLS Business Capability Model'!$E$1:$F$299,2,FALSE) -> Update record during driver suspension if another driving offense is committed during driver suspension. Allow user to record update manually if necessary
A56: 55 | C56: Adjudication Officer | D56: Access customer record | E56: Confirm the deleted conviction is now reflecting a pending status for overnight batch run | F56: Facilitate Adjudications | G56: Add Conviction to Driver Records | H56: Update Record | I56: Facilitate Adjudications-Add Conviction to Driver Records-Update Record | J56: =VLOOKUP(I56,'SADLS Business Capability Model'!$E$1:$F$299,2,FALSE) -> Update record during driver suspension if another driving offense is committed during driver suspension. Allow user to record update manually if necessary
A57: 56 | C57: Adjudication Officer | D57: Access customer record | E57: Confirm the conviction was deleted | F57: Facilitate Adjudications | G57: Add Conviction to Driver Records | H57: Update Record | I57: Facilitate Adjudications-Add Conviction to Driver Records-Update Record | J57: =VLOOKUP(I57,'SADLS Business Capability Model'!$E$1:$F$299,2,FALSE) -> Update record during driver suspension if another driving offense is committed during driver suspension. Allow user to record update manually if necessary
A58: 57 | C58: Examiner - Any | D58: Record Collection of Valid Social Security Card | E58: Use the recorded information later to determine how identity was verified | F58: Verify Identities | G58: Collect Customer Documents | H58: Record Verification of Social Security Card | I58: Verify Identities -Collect Customer Documents-Record Verification of Social Security Card | J58: =VLOOKUP(I58,'SADLS Business Capability Model'!$E$1:$F$299,2,FALSE) -> Proving the individual has a Social Security Number is a step in verifying identity. Collecting a Social Security Card is one document that will confirm. Alternate documents include a 1099 Tax Form, W-2 Form with name and Full SSN, Payroll record with name and FULL SSN, DD-214 (Not acceptable for Real ID), Social Security Document (Not Acceptable for Real ID), Military record reflecting SSN (Not acceptable for Real ID), or Medicaid or Medicare card reflecting SSN (Not acceptable for Real ID)
A59: 58 | C59: Examiner - Any | D59: Record Collection of Valid Passport | E59: Use the recorded information later to determine how identity was verified | F59: Verify Identities | G59: Collect Customer Documents | H59: Record Verification of Valid Passport | I59: Verify Identities -Collect Customer Documents-Record Verification of Valid Passport | J59: =VLOOKUP(I59,'SADLS Business Capability Model'!$E$1:$F$299,2,FALSE) -> Collecting a valid and unexpired passport is acceptable to prove age and identity. (Acceptable for Real ID)
A60: 59 | C60: Examiner - Any | D60: Record Collection of Valid Unexpired Real ID | E60: Use the recorded information later to determine how identity was verified | F60: Verify Identities | G60: Collect Customer Documents | H60: Record Verification of Valid Unexpired Real Id | I60: Verify Identities -Collect Customer Documents-Record Verification of Valid Unexpired Real Id | J60: =VLOOKUP(I60,'SADLS Business Capability Model'!$E$1:$F$299,2,FALSE) -> Collecting a valid and unexpired REAL ID is acceptable to prove age and identity.
A61: 60 | C61: Examiner - Any | D61: Record Collection of Motor Vehicle Drivers Card | E61: Use the recorded information later to determine how identity was verified | F61: Verify Identities | G61: Collect Customer Documents | H61: Record Verification of Motor Vehicle Drivers Card | I61: Verify Identities -Collect Customer Documents-Record Verification of Motor Vehicle Drivers Card | J61: =VLOOKUP(I61,'SADLS Business Capability Model'!$E$1:$F$299,2,FALSE) -> Collecting a certified or non-certified NC Motor Vehicle Record or Certified Out of State Motor vehicle record is acceptable to prove age and identity but not acceptable for REAL ID.
A62: 61 | C62: Examiner - Any | D62: Record Verification of Certified Birth Certificate | E62: Use the recorded information later to determine how identity was verified | F62: Verify Identities | G62: Collect Customer Documents | H62: Record Verification of Certified Birth Certificate | I62: Verify Identities -Collect Customer Documents-Record Verification of Certified Birth Certificate | J62: =VLOOKUP(I62,'SADLS Business Capability Model'!$E$1:$F$299,2,FALSE) -> Collecting a Birth Certificate meets the requirements proving age and identity and is acceptable for Real ID.
A63: 62 | C63: Examiner - Any | D63: Record Verification of U.S. Consular Report | E63: Use the recorded information later to determine how identity was verified | F63: Verify Identities | G63: Collect Customer Documents | H63: Record Verification of U.S. Consular Report | I63: Verify Identities -Collect Customer Documents-Record Verification of U.S. Consular Report | J63: =VLOOKUP(I63,'SADLS Business Capability Model'!$E$1:$F$299,2,FALSE) -> Collecting a U.S. Consular Report meets the requirements proving age and identity and is acceptable for Real ID.
A64: 63 | C64: Examiner - Any | D64: Record Verficiation of North Carolina Limited Driving Privilege | E64: Use the recorded information later to determine how identity was verified | F64: Verify Identities | G64: Collect Customer Documents | H64: Record Verification of North Carolina Limited Driving Privilege | I64: Verify Identities -Collect Customer Documents-Record Verification of North Carolina Limited Driving Privilege | J64: =VLOOKUP(I64,'SADLS Business Capability Model'!$E$1:$F$299,2,FALSE) -> Collecting a North Carolina Limited Driving privilege issued by a NC Court and not expired for more than one year can prove age and identity but is not acceptable for Real ID
A65: 64 | C65: Examiner - Any | D65: Record Verification of Other Documents Validating Identity | E65: Use the recorded information later to determine how identity was verified | F65: Verify Identities | G65: Collect Customer Documents | H65: Record Verification of Other Documents Validating Identity | I65: Verify Identities -Collect Customer Documents-Record Verification of Other Documents Validating Identity | J65: =VLOOKUP(I65,'SADLS Business Capability Model'!$E$1:$F$299,2,FALSE) -> Collecting other valid documents are acceptable to prove age and identity. (e.g., unexpired documents issued by the U.S. Dept of Homeland Security, U.S. Citizenship and Immigration Services) but are not acceptable for Real ID.
A66: 65 | C66: System | D66: Validate the address entered by the user | E66: Ensure the address is valid and complies with Post Office standards | F66: Verify Identities | G66: Validate NC Residency | H66: Validate Customer Address | I66: Verify Identities -Validate NC Residency-Validate Customer Address | J66: =VLOOKUP(I66,'SADLS Business Capability Model'!$E$1:$F$299,2,FALSE) -> Utilize the Finalist interface to validate and format the address in a Standard Format. If address is not found, user has the opportunity to override and continue address entry
A67: 66 | C67: Examiner - Any | D67: Override electronic validation of an address entered when the entire address is not found or can not be confirmed | E67: Ensure that a correct address can be entered by the user. | F67: Verify Identities | G67: Validate NC Residency | H67: Validate Customer Address | I67: Verify Identities -Validate NC Residency-Validate Customer Address | J67: =VLOOKUP(I67,'SADLS Business Capability Model'!$E$1:$F$299,2,FALSE) -> Utilize the Finalist interface to validate and format the address in a Standard Format. If address is not found, user has the opportunity to override and continue address entry
A68: =A67+1 -> 67 | C68: Adjudication Officer | D68: Override electronic validation of an address entered when the entire address is not found or can not be confirmed | E68: Ensure that a correct address can be entered by the user. | F68: Verify Identities | G68: Validate NC Residency | H68: Validate Customer Address | I68: Verify Identities -Validate NC Residency-Validate Customer Address | J68: =VLOOKUP(I68,'SADLS Business Capability Model'!$E$1:$F$299,2,FALSE) -> Utilize the Finalist interface to validate and format the address in a Standard Format. If address is not found, user has the opportunity to override and continue address entry
A69: 68 | C69: Ignition Interlock Unit | D69: Override electronic validation of an address entered when the entire address is not found or can not be confirmed | E69: Ensure that a correct address can be entered by the user. | F69: Verify Identities | G69: Validate NC Residency | H69: Validate Customer Address | I69: Verify Identities -Validate NC Residency-Validate Customer Address | J69: =VLOOKUP(I69,'SADLS Business Capability Model'!$E$1:$F$299,2,FALSE) -> Utilize the Finalist interface to validate and format the address in a Standard Format. If address is not found, user has the opportunity to override and continue address entry
A70: 69 | C70: Military Internet Unit | D70: Override electronic validation of an address entered when the entire address is not found or can not be confirmed | E70: Ensure that a correct address can be entered by the user. | F70: Verify Identities | G70: Validate NC Residency | H70: Validate Customer Address | I70: Verify Identities -Validate NC Residency-Validate Customer Address | J70: =VLOOKUP(I70,'SADLS Business Capability Model'!$E$1:$F$299,2,FALSE) -> Utilize the Finalist interface to validate and format the address in a Standard Format. If address is not found, user has the opportunity to override and continue address entry
A71: 70 | C71: Examiner - Any | D71: Override electronic validation of part of an address (e.g., Zip Code) | E71: Ensure that the correct address can still be entered when part of the address is validated incorrectly. | F71: Verify Identities | G71: Validate NC Residency | H71: Validate Customer Address | I71: Verify Identities -Validate NC Residency-Validate Customer Address | J71: =VLOOKUP(I71,'SADLS Business Capability Model'!$E$1:$F$299,2,FALSE) -> Utilize the Finalist interface to validate and format the address in a Standard Format. If address is not found, user has the opportunity to override and continue address entry
A72: 71 | C72: Adjudication Officer | D72: Override electronic validation of part of an address (e.g., Zip Code) | E72: Ensure that the correct address can still be entered when part of the address is validated incorrectly. | F72: Verify Identities | G72: Validate NC Residency | H72: Validate Customer Address | I72: Verify Identities -Validate NC Residency-Validate Customer Address | J72: =VLOOKUP(I72,'SADLS Business Capability Model'!$E$1:$F$299,2,FALSE) -> Utilize the Finalist interface to validate and format the address in a Standard Format. If address is not found, user has the opportunity to override and continue address entry
A73: 72 | C73: Ignition Interlock Unit | D73: Override electronic validation of part of an address (e.g., Zip Code) | E73: Ensure that the correct address can still be entered when part of the address is validated incorrectly. | F73: Verify Identities | G73: Validate NC Residency | H73: Validate Customer Address | I73: Verify Identities -Validate NC Residency-Validate Customer Address | J73: =VLOOKUP(I73,'SADLS Business Capability Model'!$E$1:$F$299,2,FALSE) -> Utilize the Finalist interface to validate and format the address in a Standard Format. If address is not found, user has the opportunity to override and continue address entry
A74: 73 | C74: Military Internet Unit | D74: Override electronic validation of part of an address (e.g., Zip Code) | E74: Ensure that the correct address can still be entered when part of the address is validated incorrectly. | F74: Verify Identities | G74: Validate NC Residency | H74: Validate Customer Address | I74: Verify Identities -Validate NC Residency-Validate Customer Address | J74: =VLOOKUP(I74,'SADLS Business Capability Model'!$E$1:$F$299,2,FALSE) -> Utilize the Finalist interface to validate and format the address in a Standard Format. If address is not found, user has the opportunity to override and continue address entry
A75: 74 | C75: Central Issuance Quality Assurance | D75: Update the record when the Driver's License issuance is returned as ‘undeliverable’ | E75: Update credential if possible and notify customer | F75: Verify Identities | G75: Validate NC Residency | H75: Validate Customer Address | I75: Verify Identities -Validate NC Residency-Validate Customer Address | J75: =VLOOKUP(I75,'SADLS Business Capability Model'!$E$1:$F$299,2,FALSE) -> Utilize the Finalist interface to validate and format the address in a Standard Format. If address is not found, user has the opportunity to override and continue address entry
A76: 75 | C76: Central Issuance Quality Assurance | D76: Review report of out of state customers who were not eligible to get the NC license recently issued | E76: Cancel the recent NC issuance and notify the customer | F76: Verify Identities | G76: Validate NC Residency | H76: Validate Customer Address | I76: Verify Identities -Validate NC Residency-Validate Customer Address | J76: =VLOOKUP(I76,'SADLS Business Capability Model'!$E$1:$F$299,2,FALSE) -> Utilize the Finalist interface to validate and format the address in a Standard Format. If address is not found, user has the opportunity to override and continue address entry
A77: 76 | C77: Examiner - Any | D77: Record that the Consular Report of Birth Abroad was received | E77: Successfully transmit the information to United States Citizen and Immigration Services (USCIS) using the SAVE (Systematic Alient Verification for Entitlements) program interface | F77: Verify Identities | G77: Validate Lawful Status | H77: Validate Consular Report of Birth Abroad | I77: Verify Identities -Validate Lawful Status-Validate Consular Report of Birth Abroad | J77: =VLOOKUP(I77,'SADLS Business Capability Model'!$E$1:$F$299,2,FALSE) -> Validate lawful status for those that are not US Citizens by reviewing a Consular Report of Birth Abroad. (Also valid for REAL ID)
A78: 77 | C78: Examiner - Any | D78: Record that a copy of the Permanent Resident Card was Received | E78: Successfully transmit the information to USCIS using the SAVE (Systematic Alient Verification for Entitlements) program interface | F78: Verify Identities | G78: Validate Lawful Status | H78: Validate Permanent Resident Card | I78: Verify Identities -Validate Lawful Status-Validate Permanent Resident Card | J78: =VLOOKUP(I78,'SADLS Business Capability Model'!$E$1:$F$299,2,FALSE) -> Validate lawful status for those that are not US Citizens by reviewing a valid, unexpired Permanent Resident Card. (Acceptable for REAL ID)
A79: 78 | C79: Examiner - Any | D79: Record that a copy of the Employment Authorization Document was received | E79: Successfully transmit the information to USCIS using the SAVE (Systematic Alient Verification for Entitlements) program interface | F79: Verify Identities | G79: Validate Lawful Status | H79: Validate Employment Authorization Document | I79: Verify Identities-Validate Lawful Status-Validate Employment Authorization Document | J79: =VLOOKUP(I79,'SADLS Business Capability Model'!$E$1:$F$299,2,FALSE) -> Validate lawful status for those that are not US Citizens by reviewing a valid active employment authorization document. (Acceptable for REAL ID)
A80: 79 | C80: Examiner - Any | D80: Record that other Acceptable documentation validating lawful status was received | E80: Successfully transmit the information to USCIS using the SAVE (Systematic Alient Verification for Entitlements) program interface | F80: Verify Identities | G80: Validate Lawful Status | H80: Validate Other Acceptable Documentation | I80: Verify Identities-Validate Lawful Status-Validate Other Acceptable Documentation | J80: =VLOOKUP(I80,'SADLS Business Capability Model'!$E$1:$F$299,2,FALSE) -> Validate lawful status for those that are not US Citizens by reviewing other acceptable documentation such as a Valid unexpired foreign passport accompanied by a valid, unexpired U.S. visa and I-94 Arrival/Departure Record Report (Acceptable for REAL ID), Form N-550 or Form N-570 (Acceptable for REAL ID), Form N-560 or N-561 (Acceptable for REAL ID) The following documents are accepted for lawful status but are not accepted from a standpoint of REAL ID: Machine Readable Immigrant Visa, Temporary I-551 stamp on I-94 or passport, I 327 Re-Entry Permit accompanied by supporting immigration documentation, I-94 Arrival/Departure Record, I-20 Certificate of Eligibility Student Status, DS-2019 Certificate of Eligibility for Exchange Visitor, I571 refugee travel document, I797 Notice of Action Receipt notice, etc.
A81: 80 | C81: System | D81: Utilize the S2S verification check made available by AAMVA | E81: Verify whether an individual has a Driver's License or Identification Card in a participating State | F81: Verify Identities | G81: Conduct External Checks | H81: Conduct AAMVA S2S Check | I81: Verify Identities-Conduct External Checks-Conduct AAMVA S2S Check | J81: =VLOOKUP(I81,'SADLS Business Capability Model'!$E$1:$F$299,2,FALSE) -> Conduct external “State 2 State” and AAMVA checks to verify identity.
A82: 81 | C82: System | D82: Check the NDR State of Record | E82: Assess an individual's driver information, status and history | F82: Verify Identities | G82: Conduct External Checks | H82: Conduct NDR - State of Record Check | I82: Verify Identities-Conduct External Checks-Conduct NDR - State of Record Check | J82: =VLOOKUP(I82,'SADLS Business Capability Model'!$E$1:$F$299,2,FALSE) -> Conduct NDR State of Record check to verify identity
A83: 82 | C83: System | D83: Interface wit the NC-Administrative Office | E83: Update Customer Accounts with the appropriate judgement information | F83: Verify Identities | G83: Conduct External Checks | H83: Conduct AOC/Criminal Record Check | I83: Verify Identities-Conduct External Checks-Conduct AOC/Criminal Record Check | J83: =VLOOKUP(I83,'SADLS Business Capability Model'!$E$1:$F$299,2,FALSE) -> Interface with the Administrative Office of the Courts and successfully check the account holder's criminal record history
A84: 83 | C84: System | D84: Interface with the Alien Verification (SAVE) system | E84: Validate user information and ensure an individual is lawfully present | F84: Verify Identities | G84: Conduct External Checks | H84: Conduct SAVE/Alien Verification Check | I84: Verify Identities-Conduct External Checks-Conduct SAVE/Alien Verification Check | J84: =VLOOKUP(I84,'SADLS Business Capability Model'!$E$1:$F$299,2,FALSE) -> Interface with SAVE (Alien Verification) System
A85: 84 | C85: System | D85: Interface with the National Sex Offender Registry | E85: Record Sex Offender Status within SADLS | F85: Verify Identities | G85: Conduct External Checks | H85: Conduct Checks of National Sex Offender Registry | I85: Verify Identities-Conduct External Checks-Conduct Checks of National Sex Offender Registry | J85: =VLOOKUP(I85,'SADLS Business Capability Model'!$E$1:$F$299,2,FALSE) -> Interface with the National Sex Offender Registry
A86: 85 | C86: System | D86: Interface with the Commercial Driver's License Information System (CDLIS) | E86: Record current information about the Commercial Driver that may be stored in the AAMVA database. | F86: Verify Identities | G86: Conduct External Checks | H86: Conduct AAMVA CDLIS Check | I86: Verify Identities-Conduct External Checks-Conduct AAMVA CDLIS Check | J86: =VLOOKUP(I86,'SADLS Business Capability Model'!$E$1:$F$299,2,FALSE) -> Interface with CDLIS
A87: 86 | C87: System | D87: Interface with the Social Security Administration | E87: Verify that the Social Security Number provided by the individual is a valid number | F87: Verify Identities | G87: Conduct External Checks | H87: Conduct SSN Check | I87: Verify Identities-Conduct External Checks-Conduct SSN Check | J87: =VLOOKUP(I87,'SADLS Business Capability Model'!$E$1:$F$299,2,FALSE) -> Interface with Social Security Administration to determine if the Social Security number the individual is valid.
A88: 87 | C88: System | D88: Interface with the National Driver Registry (NDR) Problem Driver Pointer System (PDPS) | E88: Gather and exchange the most up to date driver record information in the entire United States. | F88: Verify Identities | G88: Conduct External Checks | H88: Conduct AAMVA PDPS Check | I88: Verify Identities-Conduct External Checks-Conduct AAMVA PDPS Check | J88: =VLOOKUP(I88,'SADLS Business Capability Model'!$E$1:$F$299,2,FALSE) -> Interface with PDPS
A89: 88 | C89: System | D89: Transmit Information to USCIS via the SAVE interface | E89: Determine that an individual has lawful status | F89: Verify Identities | G89: Conduct External Checks | H89: Conduct USCIS Check | I89: Verify Identities-Conduct External Checks-Conduct USCIS Check | J89: =VLOOKUP(I89,'SADLS Business Capability Model'!$E$1:$F$299,2,FALSE) -> Interface with the United States Citizenship and Immigration Services Agency
A90: 89 | C90: Central Issuance Verification | D90: Record results from SAVE Interface manually in SADLS | E90: Utilize validation from SAVE for subsequent validations | F90: Verify Identities | G90: Conduct External Checks | H90: Conduct USCIS Check | I90: Verify Identities-Conduct External Checks-Conduct USCIS Check | J90: =VLOOKUP(I90,'SADLS Business Capability Model'!$E$1:$F$299,2,FALSE) -> Interface with the United States Citizenship and Immigration Services Agency
A91: 90 | C91: System | D91: Conduct web services call to AAMVA's Commercial Skills Test Information Management System (CSTIMS) | E91: Ensure that an individual has successfully completed and passed all tests necessary to receive/renew a commercial drivers license. | F91: Validate Operator Qualifications | G91: Administer Vision Test | H91: Receive CTIMS Scores for CDL Applicants | I91: Validate Operator Qualifications-Administer Vision Test-Receive CTIMS Scores for CDL Applicants | J91: =VLOOKUP(I91,'SADLS Business Capability Model'!$E$1:$F$299,2,FALSE) -> Receive CTIMS scores from vendor that conducts Commercial Driver testing.
A92: 91 | C92: Examiner - Any | D92: View scores that were received electronically from CSTIMS | E92: Ensure that an individual has successfully completed and passed all tests necessary to receive/renew a commercial drivers license. | F92: Validate Operator Qualifications | G92: Administer Vision Test | H92: Receive CTIMS Scores for CDL Applicants | I92: Validate Operator Qualifications-Administer Vision Test-Receive CTIMS Scores for CDL Applicants | J92: =VLOOKUP(I92,'SADLS Business Capability Model'!$E$1:$F$299,2,FALSE) -> Receive CTIMS scores from vendor that conducts Commercial Driver testing.
A93: 92 | C93: System | D93: Interface with ATS | E93: Ensure that knowledge test results are received | F93: Validate Operator Qualifications | G93: Administer Knowledge Test | H93: Receive Knowledge Test Results from Vendor | I93: Validate Operator Qualifications-Administer Knowledge Test-Receive Knowledge Test Results from Vendor | J93: =VLOOKUP(I93,'SADLS Business Capability Model'!$E$1:$F$299,2,FALSE) -> Successfully receive via interface the knowledge test results from vendor.
A94: 93 | C94: Examiner - Any | D94: View knowledge Test Results that were electronically received from ATS | E94: Ensure that the user has successfully completed all required knowledge tests in a successful way. | F94: Validate Operator Qualifications | G94: Administer Knowledge Test | H94: Receive Knowledge Test Results from Vendor | I94: Validate Operator Qualifications-Administer Knowledge Test-Receive Knowledge Test Results from Vendor | J94: =VLOOKUP(I94,'SADLS Business Capability Model'!$E$1:$F$299,2,FALSE) -> Successfully receive via interface the knowledge test results from vendor.
A95: 94 | C95: Examiner - Any | D95: View knowledge Test Results that were electronically received from ATS | E95: Communicate any deficiencies that are still outstanding with regard to the knowledge tests. | F95: Validate Operator Qualifications | G95: Administer Knowledge Test | H95: Receive Knowledge Test Results from Vendor | I95: Validate Operator Qualifications-Administer Knowledge Test-Receive Knowledge Test Results from Vendor | J95: =VLOOKUP(I95,'SADLS Business Capability Model'!$E$1:$F$299,2,FALSE) -> Successfully receive via interface the knowledge test results from vendor.
A96: 95 | C96: Examiner - Any | D96: Manually record and manage knowledge test results | E96: Ensure accurate results are recorded for records that were not electronically received or that were received in error. | F96: Validate Operator Qualifications | G96: Administer Knowledge Test | H96: Record Knowledge Test Results | I96: Validate Operator Qualifications-Administer Knowledge Test-Record Knowledge Test Results | J96: =VLOOKUP(I96,'SADLS Business Capability Model'!$E$1:$F$299,2,FALSE) -> Enable the operator to manually record knowledge test results.
A97: 96 | C97: Examiner - Any | D97: Enter Driving log results | E97: To confirm the user has completed all requirements to graduate to the next license level. | F97: Validate Operator Qualifications | G97: Manage Graduated Licenses | H97: Record Receipt of Driver Eligibility Certificate | I97: Validate Operator Qualifications-Manage Graduated Licenses-Record Receipt of Driver Eligibility Certificate | J97: =VLOOKUP(I97,'SADLS Business Capability Model'!$E$1:$F$299,2,FALSE) -> Recording the receipt of a Graduated License Driver's eligibility Certificate
A98: 97 | C98: System | D98: Check convictions and infractions have been recorded electronically | E98: To confirm an individual is eligible to transition to the next graduated license. | F98: Validate Operator Qualifications | G98: Manage Graduated Licenses | H98: Document Driving Log Results | I98: Validate Operator Qualifications-Manage Graduated Licenses-Document Driving Log Results | J98: =VLOOKUP(I98,'SADLS Business Capability Model'!$E$1:$F$299,2,FALSE) -> Documenting driving log results received by individual in the graduated license program
A99: 98 | C99: Examiner - Any | D99: Record Receipt of Driver Eligibility Certificate | E99: Validate the information later | F99: Validate Operator Qualifications | G99: Manage Graduated Licenses | H99: Check Convictions/Infractions | I99: Validate Operator Qualifications-Manage Graduated Licenses-Check Convictions/Infractions | J99: =VLOOKUP(I99,'SADLS Business Capability Model'!$E$1:$F$299,2,FALSE) -> Ensuring individual does not have any convictions or infractions that would prevent them from graduating to the next license level
A100: 99 | C100: Examiner - Any | D100: Record permit status changes in SADLS | E100: Print correct information on the license | F100: Validate Operator Qualifications | G100: Manage Graduated Licenses | H100: Update Permit Status Changes | I100: Validate Operator Qualifications-Manage Graduated Licenses-Update Permit Status Changes | J100: =VLOOKUP(I100,'SADLS Business Capability Model'!$E$1:$F$299,2,FALSE) -> Modification of Permit Status, transitioning from one level to the next (or vice versa)
A101: 100 | C101: Examiner - Any | D101: Record results and information regarding Driver Skills Tests | E101: Determine eligibility for a license or timing of a retest. | F101: Validate Operator Qualifications | G101: Administer Driving Skills Test | H101: Record Driver Skills Test Results | I101: Validate Operator Qualifications-Administer Driving Skills Test-Record Driver Skills Test Results | J101: =VLOOKUP(I101,'SADLS Business Capability Model'!$E$1:$F$299,2,FALSE) -> Recording the results of a driver's skills test.
A102: 101 | C102: Examiner - Any | D102: Record traffic sign test results that were conducted in a DMV office | E102: Determine eligibility for a Drivers license | F102: Validate Operator Qualifications | G102: Administer Traffic Signs Test | H102: Record Traffic Signs Test Results | I102: Validate Operator Qualifications-Administer Traffic Signs Test-Record Traffic Signs Test Results | J102: =VLOOKUP(I102,'SADLS Business Capability Model'!$E$1:$F$299,2,FALSE) -> Enable the operator to manually record Traffic Signs Test Results
A103: 102 | C103: DMV Medical Unit | D103: Enter medical information into SADLS manually | E103: Maintain a proper history of medical restrictions that may need to be placed on a license. | F103: Validate Operator Qualifications | G103: Validate Medical Qualificiations | H103: Record Medical Information | I103: Validate Operator Qualifications-Validate Medical Qualificiations-Record Medical Information | J103: =VLOOKUP(I103,'SADLS Business Capability Model'!$E$1:$F$299,2,FALSE) -> Enable the operator to enter medical information manually
A104: 103 | C104: System | D104: Receive interlock reports | E104: Store, categorize and review all paper, mail, and online documents and records related to driver services for an authorized request. | F104: Manage Information | G104: Produce Reports and Dashboards | H104: Produce Scheduled Reports | I104: Manage Information -Produce Reports and Dashboards -Produce Scheduled Reports | J104: =VLOOKUP(I104,'SADLS Business Capability Model'!$E$1:$F$299,2,FALSE) -> Develop regularly scheduled standard reports
A105: 104 | C105: Examiner - Any | D105: Enter medical information into SADLS manually | E105: Maintain a proper history of medical restrictions that may need to be placed on a license. | F105: Validate Operator Qualifications | G105: Validate Medical Qualificiations | H105: Record Medical Information | I105: Validate Operator Qualifications-Validate Medical Qualificiations-Record Medical Information | J105: =VLOOKUP(I105,'SADLS Business Capability Model'!$E$1:$F$299,2,FALSE) -> Enable the operator to enter medical information manually
A106: 105 | C106: DMV Medical Unit | D106: Enter Medical Restrictions against a license | E106: Record all applicable restrictions based on customer medical conditions. | F106: Validate Operator Qualifications | G106: Validate Medical Qualificiations | H106: Record Medical Information | I106: Validate Operator Qualifications-Validate Medical Qualificiations-Record Medical Information | J106: =VLOOKUP(I106,'SADLS Business Capability Model'!$E$1:$F$299,2,FALSE) -> Enable the operator to enter medical information manually
A107: 106 | C107: Examiner - Any | D107: Enter Medical Restrictions against a license | E107: Record all applicable restrictions based on customer medical conditions. | F107: Validate Operator Qualifications | G107: Validate Medical Qualificiations | H107: Record Medical Information | I107: Validate Operator Qualifications-Validate Medical Qualificiations-Record Medical Information | J107: =VLOOKUP(I107,'SADLS Business Capability Model'!$E$1:$F$299,2,FALSE) -> Enable the operator to enter medical information manually
A108: 107 | C108: System | D108: Print a list of third party testers by district | E108: Provide the CDL Unit information to help schedule third party tester audits | F108: Maintain Third Party Examiner | G108: Retain and Manage Third Party Examiner Information | H108: Maintain List | I108: Maintain Third Party Examiner-Retain and Manage Third Party Examiner Information-Maintain List | J108: =VLOOKUP(I108,'SADLS Business Capability Model'!$E$1:$F$299,2,FALSE) -> Maintaining an accurate list of Third Party CDL Examiners
A109: 108 | C109: CDL Unit | D109: Record audit date, comments, and audit results | E109: Set the next audit due date | F109: Maintain Third Party Examiner | G109: Retain and Manage Third Party Examiner Information | H109: Manage Audit | I109: Maintain Third Party Examiner-Retain and Manage Third Party Examiner Information-Manage Audit | J109: =VLOOKUP(I109,'SADLS Business Capability Model'!$E$1:$F$299,2,FALSE) -> Manage Schedule and Tracking of Audit Results
A110: 109 | C110: CDL Unit | D110: Enter Third Party Examiner's name, TPE #, and date of certification into SADLS | E110: Issue a certificate | F110: Maintain Third Party Examiner | G110: Retain and Manage Third Party Examiner Information | H110: Manage Audit | I110: Maintain Third Party Examiner-Retain and Manage Third Party Examiner Information-Manage Audit | J110: =VLOOKUP(I110,'SADLS Business Capability Model'!$E$1:$F$299,2,FALSE) -> Manage Schedule and Tracking of Audit Results
A111: 110 | C111: CDL Unit | D111: Enter name, TPT ID, and TPE number into SADLS | E111: Create a new Third Party Examiner record | F111: Maintain Third Party Examiner | G111: Retain and Manage Third Party Examiner Information | H111: Manage Audit | I111: Maintain Third Party Examiner-Retain and Manage Third Party Examiner Information-Manage Audit | J111: =VLOOKUP(I111,'SADLS Business Capability Model'!$E$1:$F$299,2,FALSE) -> Manage Schedule and Tracking of Audit Results
A112: 111 | C112: System | D112: Generate a list of audits to be conducted | E112: Know which audits are past due and which audits are due within 90 days | F112: Maintain Third Party Examiner | G112: Retain and Manage Third Party Examiner Information | H112: Manage Audit | I112: =TRIM(CONCATENATE(F112,"-",G112,"-",H112)) -> Maintain Third Party Examiner-Retain and Manage Third Party Examiner Information-Manage Audit | J112: =VLOOKUP(I112,'SADLS Business Capability Model'!$E$1:$F$299,2,FALSE) -> Manage Schedule and Tracking of Audit Results
A113: 112 | C113: CDL Unit | D113: Enter name and business (organization) details into SADLS | E113: Create a new Third Party Testing Program | F113: Maintain Third Party Examiner | G113: Retain and Manage Third Party Examiner Information | H113: Maintain List | I113: Maintain Third Party Examiner-Retain and Manage Third Party Examiner Information-Maintain List | J113: =VLOOKUP(I113,'SADLS Business Capability Model'!$E$1:$F$299,2,FALSE) -> Maintaining an accurate list of Third Party CDL Examiners
A114: 113 | C114: CDL Unit | D114: Access the Third Party Examiner or program record | E114: remove or update the certifiation for each in SADLS | F114: Maintain Third Party Examiner | G114: Retain and Manage Third Party Examiner Information | H114: Maintain List | I114: Maintain Third Party Examiner-Retain and Manage Third Party Examiner Information-Maintain List | J114: =VLOOKUP(I114,'SADLS Business Capability Model'!$E$1:$F$299,2,FALSE) -> Maintaining an accurate list of Third Party CDL Examiners
A115: 114 | C115: CDL Unit | D115: Enter audit results in SADLS | E115: Clear the past due audit report and schedule the next audit | F115: Maintain Third Party Examiner | G115: Retain and Manage Third Party Examiner Information | H115: Manage Audit | I115: Maintain Third Party Examiner-Retain and Manage Third Party Examiner Information-Manage Audit | J115: =VLOOKUP(I115,'SADLS Business Capability Model'!$E$1:$F$299,2,FALSE) -> Manage Schedule and Tracking of Audit Results
A116: 115 | C116: System | D116: Verify the electronic communication and checks were completed | E116: Ensure agency rules and procedures were complied with when establishing the credential record. | F116: Manage Credentials | G116: Establish Credentials | H116: Check Status | I116: Manage Credentials-Establish Credentials-Check Status | J116: =VLOOKUP(I116,'SADLS Business Capability Model'!$E$1:$F$299,2,FALSE) -> If the individual has an existing record, SADLS automatically checks the status of the record to ensure compliance with agency rules procedures.
A117: 116 | C117: Call Center | D117: View customer records | E117: Provide customer with advice on having the correct documents | F117: Manage Credentials | G117: Establish Credentials | H117: Check Status | I117: Manage Credentials-Establish Credentials-Check Status | J117: =VLOOKUP(I117,'SADLS Business Capability Model'!$E$1:$F$299,2,FALSE) -> If the individual has an existing record, SADLS automatically checks the status of the record to ensure compliance with agency rules procedures.
A118: 117 | C118: Examiner - Any | D118: Manually record appropriate type and class of driving credential | E118: Ensure records are properly stored within SADLS. | F118: Manage Credentials | G118: Establish Credentials | H118: Record Correct Credential Type | I118: Manage Credentials-Establish Credentials-Record Correct Credential Type | J118: =VLOOKUP(I118,'SADLS Business Capability Model'!$E$1:$F$299,2,FALSE) -> Properly determine and record the Type and Class of the Credential being established. (e.g., Regular Class A, Regular Class B, Regular Class C, CDL Class A, CDL Class B, CDL Class C)
A119: 118 | C119: System | D119: Record appropriate type and class of driving credential | E119: Ensure records are properly stored within SADLS. | F119: Manage Credentials | G119: Establish Credentials | H119: Record Correct Credential Type | I119: Manage Credentials-Establish Credentials-Record Correct Credential Type | J119: =VLOOKUP(I119,'SADLS Business Capability Model'!$E$1:$F$299,2,FALSE) -> Properly determine and record the Type and Class of the Credential being established. (e.g., Regular Class A, Regular Class B, Regular Class C, CDL Class A, CDL Class B, CDL Class C)
A120: 119 | C120: Examiner - Any | D120: Manually record driver log information | E120: Ensure compliance with Driver Log Requirements | F120: Manage Credentials | G120: Establish Credentials | H120: Capture Driver Log Information | I120: Manage Credentials-Establish Credentials-Capture Driver Log Information | J120: =VLOOKUP(I120,'SADLS Business Capability Model'!$E$1:$F$299,2,FALSE) -> Allow operator to capture driver log information to ensure compliance with driver log rules
A121: 120 | C121: Examiner - Any | D121: Electronically validate specific License requirements | E121: Ensure customer should be allowed to transition from CDL Permit to a Full License | F121: Manage Credentials | G121: Establish Credentials | H121: Review Driver Logs | I121: Manage Credentials-Establish Credentials-Review Driver Logs | J121: =VLOOKUP(I121,'SADLS Business Capability Model'!$E$1:$F$299,2,FALSE) -> System electronically checks number of days if user transitioning from CDL permit to full license
A122: 121 | C122: System | D122: Electronically validate specific License requirements | E122: Ensure customer should be allowed to transition from CDL Permit to a Full License | F122: Manage Credentials | G122: Establish Credentials | H122: Review Driver Logs | I122: Manage Credentials-Establish Credentials-Review Driver Logs | J122: =VLOOKUP(I122,'SADLS Business Capability Model'!$E$1:$F$299,2,FALSE) -> System electronically checks number of days if user transitioning from CDL permit to full license
A123: 122 | C123: Examiner - Any | D123: View Endorsement Information within SADLS | E123: Properly manage endorsement information within SADLS. | F123: Manage Credentials | G123: Establish Credentials | H123: Identify and Record Endorsements | I123: Manage Credentials-Establish Credentials-Identify and Record Endorsements | J123: =VLOOKUP(I123,'SADLS Business Capability Model'!$E$1:$F$299,2,FALSE) -> Properly determine and record the correct endorsement to be established/added to the credential (e.g., Passenger Transport Endorsement, School Bus/Passenger Transport Combo Endorsement)
A124: 123 | C124: Examiner - Any | D124: Properly record and manage endorsement information within SADLS. | E124: Ensure that the proper endorsement information is printed on the Drivers License created. | F124: Manage Credentials | G124: Establish Credentials | H124: Identify and Record Endorsements | I124: Manage Credentials-Establish Credentials-Identify and Record Endorsements | J124: =VLOOKUP(I124,'SADLS Business Capability Model'!$E$1:$F$299,2,FALSE) -> Properly determine and record the correct endorsement to be established/added to the credential (e.g., Passenger Transport Endorsement, School Bus/Passenger Transport Combo Endorsement)
A125: 124 | C125: CDL Unit | D125: Enter NEGATIVE audit results in SADLS | E125: Deactivate the Third Party Examiner or program | F125: Maintain Third Party Examiner | G125: Retain and Manage Third Party Examiner Information | H125: Maintain List | I125: Maintain Third Party Examiner-Retain and Manage Third Party Examiner Information-Maintain List | J125: =VLOOKUP(I125,'SADLS Business Capability Model'!$E$1:$F$299,2,FALSE) -> Maintaining an accurate list of Third Party CDL Examiners
A126: 125 | C126: CDL Unit | D126: Enter TSA Background Check results into the customer record in SADLS | E126: Ensure the DL Examiner knows whether the customer can be issued a hazmat endorsement | F126: Manage Credentials | G126: Establish Credentials | H126: Identify and Record Endorsements | I126: Manage Credentials-Establish Credentials-Identify and Record Endorsements | J126: =VLOOKUP(I126,'SADLS Business Capability Model'!$E$1:$F$299,2,FALSE) -> Properly determine and record the correct endorsement to be established/added to the credential (e.g., Passenger Transport Endorsement, School Bus/Passenger Transport Combo Endorsement)
A127: 126 | C127: CDL Unit | D127: View the customer's MVR | E127: Determine if the customer is eligible for a waiver | F127: Manage Credentials | G127: Establish Credentials | H127: Identify and Record Endorsements | I127: Manage Credentials-Establish Credentials-Identify and Record Endorsements | J127: =VLOOKUP(I127,'SADLS Business Capability Model'!$E$1:$F$299,2,FALSE) -> Properly determine and record the correct endorsement to be established/added to the credential (e.g., Passenger Transport Endorsement, School Bus/Passenger Transport Combo Endorsement)
A128: 127 | C128: CDL Unit | D128: Review the TSA Hazardous Materials Threat Assessment results | E128: Enter the results in SADLS so the Examiner will be able to issue the correct CDL license | F128: Manage Credentials | G128: Establish Credentials | H128: Identify and Record Endorsements | I128: Manage Credentials-Establish Credentials-Identify and Record Endorsements | J128: =VLOOKUP(I128,'SADLS Business Capability Model'!$E$1:$F$299,2,FALSE) -> Properly determine and record the correct endorsement to be established/added to the credential (e.g., Passenger Transport Endorsement, School Bus/Passenger Transport Combo Endorsement)
A129: 128 | C129: CDL Unit | D129: Enter comments | E129: Indicate approval of the CDL Skills test waiver so the Examiner will be able to issue a CDL without requiring the CDL skills test | F129: Manage Credentials | G129: Establish Credentials | H129: Identify and Record Endorsements | I129: Manage Credentials-Establish Credentials-Identify and Record Endorsements | J129: =VLOOKUP(I129,'SADLS Business Capability Model'!$E$1:$F$299,2,FALSE) -> Properly determine and record the correct endorsement to be established/added to the credential (e.g., Passenger Transport Endorsement, School Bus/Passenger Transport Combo Endorsement)
A130: 129 | C130: CDL Unit | D130: Enter CDL disqualification for Positive Drug Test | E130: Generate a disqualification letter to the customer | F130: Manage Credentials | G130: Modify DL/ID | H130: Change License Status | I130: Manage Credentials-Modify DL/ID-Change License Status | J130: =VLOOKUP(I130,'SADLS Business Capability Model'!$E$1:$F$299,2,FALSE) -> Changing the individual’s DL credential status in DMV records (e.g., in instances where the customer dies or moves to another state). This can include cancelling or disqualifying the credential.
A131: 130 | C131: CDL Unit | D131: Enter the disqualification into the customer record | E131: Initiate letters and provide information for anyone reviewing the record | F131: Manage Credentials | G131: Establish Credentials | H131: Identify and Record Endorsements | I131: Manage Credentials-Establish Credentials-Identify and Record Endorsements | J131: =VLOOKUP(I131,'SADLS Business Capability Model'!$E$1:$F$299,2,FALSE) -> Properly determine and record the correct endorsement to be established/added to the credential (e.g., Passenger Transport Endorsement, School Bus/Passenger Transport Combo Endorsement)
A132: =A131+1 -> 131 | C132: System | D132: Generate a disqualification letter | E132: Ensure the letter is printed and sent to the customer | F132: Manage Credentials | G132: Establish Credentials | H132: Identify and Record Endorsements | I132: Manage Credentials-Establish Credentials-Identify and Record Endorsements | J132: =VLOOKUP(I132,'SADLS Business Capability Model'!$E$1:$F$299,2,FALSE) -> Properly determine and record the correct endorsement to be established/added to the credential (e.g., Passenger Transport Endorsement, School Bus/Passenger Transport Combo Endorsement)
A133: 132 | C133: CDL Unit | D133: Enter Substance Abuse Assessment results into the customer record | E133: Ensure the customer's record is updated | F133: Manage Credentials | G133: Establish Credentials | H133: Identify and Record Endorsements | I133: Manage Credentials-Establish Credentials-Identify and Record Endorsements | J133: =VLOOKUP(I133,'SADLS Business Capability Model'!$E$1:$F$299,2,FALSE) -> Properly determine and record the correct endorsement to be established/added to the credential (e.g., Passenger Transport Endorsement, School Bus/Passenger Transport Combo Endorsement)
A134: 133 | C134: CDL Unit | D134: View the customer's record | E134: Confirm the issuance indicated on the skill test scores and certification match the type of credential that was issued in SADLS | F134: Manage Credentials | G134: Establish Credentials | H134: Identify and Record Endorsements | I134: Manage Credentials-Establish Credentials-Identify and Record Endorsements | J134: =VLOOKUP(I134,'SADLS Business Capability Model'!$E$1:$F$299,2,FALSE) -> Properly determine and record the correct endorsement to be established/added to the credential (e.g., Passenger Transport Endorsement, School Bus/Passenger Transport Combo Endorsement)
A135: 134 | C135: Examiner - Any | D135: Confirm that an applicant for a bus drive certificate (new or renewal) has met applicable training requirements | E135: Ensure that the bus driver is eligible to receive a school bus certificate. | F135: Manage Credentials | G135: Establish Credentials | H135: Verify Driver meets eligibility requirements | I135: Manage Credentials-Establish Credentials-Verify Driver meets eligibility requirements | J135: =VLOOKUP(I135,'SADLS Business Capability Model'!$E$1:$F$299,2,FALSE) -> A personal or commercial driver applicant must meet certain requirements related to past driving record, medical and physical requirements, as well as training and testing requirements established for the license.
A136: 135 | C136: School Bus and Traffic Safety | D136: Confirm that an applicant for a bus driver certificate (new or renewal) has met applicable training requirements | E136: Ensure that the bus driver is eligible to receive a school bus certificate. | F136: Manage Credentials | G136: Establish Credentials | H136: Verify Driver meets eligibility requirements | I136: Manage Credentials-Establish Credentials-Verify Driver meets eligibility requirements | J136: =VLOOKUP(I136,'SADLS Business Capability Model'!$E$1:$F$299,2,FALSE) -> A personal or commercial driver applicant must meet certain requirements related to past driving record, medical and physical requirements, as well as training and testing requirements established for the license.
A137: 136 | C137: Examiner - Any | D137: Record information regarding a requested medical report | E137: Ensure that the bus driver is eligible to receive a school bus certificate. | F137: Manage Credentials | G137: Establish Credentials | H137: Verify Driver meets eligibility requirements | I137: Manage Credentials-Establish Credentials-Verify Driver meets eligibility requirements | J137: =VLOOKUP(I137,'SADLS Business Capability Model'!$E$1:$F$299,2,FALSE) -> A personal or commercial driver applicant must meet certain requirements related to past driving record, medical and physical requirements, as well as training and testing requirements established for the license.
A138: 137 | C138: Examiner - Any | D138: Review past driving experience | E138: Ensure that the bus driver is eligible to receive a school bus certificate. | F138: Manage Credentials | G138: Establish Credentials | H138: Verify Driver meets eligibility requirements | I138: Manage Credentials-Establish Credentials-Verify Driver meets eligibility requirements | J138: =VLOOKUP(I138,'SADLS Business Capability Model'!$E$1:$F$299,2,FALSE) -> A personal or commercial driver applicant must meet certain requirements related to past driving record, medical and physical requirements, as well as training and testing requirements established for the license.
A139: 138 | C139: System | D139: Analyze driving history | E139: Ensure that the bus driver is eligible to receive a school bus certificate. | F139: Manage Credentials | G139: Establish Credentials | H139: Verify Driver meets eligibility requirements | I139: Manage Credentials-Establish Credentials-Verify Driver meets eligibility requirements | J139: =VLOOKUP(I139,'SADLS Business Capability Model'!$E$1:$F$299,2,FALSE) -> A personal or commercial driver applicant must meet certain requirements related to past driving record, medical and physical requirements, as well as training and testing requirements established for the license.
A140: 139 | C140: System | D140: Print a cancellation report | E140: List the drivers who should have a K restriction but currently do not | F140: Manage Credentials | G140: Establish Credentials | H140: Verify Driver meets eligibility requirements | I140: Manage Credentials-Establish Credentials-Verify Driver meets eligibility requirements | J140: =VLOOKUP(I140,'SADLS Business Capability Model'!$E$1:$F$299,2,FALSE) -> A personal or commercial driver applicant must meet certain requirements related to past driving record, medical and physical requirements, as well as training and testing requirements established for the license.
A141: 140 | C141: Driver Education Program Specialist | D141: Update a customer record | E141: Indicate a school bus driver has been recertified | F141: Manage Credentials | G141: Establish Credentials | H141: Verify Driver meets eligibility requirements | I141: Manage Credentials-Establish Credentials-Verify Driver meets eligibility requirements | J141: =VLOOKUP(I141,'SADLS Business Capability Model'!$E$1:$F$299,2,FALSE) -> A personal or commercial driver applicant must meet certain requirements related to past driving record, medical and physical requirements, as well as training and testing requirements established for the license.
A142: 141 | C142: System | D142: Send a cancellation letter | E142: Advise the customer of the deadline for getting a K restriction on the license | F142: Manage Credentials | G142: Establish Credentials | H142: Verify Driver meets eligibility requirements | I142: Manage Credentials-Establish Credentials-Verify Driver meets eligibility requirements | J142: =VLOOKUP(I142,'SADLS Business Capability Model'!$E$1:$F$299,2,FALSE) -> A personal or commercial driver applicant must meet certain requirements related to past driving record, medical and physical requirements, as well as training and testing requirements established for the license.
A143: 142 | C143: Examiner - Any | D143: Update a customer record | E143: Indicate when a DL has been downgraded from a school bus driver to regular CDL or Class C license | F143: Manage Credentials | G143: Establish Credentials | H143: Verify Driver meets eligibility requirements | I143: Manage Credentials-Establish Credentials-Verify Driver meets eligibility requirements | J143: =VLOOKUP(I143,'SADLS Business Capability Model'!$E$1:$F$299,2,FALSE) -> A personal or commercial driver applicant must meet certain requirements related to past driving record, medical and physical requirements, as well as training and testing requirements established for the license.
A144: 143 | C144: Examiner - Any | D144: Update a customer record | E144: Indicate the correct driver type on the CLD-Med-1 or CDL-5 | F144: Manage Credentials | G144: Establish Credentials | H144: Verify Driver meets eligibility requirements | I144: Manage Credentials-Establish Credentials-Verify Driver meets eligibility requirements | J144: =VLOOKUP(I144,'SADLS Business Capability Model'!$E$1:$F$299,2,FALSE) -> A personal or commercial driver applicant must meet certain requirements related to past driving record, medical and physical requirements, as well as training and testing requirements established for the license.
A145: 144 | C145: Examiner - Any | D145: Update a customer record | E145: Add a K restriction to a school bus driver's license | F145: Manage Credentials | G145: Establish Credentials | H145: Verify Driver meets eligibility requirements | I145: Manage Credentials-Establish Credentials-Verify Driver meets eligibility requirements | J145: =VLOOKUP(I145,'SADLS Business Capability Model'!$E$1:$F$299,2,FALSE) -> A personal or commercial driver applicant must meet certain requirements related to past driving record, medical and physical requirements, as well as training and testing requirements established for the license.
A146: 145 | C146: System | D146: Update a customer's driving record | E146: Reflect the driver's recertification | F146: Manage Credentials | G146: Establish Credentials | H146: Verify Driver meets eligibility requirements | I146: Manage Credentials-Establish Credentials-Verify Driver meets eligibility requirements | J146: =VLOOKUP(I146,'SADLS Business Capability Model'!$E$1:$F$299,2,FALSE) -> A personal or commercial driver applicant must meet certain requirements related to past driving record, medical and physical requirements, as well as training and testing requirements established for the license.
A147: 146 | C147: System | D147: Run a daily report of School Bus Non-Compliance | E147: Provide a list of drivers who must be taken out of active status until resolved and the Driver Education Program Specialist to whom they are assigned | F147: Manage Credentials | G147: Establish Credentials | H147: Verify Driver meets eligibility requirements | I147: Manage Credentials-Establish Credentials-Verify Driver meets eligibility requirements | J147: =VLOOKUP(I147,'SADLS Business Capability Model'!$E$1:$F$299,2,FALSE) -> A personal or commercial driver applicant must meet certain requirements related to past driving record, medical and physical requirements, as well as training and testing requirements established for the license.
A148: 147 | C148: System | D148: Check a driver's records for S&P Endorsements after receiving convictions or suspensions from the court | E148: Cancel the driver's certification in SADLS | F148: Manage Credentials | G148: Modify DL/ID | H148: Change License Status | I148: Manage Credentials-Modify DL/ID-Change License Status | J148: =VLOOKUP(I148,'SADLS Business Capability Model'!$E$1:$F$299,2,FALSE) -> Changing the individual’s DL credential status in DMV records (e.g., in instances where the customer dies or moves to another state). This can include cancelling or disqualifying the credential.
A149: 148 | C149: System | D149: Receive conviction or suspension update | E149: correct a customer's record | F149: Manage Credentials | G149: Modify DL/ID | H149: Change License Status | I149: Manage Credentials-Modify DL/ID-Change License Status | J149: =VLOOKUP(I149,'SADLS Business Capability Model'!$E$1:$F$299,2,FALSE) -> Changing the individual’s DL credential status in DMV records (e.g., in instances where the customer dies or moves to another state). This can include cancelling or disqualifying the credential.
A150: 149 | C150: Driver Education Program Specialist | D150: update a customer's record | E150: reflect the driver's current status | F150: Manage Credentials | G150: Modify DL/ID | H150: Change License Status | I150: Manage Credentials-Modify DL/ID-Change License Status | J150: =VLOOKUP(I150,'SADLS Business Capability Model'!$E$1:$F$299,2,FALSE) -> Changing the individual’s DL credential status in DMV records (e.g., in instances where the customer dies or moves to another state). This can include cancelling or disqualifying the credential.
A151: 150 | C151: Driver Education Program Specialist | D151: View customer information | E151: Confirm the issue has been resolved and documented appropriately in SADLS | F151: Manage Credentials | G151: Establish Credentials | H151: Verify Driver meets eligibility requirements | I151: Manage Credentials-Establish Credentials-Verify Driver meets eligibility requirements | J151: =VLOOKUP(I151,'SADLS Business Capability Model'!$E$1:$F$299,2,FALSE) -> A personal or commercial driver applicant must meet certain requirements related to past driving record, medical and physical requirements, as well as training and testing requirements established for the license.
A152: 151 | C152: CDL Med CERT | D152: Enter a customer cancellation due to failure to submit medical documentation | E152: Cancel a school bus driver's certification | F152: Manage Credentials | G152: Establish Credentials | H152: Verify Driver meets eligibility requirements | I152: Manage Credentials-Establish Credentials-Verify Driver meets eligibility requirements | J152: =VLOOKUP(I152,'SADLS Business Capability Model'!$E$1:$F$299,2,FALSE) -> A personal or commercial driver applicant must meet certain requirements related to past driving record, medical and physical requirements, as well as training and testing requirements established for the license.
A153: 152 | C153: CDL Med CERT | D153: Enter medical review results into a customer record | E153: Reinstate certification | F153: Manage Credentials | G153: Establish Credentials | H153: Verify Driver meets eligibility requirements | I153: Manage Credentials-Establish Credentials-Verify Driver meets eligibility requirements | J153: =VLOOKUP(I153,'SADLS Business Capability Model'!$E$1:$F$299,2,FALSE) -> A personal or commercial driver applicant must meet certain requirements related to past driving record, medical and physical requirements, as well as training and testing requirements established for the license.
A154: 153 | C154: Driver Education Program Specialist | D154: Enter medical review results into a customer record | E154: Reinstate certification | F154: Manage Credentials | G154: Establish Credentials | H154: Verify Driver meets eligibility requirements | I154: Manage Credentials-Establish Credentials-Verify Driver meets eligibility requirements | J154: =VLOOKUP(I154,'SADLS Business Capability Model'!$E$1:$F$299,2,FALSE) -> A personal or commercial driver applicant must meet certain requirements related to past driving record, medical and physical requirements, as well as training and testing requirements established for the license.
A155: 154 | C155: CDL Med CERT | D155: Enter medical review results into a customer record | E155: Cancel certificataion | F155: Manage Credentials | G155: Modify DL/ID | H155: Change License Status | I155: Manage Credentials-Modify DL/ID-Change License Status | J155: =VLOOKUP(I155,'SADLS Business Capability Model'!$E$1:$F$299,2,FALSE) -> Changing the individual’s DL credential status in DMV records (e.g., in instances where the customer dies or moves to another state). This can include cancelling or disqualifying the credential.
A156: 155 | C156: System | D156: Generate a daily report showing Medical Unit Cancellations | E156: Notify DEPS of drivers in their areas who have been cancelled | F156: Manage Information | G156: Produce Reports and Dashboards | H156: Produce Scheduled Reports | I156: Manage Information -Produce Reports and Dashboards -Produce Scheduled Reports | J156: =VLOOKUP(I156,'SADLS Business Capability Model'!$E$1:$F$299,2,FALSE) -> Develop regularly scheduled standard reports
A157: 156 | C157: System | D157: Run a daily report of school bus suspensions | E157: Determine which driver education program specialists to inform | F157: Manage Credentials | G157: Establish Credentials | H157: Verify Driver meets eligibility requirements | I157: Manage Credentials-Establish Credentials-Verify Driver meets eligibility requirements | J157: =VLOOKUP(I157,'SADLS Business Capability Model'!$E$1:$F$299,2,FALSE) -> A personal or commercial driver applicant must meet certain requirements related to past driving record, medical and physical requirements, as well as training and testing requirements established for the license.
A158: 157 | C158: System | D158: Receive traffic convictions & suspensions | E158: Change a driver's status from active to suspended | F158: Manage Credentials | G158: Establish Credentials | H158: Verify Driver meets eligibility requirements | I158: Manage Credentials-Establish Credentials-Verify Driver meets eligibility requirements | J158: =VLOOKUP(I158,'SADLS Business Capability Model'!$E$1:$F$299,2,FALSE) -> A personal or commercial driver applicant must meet certain requirements related to past driving record, medical and physical requirements, as well as training and testing requirements established for the license.
A159: 158 | C159: System | D159: Receive updated driver information | E159: Update a driver's record | F159: Manage Credentials | G159: Establish Credentials | H159: Verify Driver meets eligibility requirements | I159: Manage Credentials-Establish Credentials-Verify Driver meets eligibility requirements | J159: =VLOOKUP(I159,'SADLS Business Capability Model'!$E$1:$F$299,2,FALSE) -> A personal or commercial driver applicant must meet certain requirements related to past driving record, medical and physical requirements, as well as training and testing requirements established for the license.
A160: 159 | C160: System | D160: Provide an updated MVR | E160: Provide updated information to SBTS | F160: Manage Credentials | G160: Establish Credentials | H160: Verify Driver meets eligibility requirements | I160: Manage Credentials-Establish Credentials-Verify Driver meets eligibility requirements | J160: =VLOOKUP(I160,'SADLS Business Capability Model'!$E$1:$F$299,2,FALSE) -> A personal or commercial driver applicant must meet certain requirements related to past driving record, medical and physical requirements, as well as training and testing requirements established for the license.
A161: 160 | C161: Driver Education Program Specialist | D161: View a customer's MVR | E161: Determine if the issue has been resolved | F161: Manage Credentials | G161: Establish Credentials | H161: Verify Driver meets eligibility requirements | I161: Manage Credentials-Establish Credentials-Verify Driver meets eligibility requirements | J161: =VLOOKUP(I161,'SADLS Business Capability Model'!$E$1:$F$299,2,FALSE) -> A personal or commercial driver applicant must meet certain requirements related to past driving record, medical and physical requirements, as well as training and testing requirements established for the license.
A162: 161 | C162: Driver Education Program Specialist | D162: Update the driver's certification | E162: Reflect the current status in SADLS and clear the driver from the report | F162: Manage Credentials | G162: Establish Credentials | H162: Verify Driver meets eligibility requirements | I162: Manage Credentials-Establish Credentials-Verify Driver meets eligibility requirements | J162: =VLOOKUP(I162,'SADLS Business Capability Model'!$E$1:$F$299,2,FALSE) -> A personal or commercial driver applicant must meet certain requirements related to past driving record, medical and physical requirements, as well as training and testing requirements established for the license.
A163: 162 | C163: Driver Education Program Specialist | D163: Enter Behind-The-Wheel (BTW) test results into SADLS | E163: Ensure the Examiner knows test results before issuing CDL | F163: Manage Credentials | G163: Establish Credentials | H163: Verify Driver meets eligibility requirements | I163: Manage Credentials-Establish Credentials-Verify Driver meets eligibility requirements | J163: =VLOOKUP(I163,'SADLS Business Capability Model'!$E$1:$F$299,2,FALSE) -> A personal or commercial driver applicant must meet certain requirements related to past driving record, medical and physical requirements, as well as training and testing requirements established for the license.
A164: 163 | C164: System | D164: Receive Behind-The-Wheel (BTW) test results from CSTIMS | E164: Ensure the Examiner knows test results before issuing CDL | F164: Manage Credentials | G164: Establish Credentials | H164: Verify Driver meets eligibility requirements | I164: Manage Credentials-Establish Credentials-Verify Driver meets eligibility requirements | J164: =VLOOKUP(I164,'SADLS Business Capability Model'!$E$1:$F$299,2,FALSE) -> A personal or commercial driver applicant must meet certain requirements related to past driving record, medical and physical requirements, as well as training and testing requirements established for the license.
A165: 164 | C165: Driver Education Program Specialist | D165: Enter passing classroom test grades into SADLS | E165: Send the potential driver to DMV for a learner permit | F165: Manage Credentials | G165: Establish Credentials | H165: Verify Driver meets eligibility requirements | I165: Manage Credentials-Establish Credentials-Verify Driver meets eligibility requirements | J165: =VLOOKUP(I165,'SADLS Business Capability Model'!$E$1:$F$299,2,FALSE) -> A personal or commercial driver applicant must meet certain requirements related to past driving record, medical and physical requirements, as well as training and testing requirements established for the license.
A166: 165 | C166: System | D166: Generate a medical packet | E166: Ensure potential drivers with a medical condition get the appropriate paperwork that needs to be completed | F166: Manage Credentials | G166: Establish Credentials | H166: Verify Driver meets eligibility requirements | I166: Manage Credentials-Establish Credentials-Verify Driver meets eligibility requirements | J166: =VLOOKUP(I166,'SADLS Business Capability Model'!$E$1:$F$299,2,FALSE) -> A personal or commercial driver applicant must meet certain requirements related to past driving record, medical and physical requirements, as well as training and testing requirements established for the license.
A167: 166 | C167: Driver Education Program Specialist | D167: Review the potential driver's MVR | E167: Determine the potential driver's eligibility | F167: Manage Credentials | G167: Establish Credentials | H167: Verify Driver meets eligibility requirements | I167: Manage Credentials-Establish Credentials-Verify Driver meets eligibility requirements | J167: =VLOOKUP(I167,'SADLS Business Capability Model'!$E$1:$F$299,2,FALSE) -> A personal or commercial driver applicant must meet certain requirements related to past driving record, medical and physical requirements, as well as training and testing requirements established for the license.
A168: 167 | C168: School Bus and Traffic Safety | D168: Enter data from the SBTS-805 (medical form) into the potential driver's record | E168: Ensure the DMV Nurse can review pertinent information | F168: Manage Credentials | G168: Establish Credentials | H168: Verify Driver meets eligibility requirements | I168: Manage Credentials-Establish Credentials-Verify Driver meets eligibility requirements | J168: =VLOOKUP(I168,'SADLS Business Capability Model'!$E$1:$F$299,2,FALSE) -> A personal or commercial driver applicant must meet certain requirements related to past driving record, medical and physical requirements, as well as training and testing requirements established for the license.
A169: 168 | C169: CDL Med CERT | D169: Enter results of the medical review | E169: Generate an eligibility status letter | F169: Manage Credentials | G169: Establish Credentials | H169: Verify Driver meets eligibility requirements | I169: Manage Credentials-Establish Credentials-Verify Driver meets eligibility requirements | J169: =VLOOKUP(I169,'SADLS Business Capability Model'!$E$1:$F$299,2,FALSE) -> A personal or commercial driver applicant must meet certain requirements related to past driving record, medical and physical requirements, as well as training and testing requirements established for the license.
A170: 169 | C170: System | D170: Generate a status letter | E170: Send the letter to the potential driver's school | F170: Manage Credentials | G170: Establish Credentials | H170: Verify Driver meets eligibility requirements | I170: Manage Credentials-Establish Credentials-Verify Driver meets eligibility requirements | J170: =VLOOKUP(I170,'SADLS Business Capability Model'!$E$1:$F$299,2,FALSE) -> A personal or commercial driver applicant must meet certain requirements related to past driving record, medical and physical requirements, as well as training and testing requirements established for the license.
A171: 170 | C171: System | D171: Generate a status letter | E171: Send a copy of the letter to SBTS | F171: Manage Credentials | G171: Establish Credentials | H171: Verify Driver meets eligibility requirements | I171: Manage Credentials-Establish Credentials-Verify Driver meets eligibility requirements | J171: =VLOOKUP(I171,'SADLS Business Capability Model'!$E$1:$F$299,2,FALSE) -> A personal or commercial driver applicant must meet certain requirements related to past driving record, medical and physical requirements, as well as training and testing requirements established for the license.
A172: 171 | C172: Driver Education Program Specialist | D172: Pull a list of all school bus drivers whose certifications are due for renewal | E172: Schedule renewal tests | F172: Manage Credentials | G172: Establish Credentials | H172: Renew Bus Driver Certification | I172: Manage Credentials-Establish Credentials-Renew Bus Driver Certification | J172: =VLOOKUP(I172,'SADLS Business Capability Model'!$E$1:$F$299,2,FALSE) -> Renew Bus Driver Certification based on requirements being met.
A173: 172 | C173: Driver Education Program Specialist | D173: Enter renewal test results into the customer record | E173: Renew the dirver's certification | F173: Manage Credentials | G173: Establish Credentials | H173: Renew Bus Driver Certification | I173: Manage Credentials-Establish Credentials-Renew Bus Driver Certification | J173: =VLOOKUP(I173,'SADLS Business Capability Model'!$E$1:$F$299,2,FALSE) -> Renew Bus Driver Certification based on requirements being met.
A174: 173 | C174: Driver Education Program Specialist | D174: Pull a list of all school bus drivers assigned to me | E174: Review their status (active or inactive) with their local education administration | F174: Manage Credentials | G174: Establish Credentials | H174: Renew Bus Driver Certification | I174: Manage Credentials-Establish Credentials-Renew Bus Driver Certification | J174: =VLOOKUP(I174,'SADLS Business Capability Model'!$E$1:$F$299,2,FALSE) -> Renew Bus Driver Certification based on requirements being met.
A175: 174 | C175: Driver Education Program Specialist | D175: Review a driver's Motor Vehicle Record | E175: Confirm the driver is in compliance with driver requirements | F175: Manage Credentials | G175: Establish Credentials | H175: Renew Bus Driver Certification | I175: Manage Credentials-Establish Credentials-Renew Bus Driver Certification | J175: =VLOOKUP(I175,'SADLS Business Capability Model'!$E$1:$F$299,2,FALSE) -> Renew Bus Driver Certification based on requirements being met.
A176: 175 | C176: Driver Education Program Specialist | D176: Record non-compliance information in the customer record | E176: Cancel the driver's certification in SADLS | F176: Manage Credentials | G176: Establish Credentials | H176: Renew Bus Driver Certification | I176: Manage Credentials-Establish Credentials-Renew Bus Driver Certification | J176: =VLOOKUP(I176,'SADLS Business Capability Model'!$E$1:$F$299,2,FALSE) -> Renew Bus Driver Certification based on requirements being met.
A177: 176 | C177: Driver Education Program Specialist | D177: Record that the driver status has been reviewed | E177: Set up the next review | F177: Manage Credentials | G177: Establish Credentials | H177: Renew Bus Driver Certification | I177: Manage Credentials-Establish Credentials-Renew Bus Driver Certification | J177: =VLOOKUP(I177,'SADLS Business Capability Model'!$E$1:$F$299,2,FALSE) -> Renew Bus Driver Certification based on requirements being met.
A178: 177 | C178: Driver Education Program Specialist | D178: Pull a list of all school bus drivers assigned to me | E178: See drivers who did not renew before their certifications expired | F178: Manage Credentials | G178: Establish Credentials | H178: Renew Bus Driver Certification | I178: Manage Credentials-Establish Credentials-Renew Bus Driver Certification | J178: =VLOOKUP(I178,'SADLS Business Capability Model'!$E$1:$F$299,2,FALSE) -> Renew Bus Driver Certification based on requirements being met.
A179: 178 | C179: Driver Education Program Specialist | D179: Record the results of post-certification training | E179: Cancel a school bus driver's certification | F179: Manage Credentials | G179: Establish Credentials | H179: Verify Driver Meets Eligibility Requirements | I179: Manage Credentials-Establish Credentials-Verify Driver Meets Eligibility Requirements | J179: =VLOOKUP(I179,'SADLS Business Capability Model'!$E$1:$F$299,2,FALSE) -> A personal or commercial driver applicant must meet certain requirements related to past driving record, medical and physical requirements, as well as training and testing requirements established for the license.
A180: 179 | C180: Examiner - Any | D180: Record that an individual has met all state and federal CDL requirements | E180: Issue a license or complete a renewal when the requirements have been marked as complete. | F180: Manage Credentials | G180: Establish Credentials | H180: Verify Other CDL Operator Meets Eligibility Requirements | I180: Manage Credentials-Establish Credentials-Verify Other CDL Operator Meets Eligibility Requirements | J180: =VLOOKUP(I180,'SADLS Business Capability Model'!$E$1:$F$299,2,FALSE) -> A commercial CDL applicant must meet certain requirements related to past driving record, medical and physical requirements, as well as training and testing requirements established for the license.
A181: 180 | C181: System | D181: Record driver data obtained via interface with AAMVA's CDLIS | E181: Confirm that a CDL applicant has met all state and federal requirements prior to license issuance or renewal | F181: Manage Credentials | G181: Establish Credentials | H181: Verify Other CDL Operator Meets Eligibility Requirements | I181: Manage Credentials-Establish Credentials-Verify Other CDL Operator Meets Eligibility Requirements | J181: =VLOOKUP(I181,'SADLS Business Capability Model'!$E$1:$F$299,2,FALSE) -> A commercial CDL applicant must meet certain requirements related to past driving record, medical and physical requirements, as well as training and testing requirements established for the license.
A182: 181 | C182: DMV Medical Unit | D182: Record information regarding a requested medical report | E182: Certify that the applicant meets appropriate state and federal medical requirements | F182: Manage Credentials | G182: Establish Credentials | H182: Verify Other CDL Operator Meets Eligibility Requirements | I182: Manage Credentials-Establish Credentials-Verify Other CDL Operator Meets Eligibility Requirements | J182: =VLOOKUP(I182,'SADLS Business Capability Model'!$E$1:$F$299,2,FALSE) -> A commercial CDL applicant must meet certain requirements related to past driving record, medical and physical requirements, as well as training and testing requirements established for the license.
A183: 182 | C183: Examiner - Any | D183: Record information regarding a requested medical report | E183: Certify that the applicant meets appropriate state and federal medical requirements | F183: Manage Credentials | G183: Establish Credentials | H183: Verify Other CDL Operator Meets Eligibility Requirements | I183: Manage Credentials-Establish Credentials-Verify Other CDL Operator Meets Eligibility Requirements | J183: =VLOOKUP(I183,'SADLS Business Capability Model'!$E$1:$F$299,2,FALSE) -> A commercial CDL applicant must meet certain requirements related to past driving record, medical and physical requirements, as well as training and testing requirements established for the license.
A184: 183 | C184: Examiner - Any | D184: Confirm the type of commercial vehicle the CDL holder will operate | E184: Ensure the operator is applying for and receiving the correct class CDL license | F184: Manage Credentials | G184: Establish Credentials | H184: Verify Other CDL Operator Meets Eligibility Requirements | I184: Manage Credentials-Establish Credentials-Verify Other CDL Operator Meets Eligibility Requirements | J184: =VLOOKUP(I184,'SADLS Business Capability Model'!$E$1:$F$299,2,FALSE) -> A commercial CDL applicant must meet certain requirements related to past driving record, medical and physical requirements, as well as training and testing requirements established for the license.
A185: 184 | C185: System | D185: Confirm via interface the type of commercial vehicle the CDL holder will operate | E185: Ensure the operator is applying for and receiving the correct class CDL license | F185: Manage Credentials | G185: Establish Credentials | H185: Verify Other CDL Operator Meets Eligibility Requirements | I185: Manage Credentials-Establish Credentials-Verify Other CDL Operator Meets Eligibility Requirements | J185: =VLOOKUP(I185,'SADLS Business Capability Model'!$E$1:$F$299,2,FALSE) -> A commercial CDL applicant must meet certain requirements related to past driving record, medical and physical requirements, as well as training and testing requirements established for the license.
A186: 185 | C186: Examiner - Any | D186: Review past driving experience | E186: Ensure individual already holds a valid Class A, B or C license that has not been suspended, disqualified or revoked | F186: Manage Credentials | G186: Establish Credentials | H186: Verify Other CDL Operator Meets Eligibility Requirements | I186: Manage Credentials-Establish Credentials-Verify Other CDL Operator Meets Eligibility Requirements | J186: =VLOOKUP(I186,'SADLS Business Capability Model'!$E$1:$F$299,2,FALSE) -> A commercial CDL applicant must meet certain requirements related to past driving record, medical and physical requirements, as well as training and testing requirements established for the license.
A187: 186 | C187: System | D187: Analyze driving history | E187: Ensure individual already holds a valid Class A, B or C license that has not been suspended, disqualified or revoked | F187: Manage Credentials | G187: Establish Credentials | H187: Verify Other CDL Operator Meets Eligibility Requirements | I187: Manage Credentials-Establish Credentials-Verify Other CDL Operator Meets Eligibility Requirements | J187: =VLOOKUP(I187,'SADLS Business Capability Model'!$E$1:$F$299,2,FALSE) -> A commercial CDL applicant must meet certain requirements related to past driving record, medical and physical requirements, as well as training and testing requirements established for the license.
A188: 187 | C188: CDL Med CERT | D188: Record medical waivers | E188: Properly document that a CDL operator has been granted a medical waiver, as authorized by the FMCSA | F188: Manage Credentials | G188: Establish Credentials | H188: Record Medical Waivers | I188: Manage Credentials-Establish Credentials-Record Medical Waivers | J188: =VLOOKUP(I188,'SADLS Business Capability Model'!$E$1:$F$299,2,FALSE) -> Record temporary relief from medical requirements for a CDL applicant for up to 3 months, as regulatred and authorized by the FMCSA
A189: 188 | C189: DMV Medical Unit | D189: Record medical waivers | E189: Properly document that a CDL operator has been granted a medical waiver, as authorized by the FMCSA | F189: Manage Credentials | G189: Establish Credentials | H189: Record Medical Waivers | I189: Manage Credentials-Establish Credentials-Record Medical Waivers | J189: =VLOOKUP(I189,'SADLS Business Capability Model'!$E$1:$F$299,2,FALSE) -> Record temporary relief from medical requirements for a CDL applicant for up to 3 months, as regulatred and authorized by the FMCSA
A190: 189 | C190: CDL Med CERT | D190: Record medical exemptions | E190: Properly document that a CDL operator has been granted a medical exception, as authorized by the FMCSA | F190: Manage Credentials | G190: Establish Credentials | H190: Record Medical Exemptions | I190: Manage Credentials-Establish Credentials-Record Medical Exemptions | J190: =VLOOKUP(I190,'SADLS Business Capability Model'!$E$1:$F$299,2,FALSE) -> Record relief from medical requirements for a CDL applicant for up to 2 years, as regulatred and authorized by the FMCSA
A191: 190 | C191: DMV Medical Unit | D191: Record medical exemptions | E191: Properly document that a CDL operator has been granted a medical exception, as authorized by the FMCSA | F191: Manage Credentials | G191: Establish Credentials | H191: Record Medical Exemptions | I191: =TRIM(CONCATENATE(F191,"-",G191,"-",H191)) -> Manage Credentials-Establish Credentials-Record Medical Exemptions | J191: =VLOOKUP(I191,'SADLS Business Capability Model'!$E$1:$F$299,2,FALSE) -> Record relief from medical requirements for a CDL applicant for up to 2 years, as regulatred and authorized by the FMCSA
A192: 191 | C192: Examiner - Any | D192: Record the organ donor preference selected by the license applicant or license holder. | E192: Manage that organ donor preference in the future. | F192: Manage Credentials | G192: Establish Credentials | H192: Record Organ Donor Preference | I192: Manage Credentials-Establish Credentials-Record Organ Donor Preference | J192: =VLOOKUP(I192,'SADLS Business Capability Model'!$E$1:$F$299,2,FALSE) -> North Carolina applicants can register as an organ donor and have their license reflect their donor status
A193: 192 | C193: Examiner - Any | D193: Modify organ donor preference | E193: Ensure up to date information is stored in SADLS and printed on license. | F193: Manage Credentials | G193: Establish Credentials | H193: Record Organ Donor Preference | I193: Manage Credentials-Establish Credentials-Record Organ Donor Preference | J193: =VLOOKUP(I193,'SADLS Business Capability Model'!$E$1:$F$299,2,FALSE) -> North Carolina applicants can register as an organ donor and have their license reflect their donor status
A194: 193 | C194: Examiner - Any | D194: Verify Temporary Driving Certificate information within SADLS | E194: Ensure that all interested parties are aware of correct temporary driving certificate information | F194: Manage Credentials | G194: Authorize Issuance of Initial TDC/TIC/DL/ID | H194: Issue TDC/TIC | I194: Manage Credentials-Authorize Issuance of Initial TDC/TIC/DL/ID-Issue TDC/TIC | J194: =VLOOKUP(I194,'SADLS Business Capability Model'!$E$1:$F$299,2,FALSE) -> To prevent identity theft and fraud, the N.C. Division of Motor Vehicles creates and mails driver licenses, learner permits and IDs from a central location in an unmarked envelope. Drivers receive a 60-day Temporary Driving certificate and their license or permit should arrive before expiration.
A195: 194 | C195: Examiner - Any | D195: Verify Temporary Identification Certificate information when an Identification Certificate is issued. | E195: Ensure that all interested parties are aware of correct temporary identification certificate information | F195: Manage Credentials | G195: Authorize Issuance of Initial TDC/TIC/DL/ID | H195: Issue TDC/TIC | I195: Manage Credentials-Authorize Issuance of Initial TDC/TIC/DL/ID-Issue TDC/TIC | J195: =VLOOKUP(I195,'SADLS Business Capability Model'!$E$1:$F$299,2,FALSE) -> To prevent identity theft and fraud, the N.C. Division of Motor Vehicles creates and mails driver licenses, learner permits and IDs from a central location in an unmarked envelope. Drivers receive a 60-day Temporary Driving certificate and their license or permit should arrive before expiration.
A196: =A195+1 -> 195 | C196: System | D196: Store the date a Permanent License was mailed from central location to the mailing address on file. | E196: Track the lifecycle of the issuance | F196: Manage Credentials | G196: Authorize Issuance of Duplicate DL/ID | H196: Authorize Issuance of Duplicate DL/ID Card | I196: Manage Credentials-Authorize Issuance of Duplicate DL/ID-Authorize Issuance of Duplicate DL/ID Card | J196: =VLOOKUP(I196,'SADLS Business Capability Model'!$E$1:$F$299,2,FALSE) -> Review DMV customer record and confirm authorization for card vendor to issue a duplicate DL or Identification
A197: 196 | C197: System | D197: Receive request for online duplicate | E197: Process duplicate and mail to the customer | F197: Manage Credentials | G197: Authorize Issuance of Duplicate DL/ID | H197: Authorize Issuance of Duplicate DL/ID Card | I197: Manage Credentials-Authorize Issuance of Duplicate DL/ID-Authorize Issuance of Duplicate DL/ID Card | J197: =VLOOKUP(I197,'SADLS Business Capability Model'!$E$1:$F$299,2,FALSE) -> Review DMV customer record and confirm authorization for card vendor to issue a duplicate DL or Identification
A198: 197 | C198: System | D198: Receive request for online renewal of a license or identification | E198: Process renewal request and mail to the customer | F198: Manage Credentials | G198: Authorize Issuance of Duplicate DL/ID | H198: Authorize Issuance of Duplicate DL/ID Card | I198: Manage Credentials-Authorize Issuance of Duplicate DL/ID-Authorize Issuance of Duplicate DL/ID Card | J198: =VLOOKUP(I198,'SADLS Business Capability Model'!$E$1:$F$299,2,FALSE) -> Review DMV customer record and confirm authorization for card vendor to issue a duplicate DL or Identification
A199: 198 | C199: System | D199: Store the date a Permanent Identification Card was mailed from central location to the mailing address on file. | E199: Track the lifecycle of the issuance | F199: Manage Credentials | G199: Authorize Issuance of Initial TDC/TIC/DL/ID | H199: Issue TDC/TIC | I199: Manage Credentials-Authorize Issuance of Initial TDC/TIC/DL/ID-Issue TDC/TIC | J199: =VLOOKUP(I199,'SADLS Business Capability Model'!$E$1:$F$299,2,FALSE) -> To prevent identity theft and fraud, the N.C. Division of Motor Vehicles creates and mails driver licenses, learner permits and IDs from a central location in an unmarked envelope. Drivers receive a 60-day Temporary Driving certificate and their license or permit should arrive before expiration.
A200: 199 | C200: Examiner - Any | D200: Enter results for any tests required during the license renewal period | E200: Record accurate information related to the renewal and ensure all required renewal checklist items are completed. | F200: Manage Credentials | G200: Authorize DL/ID Renewal | H200: Administer Required Tests | I200: Manage Credentials-Authorize DL/ID Renewal-Administer Required Tests | J200: =VLOOKUP(I200,'SADLS Business Capability Model'!$E$1:$F$299,2,FALSE) -> Administer written, vision or cognitive testing as is necessary to ensure individual is capable of operating a motor vehicle.
... 587 more rows

Sheet Use Cases
A1: Use Case
A2: Active SB Driver - DMV K Restriction
A3: Active SB Driver - Medical Cancellation
A4: Active SB Driver - Other potential Cancellation
A5: Active SB Driver - Renewal
A6: Active SB Driver Statistical Accountability - DMV k restriction
A7: Active SB Driver Statistical Accountability Renewal
A8: Active SB Driver Statistical Accountability Review
A9: Add a Driver
A10: Address Validation
A11: Adjudicate Incompetence
A12: Adjudication System Maintenance (D707)
A13: Administer Driving Skills Test
A14: Administer Knowledge Tests
A15: Administer Traffic Signs Test
A16: Administer Vision Tests
A17: Appeal Administrative Hearing
A18: Approve Medical Waiver
A19: AR Report - Date Range
A20: AR Report - Monthly
A21: AR Report - Weekly
A22: Authenticate Inspection Technician
A23: Bad Debt
A24: Bad Debt Removal
A25: Child Support Revocation
A26: Collect Fees
A27: Collect Hearing Fees
A28: Commercial Schools
A29: Complaince for OOS Citation
A30: Conduct Hearing
A31: Conduct Hearing - Adj. Officer/Hearing Officer
A32: Conduct II Hearing
A33: Conduct Liability insurane Hearing
A34: Conduct SR Hearing
A35: Convictions - Add
A36: Convictions - Change
A37: Convictions - Delete
A38: Convictions - Inquire
A39: Crash data capture
A40: Create AR Reports
A41: Create SADLS Record - Adjudication
A42: Create/Modify SADLS Record
A43: Credential Application - After Suspension
A44: Customer Fee Summary
A45: Daily Report
A46: Daily Summary
A47: Dealer Investigation - view only
A48: Deceased
A49: Disqualification - Add
A50: Disqualification - Change
A51: Disqualification - Delete
A52: Disqualification - Inquire
A53: DL Cancellation - Add
A54: DL Cancellation - Change
A55: DL Cancellation - Delete
A56: DL Cancellation - Inquire
A57: DL Suspend/Lift
A58: DL/ID Fraud Id Theft Investigation
A59: DMV K Restrictions
A60: Driver Event History
A61: Driver Improvement Clinic
A62: Driver Improvement Clinic - Grade Change
A63: Driving Records - Mail and Website
A64: Driving Records - Website
A65: Dropout Suspension
A66: End Employment of a Driver
A67: End of Day
A68: External Image Investigation
A69: Field Investigation
A70: Fraud Investigation
A71: Generate Accounts Receivable Reports
A72: Generate AOC Conviction Report
A73: Generate Monthly Driving Records Reports
A74: Haz Materials Threat Assessment ,
A75: Hearing - Assign Clinic
A76: Hearing - Conference
A77: Hearing Fee -- New
A78: Hearing Payment Refunds
A79: Indigence
A80: Initiate Customer Merge Request
A81: Initiate Medical Review
A82: Initiate Merge Request
A83: investigation
A84: Issuance Exception
A85: Issue Refunds
A86: License In
A87: License In - Adjudication Screen
A88: Limited Driving Privilege non-alcohol – change
A89: Limited Driving Privilege non-alcohol – inquire
A90: Maintain DMV Staff Table
A91: Maintain Driving Records
A92: Maintain Field Stations
A93: Maintain Recordss
A94: Maintain Returned Mail
A95: Make Payment Adjustments
A96: Manage Credential
A97: Manage Fees and Payments
A98: Manage Graduated Licenses
A99: Medical Cancellation
A100: Medical Cancellation Review
A101: Medical Hearing
A102: Merge
A103: Military Skills Test
A104: Modify Customer Record
A105: Modify Customer Record - Adjudication
A106: Modify Customer Record - CDL Med Cert
A107: Modify Customer Record - Safety Responsibility Unit
A108: Negate
A109: No-fee driving record
A110: Nurse's Review
A111: Other Potential Cancellations
A112: Pending Event
A113: Positive Drug Test
A114: Post Bulletin
A115: Post Receipts
A116: Potential SB Driver Qualification and certification
A117: Prevents
A118: Print Daily Summary
A119: Process Credential Application - CDL
A120: Process Credential Application - Driver License
A121: Process Credential Application - Graduated License
A122: Process Credential Application - ID
A123: Process Credential Application - Voter ID
A124: Process Customer Receipt Inquiry
A125: Process Duplicate Credential
A126: Process Homebound Issuance
A127: Process Ignition Interlock Changeovers
A128: Process Ignition Interlock Deinstallations
A129: Process Ignition Interlock Installation for DL with Restriction
A130: Process Ignition Interlock Installation for LDP
A131: Process Ignition Interlock Violations
A132: Process II Changeovers
A133: Process II Deinstallation
A134: Process II Medical Accommodation Requests
A135: Process Indigence Requests
A136: Process Knowledge Tests
A137: Process No-Fee Duplicate
A138: Process Online Duplicates
A139: Process Online Renewals
A140: Process Refunds
A141: Process Refunds - Adjudication option 12
A142: Process Refunds - Adjudication option 13
A143: Process Refunds - Examiner
A144: Process Refunds - Hearing Decision
A145: Process Renewals by Mail
A146: Process Restoration
A147: Process Reversals - Backout Fee
A148: Process Reversals - Hearing Code different fee
A149: Process Reversals - Hearing Code same fee issued
A150: Process Reversals - Payment on Wrong Record
A151: Provisional Civils (don’t have to go to court. You are suspended for 30 days. Don’t get insurance points.
A152: Readjudication
A153: Recall Third Party Testers
A154: Reconsider Medical Review
A155: Record Involuntary Commitment
A156: Record Medical Request
A157: Remove a Driver
A158: Reversal
A159: Review Customer Record
A160: Review Hearing Payments
A161: Review NSO Compliance
A162: Review OOS License In
A163: Review Pending Events
A164: Review Restrictions
A165: Review SBTS application
A166: S2S
A167: Schedule Hearing - Adjudication Officer/Hearing Officer
A168: Schedule Hearing - II
A169: Schedule Hearing - SR
A170: School Bus Driver Qualifications
A171: School Bus Driver Review
A172: Send Notification
A173: Skill Test Document Verification
A174: SR Hearing
A175: Stop Issuance Removal
A176: Suspension - Add
A177: Suspension - Change
A178: Suspension - Delete
A179: Suspension - Inquire
A180: Suspension - SR
A181: System Administration - Correspondence
A182: System Administration - Fees
A183: Ten Year Conviction Report
A184: Third Party Examiner Audit
A185: Third Party Examiner CDL Skills Training
A186: Third Party Examiner Observation/Audit
A187: Third Party Testing Program – Eligibility & Certification
A188: Transfer
A189: Troubleshoot issues
A190: Update CDL Medical Certification
A191: Update Customer Record
A192: Update Driver TNS Record
A193: Update TNS
A194: Verify Legal Presence
A195: View Ad Hoc Reports
A196: View Company Data
A197: View Customer Record
A198: View Driver Convictions
A199: View Driver Correspondence
A200: View Driver Employment History
... 10 more rows

Sheet SADLS Business Capability Model (hidden)
A1: Level 0 | B1: Level 1 | C1: Level 2 | D1: Level 3 | E1: Compound Column | F1: Definition | G1: Notes | H1: Story Count
A2: Manage Customer Interactions | B2: Manage Customer Records | C2: Create New Record | E2: =IF(LEN(D2)>0,TRIM(CONCATENATE(B2,"-",C2,"-",D2)),"") ->  | F2: Setting up a new customer record and capturing all relevant details initially available (e.g., primary/secondary address, phone, email, etc.). Initial record information may also include details regarding applications, licenses, and other transactional data. | G2: Changed the language here from Customer Account -> Customer Record. Removed Non-SADLS info and To-Be Information | H2: =IF(LEN(D2)=0,"",COUNTIF(User_Stories!$I$1:$I$800,"=" & IF(LEN(E2) > 5,E2,"zzzz"))) -> 
B3: Manage Customer Records | C3: Create New Record | D3: Capture Contact Information | E3: =IF(LEN(D3)>0,TRIM(CONCATENATE(B3,"-",C3,"-",D3)),"") -> Manage Customer Records-Create New Record-Capture Contact Information | F3: To create a new record DMV must collect standard contact information regarding the contact such as primary/secondary address, phone, email. | H3: =IF(LEN(D3)=0,"",COUNTIF(User_Stories!$I$1:$I$800,"=" & IF(LEN(E3) > 5,E3,"zzzz"))) -> 2
B4: Manage Customer Records | C4: Create New Record | D4: Capture Personal Information | E4: =IF(LEN(D4)>0,TRIM(CONCATENATE(B4,"-",C4,"-",D4)),"") -> Manage Customer Records-Create New Record-Capture Personal Information | F4: To create a new record DMV must collect personal information regarding the contact such as height, hair color, etc. | H4: =IF(LEN(D4)=0,"",COUNTIF(User_Stories!$I$1:$I$800,"=" & IF(LEN(E4) > 5,E4,"zzzz"))) -> 1
C5: Validate Customer Information | F5: Confirming the authenticity and accuracy of customer record information, based on review of documentation provided by the customer and manual and automated checks of records provided by external sources. | G5: Changed the language from Customer Account to Customer Record | H5: =IF(LEN(D5)=0,"",COUNTIF(User_Stories!$I$1:$I$800,"=" & IF(LEN(E5) > 5,E5,"zzzz"))) -> 
B6: Manage Customer Records | C6: Validate Customer Information | D6: Confirm Accuracy of Customer Information | E6: Manage Customer Records-Validate Customer Information-Confirm Accuracy of Customer Information | F6: Confirm that the information entered into the system (regardless of who it was entered by) was typed accurately and meets DMV entry standards | H6: =IF(LEN(D6)=0,"",COUNTIF(User_Stories!$I$1:$I$800,"=" & IF(LEN(E6) > 5,E6,"zzzz"))) -> 4
B7: Manage Customer Records | C7: Validate Customer Information | D7: Review Documentation for Authenticity | E7: Manage Customer Records-Validate Customer Information-Review Documentation for Authenticity | F7: Review Documentation to verify that Customer information into the system was entered properly and accurately. | H7: =IF(LEN(D7)=0,"",COUNTIF(User_Stories!$I$1:$I$800,"=" & IF(LEN(E7) > 5,E7,"zzzz"))) -> 1
B8: Manage Customer Records | C8: Validate Customer Information | D8: Conduct External Checks | E8: Manage Customer Records-Validate Customer Information-Conduct External Checks | F8: Conduct any automated checks available to ensure information is entered correctly and accurately (e.g., Address validation, SSN, Validation of Lawful Status, and formatted properly) | H8: =IF(LEN(D8)=0,"",COUNTIF(User_Stories!$I$1:$I$800,"=" & IF(LEN(E8) > 5,E8,"zzzz"))) -> 4
C9: Manage Duplicate Records | F9: Identifying duplicate record information and merging correct record details into a single accurate customer record. | G9: Changed the language from Customer Account to Customer Record | H9: =IF(LEN(D9)=0,"",COUNTIF(User_Stories!$I$1:$I$800,"=" & IF(LEN(E9) > 5,E9,"zzzz"))) -> 
B10: Manage Customer Records | C10: Manage Duplicate Records | D10: Identify Duplicate Record | E10: Manage Customer Records-Manage Duplicate Records-Identify Duplicate Record | F10: Run standard reports using name, address, birthdate and other identifying information in the system to find and eliminate a duplicate record | G10: Changed the language from Customer Account to Customer Record | H10: =IF(LEN(D10)=0,"",COUNTIF(User_Stories!$I$1:$I$800,"=" & IF(LEN(E10) > 5,E10,"zzzz"))) -> 4
B11: Manage Customer Records | C11: Manage Duplicate Records | D11: Identify Target Record | E11: Manage Customer Records-Manage Duplicate Records-Identify Target Record | F11: Run standard search or process to find target record where information should be consolidated | H11: =IF(LEN(D11)=0,"",COUNTIF(User_Stories!$I$1:$I$800,"=" & IF(LEN(E11) > 5,E11,"zzzz"))) -> 1
B12: Manage Customer Records | C12: Manage Duplicate Records | D12: Merge Records | E12: Manage Customer Records-Manage Duplicate Records-Merge Records | F12: Merge information from duplicate record to target record based on business rules and user action. (When merge is completed the record is removed from the system) | H12: =IF(LEN(D12)=0,"",COUNTIF(User_Stories!$I$1:$I$800,"=" & IF(LEN(E12) > 5,E12,"zzzz"))) -> 3
B13: Manage Customer Records | C13: Manage Duplicate Records | D13: Transfer Record Data | E13: Manage Customer Records-Manage Duplicate Records-Transfer Record Data | F13: Transferring certain record information from one record to another while keeping both records intact within the system | G13: Updated information to reflect that Transfer keeps the Record | H13: =IF(LEN(D13)=0,"",COUNTIF(User_Stories!$I$1:$I$800,"=" & IF(LEN(E13) > 5,E13,"zzzz"))) -> 2
B14: Manage Customer Records | C14: Manage Duplicate Records | D14: Inactivate Duplicate Record | E14: Manage Customer Records-Manage Duplicate Records-Inactivate Duplicate Record | F14: Inactivate or remove the duplicate record after merge is completed. Once the record is removed it should no longer be searchable using a standard user search screen. | G14: Added the definition. | H14: =IF(LEN(D14)=0,"",COUNTIF(User_Stories!$I$1:$I$800,"=" & IF(LEN(E14) > 5,E14,"zzzz"))) -> 1
C15: Maintain Records | F15: Providing ongoing updates to a customer record, including changes in contact information, addition/deletion of registered vehicles, addition/removal of licensed drivers in a household, updates in liability insurance information, changes in license and/or registration renewal status, etc. | G15: Changed from Account to Record | H15: =IF(LEN(D15)=0,"",COUNTIF(User_Stories!$I$1:$I$800,"=" & IF(LEN(E15) > 5,E15,"zzzz"))) -> 
B16: Manage Customer Records | C16: Maintain Records | D16: View Contact, Personal, Driver, and Other Information | E16: Manage Customer Records-Maintain Records-View Contact, Personal, Driver, and Other Information | F16: Allow user with appropriate permissions to view standard information available on a motor vehicle record | G16: Account -> Record in Definition | H16: =IF(LEN(D16)=0,"",COUNTIF(User_Stories!$I$1:$I$800,"=" & IF(LEN(E16) > 5,E16,"zzzz"))) -> 15
B17: Manage Customer Records | C17: Maintain Records | D17: Update Contact, Personal, Driver, and Other Information | E17: Manage Customer Records-Maintain Records-Update Contact, Personal, Driver, and Other Information | F17: Allow user with appropriate permissions to update standard information available on a motor vehicle record | G17: Account -> Record in Definition | H17: =IF(LEN(D17)=0,"",COUNTIF(User_Stories!$I$1:$I$800,"=" & IF(LEN(E17) > 5,E17,"zzzz"))) -> 27
B18: Manage Customer Records | C18: Maintain Records | D18: Print Contact, Personal, Driver, and Other Information | E18: Manage Customer Records-Maintain Records-Print Contact, Personal, Driver, and Other Information | F18: Allow user with appropriate permissions to print information from the motor vehicle record | G18: Added 3/19/2020 | H18: =IF(LEN(D18)=0,"",COUNTIF(User_Stories!$I$1:$I$800,"=" & IF(LEN(E18) > 5,E18,"zzzz"))) -> 3
B19: Manage Customer Records | C19: Maintain Records | D19: Generate Correspondence | E19: Manage Customer Records-Maintain Records-Generate Correspondence | F19: Allow user with appropriate permissions to generate correspondence utilizing information from the motor vehicle record | G19: Added 3/19/2020 | H19: =IF(LEN(D19)=0,"",COUNTIF(User_Stories!$I$1:$I$800,"=" & IF(LEN(E19) > 5,E19,"zzzz"))) -> 7
B20: Manage Customer Records | C20: Maintain Records | D20: Associate Records with TNS | E20: Manage Customer Records-Maintain Records-Associate Records with TNS | F20: Allow user with appropriate permissions to associate employee driver records with a company via the Transit Notification System (TNS) | H20: =IF(LEN(D20)=0,"",COUNTIF(User_Stories!$I$1:$I$800,"=" & IF(LEN(E20) > 5,E20,"zzzz"))) -> 23
A21: Manage Driver Services | B21: Verify Identities | C21: Collect Customer Documents | F21: Collecting application details and all supporting documentation required by the DMV for an individual to obtain or renew an operator’s license or ID. Documents may include a social security card, US passport, Visa or permanent record card, birth certificate, DL from another state, W-2 statements, etc.. Customer records may also include results from vision, traffic sign and driving tests, graduated driving license records, etc. | G21: Leaving these Level 3s in for now, but believe the team said that they don't log this in SADLS. | H21: =IF(LEN(D21)=0,"",COUNTIF(User_Stories!$I$1:$I$800,"=" & IF(LEN(E21) > 5,E21,"zzzz"))) -> 
B22: Verify Identities | C22: Collect Customer Documents | D22: Record Verification of Social Security Card | E22: Verify Identities -Collect Customer Documents-Record Verification of Social Security Card | F22: Proving the individual has a Social Security Number is a step in verifying identity. Collecting a Social Security Card is one document that will confirm. Alternate documents include a 1099 Tax Form, W-2 Form with name and Full SSN, Payroll record with name and FULL SSN, DD-214 (Not acceptable for Real ID), Social Security Document (Not Acceptable for Real ID), Military record reflecting SSN (Not acceptable for Real ID), or Medicaid or Medicare card reflecting SSN (Not acceptable for Real ID) | H22: =IF(LEN(D22)=0,"",COUNTIF(User_Stories!$I$1:$I$800,"=" & IF(LEN(E22) > 5,E22,"zzzz"))) -> 1
B23: Verify Identities | C23: Collect Customer Documents | D23: Record Verification of Valid Passport | E23: Verify Identities -Collect Customer Documents-Record Verification of Valid Passport | F23: Collecting a valid and unexpired passport is acceptable to prove age and identity. (Acceptable for Real ID) | H23: =IF(LEN(D23)=0,"",COUNTIF(User_Stories!$I$1:$I$800,"=" & IF(LEN(E23) > 5,E23,"zzzz"))) -> 1
B24: Verify Identities | C24: Collect Customer Documents | D24: Record Verification of Valid Unexpired Real Id | E24: Verify Identities -Collect Customer Documents-Record Verification of Valid Unexpired Real Id | F24: Collecting a valid and unexpired REAL ID is acceptable to prove age and identity. | H24: =IF(LEN(D24)=0,"",COUNTIF(User_Stories!$I$1:$I$800,"=" & IF(LEN(E24) > 5,E24,"zzzz"))) -> 1
B25: Verify Identities | C25: Collect Customer Documents | D25: Record Verification of Motor Vehicle Drivers Card | E25: Verify Identities -Collect Customer Documents-Record Verification of Motor Vehicle Drivers Card | F25: Collecting a certified or non-certified NC Motor Vehicle Record or Certified Out of State Motor vehicle record is acceptable to prove age and identity but not acceptable for REAL ID. | H25: =IF(LEN(D25)=0,"",COUNTIF(User_Stories!$I$1:$I$800,"=" & IF(LEN(E25) > 5,E25,"zzzz"))) -> 1
B26: Verify Identities | C26: Collect Customer Documents | D26: Record Verification of Certified Birth Certificate | E26: Verify Identities -Collect Customer Documents-Record Verification of Certified Birth Certificate | F26: Collecting a Birth Certificate meets the requirements proving age and identity and is acceptable for Real ID. | H26: =IF(LEN(D26)=0,"",COUNTIF(User_Stories!$I$1:$I$800,"=" & IF(LEN(E26) > 5,E26,"zzzz"))) -> 1
B27: Verify Identities | C27: Collect Customer Documents | D27: Record Verification of U.S. Consular Report | E27: Verify Identities -Collect Customer Documents-Record Verification of U.S. Consular Report | F27: Collecting a U.S. Consular Report meets the requirements proving age and identity and is acceptable for Real ID. | H27: =IF(LEN(D27)=0,"",COUNTIF(User_Stories!$I$1:$I$800,"=" & IF(LEN(E27) > 5,E27,"zzzz"))) -> 1
B28: Verify Identities | C28: Collect Customer Documents | D28: Record Verification of North Carolina Limited Driving Privilege | E28: Verify Identities -Collect Customer Documents-Record Verification of North Carolina Limited Driving Privilege | F28: Collecting a North Carolina Limited Driving privilege issued by a NC Court and not expired for more than one year can prove age and identity but is not acceptable for Real ID | H28: =IF(LEN(D28)=0,"",COUNTIF(User_Stories!$I$1:$I$800,"=" & IF(LEN(E28) > 5,E28,"zzzz"))) -> 1
B29: Verify Identities | C29: Collect Customer Documents | D29: Record Verification of Other Documents Validating Identity | E29: Verify Identities -Collect Customer Documents-Record Verification of Other Documents Validating Identity | F29: Collecting other valid documents are acceptable to prove age and identity. (e.g., unexpired documents issued by the U.S. Dept of Homeland Security, U.S. Citizenship and Immigration Services) but are not acceptable for Real ID. | H29: =IF(LEN(D29)=0,"",COUNTIF(User_Stories!$I$1:$I$800,"=" & IF(LEN(E29) > 5,E29,"zzzz"))) -> 1
C30: Validate NC Residency | F30: Confirming that an individual requesting an NC operator’s license or ID currently lives in a residence in North Carolina. | H30: =IF(LEN(D30)=0,"",COUNTIF(User_Stories!$I$1:$I$800,"=" & IF(LEN(E30) > 5,E30,"zzzz"))) -> 
B31: Verify Identities | C31: Validate NC Residency | D31: Validate Customer Address | E31: Verify Identities -Validate NC Residency-Validate Customer Address | F31: Utilize the Finalist interface to validate and format the address in a Standard Format. If address is not found, user has the opportunity to override and continue address entry | H31: =IF(LEN(D31)=0,"",COUNTIF(User_Stories!$I$1:$I$800,"=" & IF(LEN(E31) > 5,E31,"zzzz"))) -> 11
C32: Validate Lawful Status | F32: Confirming that the individual requesting an operator’s license or ID has provided authenticated documentation to validate his/her status as a US citizen or an alien who has been lawfully admitted for permanent or temporary residence in the United States. | H32: =IF(LEN(D32)=0,"",COUNTIF(User_Stories!$I$1:$I$800,"=" & IF(LEN(E32) > 5,E32,"zzzz"))) -> 
B33: Verify Identities | C33: Validate Lawful Status | D33: Validate Consular Report of Birth Abroad | E33: Verify Identities -Validate Lawful Status-Validate Consular Report of Birth Abroad | F33: Validate lawful status for those that are not US Citizens by reviewing a Consular Report of Birth Abroad. (Also valid for REAL ID) | H33: =IF(LEN(D33)=0,"",COUNTIF(User_Stories!$I$1:$I$800,"=" & IF(LEN(E33) > 5,E33,"zzzz"))) -> 1
B34: Verify Identities | C34: Validate Lawful Status | D34: Validate Permanent Resident Card | E34: Verify Identities -Validate Lawful Status-Validate Permanent Resident Card | F34: Validate lawful status for those that are not US Citizens by reviewing a valid, unexpired Permanent Resident Card. (Acceptable for REAL ID) | H34: =IF(LEN(D34)=0,"",COUNTIF(User_Stories!$I$1:$I$800,"=" & IF(LEN(E34) > 5,E34,"zzzz"))) -> 1
B35: Verify Identities | C35: Validate Lawful Status | D35: Validate Employment Authorization Document | E35: Verify Identities-Validate Lawful Status-Validate Employment Authorization Document | F35: Validate lawful status for those that are not US Citizens by reviewing a valid active employment authorization document. (Acceptable for REAL ID) | H35: =IF(LEN(D35)=0,"",COUNTIF(User_Stories!$I$1:$I$800,"=" & IF(LEN(E35) > 5,E35,"zzzz"))) -> 1
B36: Verify Identities | C36: Validate Lawful Status | D36: Validate Other Acceptable Documentation | E36: Verify Identities-Validate Lawful Status-Validate Other Acceptable Documentation | F36: Validate lawful status for those that are not US Citizens by reviewing other acceptable documentation such as a Valid unexpired foreign passport accompanied by a valid, unexpired U.S. visa and I-94 Arrival/Departure Record Report (Acceptable for REAL ID), Form N-550 or Form N-570 (Acceptable for REAL ID), Form N-560 or N-561 (Acceptable for REAL ID) The following documents are accepted for lawful status but are not accepted from a standpoint of REAL ID: Machine Readable Immigrant Visa, Temporary I-551 stamp on I-94 or passport, I 327 Re-Entry Permit accompanied by supporting immigration documentation, I-94 Arrival/Departure Record, I-20 Certificate of Eligibility Student Status, DS-2019 Certificate of Eligibility for Exchange Visitor, I571 refugee travel document, I797 Notice of Action Receipt notice, etc. | H36: =IF(LEN(D36)=0,"",COUNTIF(User_Stories!$I$1:$I$800,"=" & IF(LEN(E36) > 5,E36,"zzzz"))) -> 1
C37: Conduct External Checks | F37: Checking with other states to determine if an individual applying for or holding an NC DL or ID maintains licenses in other states. External checks with AAMVA or with federal and state authorities may also be used to identify problem drivers, obtain an individual’s prior driving records (e.g., CDL skills tests) or to validate documentation or lawful status track. | H37: =IF(LEN(D37)=0,"",COUNTIF(User_Stories!$I$1:$I$800,"=" & IF(LEN(E37) > 5,E37,"zzzz"))) -> 
B38: Verify Identities | C38: Conduct External Checks | D38: Conduct AAMVA S2S Check | E38: Verify Identities-Conduct External Checks-Conduct AAMVA S2S Check | F38: Conduct external “State 2 State” and AAMVA checks to verify identity. | H38: =IF(LEN(D38)=0,"",COUNTIF(User_Stories!$I$1:$I$800,"=" & IF(LEN(E38) > 5,E38,"zzzz"))) -> 1
B39: Verify Identities | C39: Conduct External Checks | D39: Conduct NDR - State of Record Check | E39: Verify Identities-Conduct External Checks-Conduct NDR - State of Record Check | F39: Conduct NDR State of Record check to verify identity | H39: =IF(LEN(D39)=0,"",COUNTIF(User_Stories!$I$1:$I$800,"=" & IF(LEN(E39) > 5,E39,"zzzz"))) -> 1
B40: Verify Identities | C40: Conduct External Checks | D40: Conduct AOC/Criminal Record Check | E40: Verify Identities-Conduct External Checks-Conduct AOC/Criminal Record Check | F40: Interface with the Administrative Office of the Courts and successfully check the account holder's criminal record history | G40: Added line item and Definition | H40: =IF(LEN(D40)=0,"",COUNTIF(User_Stories!$I$1:$I$800,"=" & IF(LEN(E40) > 5,E40,"zzzz"))) -> 1
B41: Verify Identities | C41: Conduct External Checks | D41: Conduct SAVE/Alien Verification Check | E41: Verify Identities-Conduct External Checks-Conduct SAVE/Alien Verification Check | F41: Interface with SAVE (Alien Verification) System | G41: Added line item and Definition | H41: =IF(LEN(D41)=0,"",COUNTIF(User_Stories!$I$1:$I$800,"=" & IF(LEN(E41) > 5,E41,"zzzz"))) -> 5
B42: Verify Identities | C42: Conduct External Checks | D42: Conduct Checks of National Sex Offender Registry | E42: Verify Identities-Conduct External Checks-Conduct Checks of National Sex Offender Registry | F42: Interface with the National Sex Offender Registry | G42: Added line item and Definition | H42: =IF(LEN(D42)=0,"",COUNTIF(User_Stories!$I$1:$I$800,"=" & IF(LEN(E42) > 5,E42,"zzzz"))) -> 2
B43: Verify Identities | C43: Conduct External Checks | D43: Conduct AAMVA CDLIS Check | E43: Verify Identities-Conduct External Checks-Conduct AAMVA CDLIS Check | F43: Interface with CDLIS | G43: Added line item and Definition | H43: =IF(LEN(D43)=0,"",COUNTIF(User_Stories!$I$1:$I$800,"=" & IF(LEN(E43) > 5,E43,"zzzz"))) -> 1
B44: Verify Identities | C44: Conduct External Checks | D44: Conduct SSN Check | E44: Verify Identities-Conduct External Checks-Conduct SSN Check | F44: Interface with Social Security Administration to determine if the Social Security number the individual is valid. | G44: Added line item and Definition | H44: =IF(LEN(D44)=0,"",COUNTIF(User_Stories!$I$1:$I$800,"=" & IF(LEN(E44) > 5,E44,"zzzz"))) -> 1
B45: Verify Identities | C45: Conduct External Checks | D45: Conduct AAMVA PDPS Check | E45: Verify Identities-Conduct External Checks-Conduct AAMVA PDPS Check | F45: Interface with PDPS | G45: Added line item and Definition | H45: =IF(LEN(D45)=0,"",COUNTIF(User_Stories!$I$1:$I$800,"=" & IF(LEN(E45) > 5,E45,"zzzz"))) -> 1
B46: Verify Identities | C46: Conduct External Checks | D46: Conduct USCIS Check | E46: Verify Identities-Conduct External Checks-Conduct USCIS Check | F46: Interface with the United States Citizenship and Immigration Services Agency | H46: =IF(LEN(D46)=0,"",COUNTIF(User_Stories!$I$1:$I$800,"=" & IF(LEN(E46) > 5,E46,"zzzz"))) -> 2
A47: Manage Driver Services | B47: Validate Operator Qualifications | C47: Administer Vision Test | F47: Conducting simple eye tests to confirm that an applicant for an NC operator’s license (or renewal of a license) has the visual acuity to drive safely, including the ability to clearly view and interpret traffic signs, pavement markings and other traffic control devices. Applicants are asked to wear corrective lenses if needed to pass the vision test and vision restrictions are included on the operator’s license if required. | H47: =IF(LEN(D47)=0,"",COUNTIF(User_Stories!$I$1:$I$800,"=" & IF(LEN(E47) > 5,E47,"zzzz"))) -> 
B48: Validate Operator Qualifications | C48: Administer Vision Test | D48: Receive CTIMS Scores for CDL Applicants | E48: Validate Operator Qualifications-Administer Vision Test-Receive CTIMS Scores for CDL Applicants | F48: Receive CTIMS scores from vendor that conducts Commercial Driver testing. | G48: Added Record | H48: =IF(LEN(D48)=0,"",COUNTIF(User_Stories!$I$1:$I$800,"=" & IF(LEN(E48) > 5,E48,"zzzz"))) -> 2
B49: Validate Operator Qualifications | C49: Administer Knowledge Test | F49: Conducting a test to confirm that an applicant for an NC operator’s license has an acceptable level of understanding of motor vehicle laws and safe driving practices. These exams may be written or computer-based. | H49: =IF(LEN(D49)=0,"",COUNTIF(User_Stories!$I$1:$I$800,"=" & IF(LEN(E49) > 5,E49,"zzzz"))) -> 
B50: Validate Operator Qualifications | C50: Administer Knowledge Test | D50: Receive Knowledge Test Results from Vendor | E50: Validate Operator Qualifications-Administer Knowledge Test-Receive Knowledge Test Results from Vendor | F50: Successfully receive via interface the knowledge test results from vendor. | G50: Added Record | H50: =IF(LEN(D50)=0,"",COUNTIF(User_Stories!$I$1:$I$800,"=" & IF(LEN(E50) > 5,E50,"zzzz"))) -> 3
B51: Validate Operator Qualifications | C51: Administer Knowledge Test | D51: Record Knowledge Test Results | E51: Validate Operator Qualifications-Administer Knowledge Test-Record Knowledge Test Results | F51: Enable the operator to manually record knowledge test results. | G51: Added Record | H51: =IF(LEN(D51)=0,"",COUNTIF(User_Stories!$I$1:$I$800,"=" & IF(LEN(E51) > 5,E51,"zzzz"))) -> 1
C52: Manage Graduated Licenses | H52: =IF(LEN(D52)=0,"",COUNTIF(User_Stories!$I$1:$I$800,"=" & IF(LEN(E52) > 5,E52,"zzzz"))) -> 
B53: Validate Operator Qualifications | C53: Manage Graduated Licenses | D53: Record Receipt of Driver Eligibility Certificate | E53: Validate Operator Qualifications-Manage Graduated Licenses-Record Receipt of Driver Eligibility Certificate | F53: Recording the receipt of a Graduated License Driver's eligibility Certificate | H53: =IF(LEN(D53)=0,"",COUNTIF(User_Stories!$I$1:$I$800,"=" & IF(LEN(E53) > 5,E53,"zzzz"))) -> 1
B54: Validate Operator Qualifications | C54: Manage Graduated Licenses | D54: Document Driving Log Results | E54: Validate Operator Qualifications-Manage Graduated Licenses-Document Driving Log Results | F54: Documenting driving log results received by individual in the graduated license program | H54: =IF(LEN(D54)=0,"",COUNTIF(User_Stories!$I$1:$I$800,"=" & IF(LEN(E54) > 5,E54,"zzzz"))) -> 1
B55: Validate Operator Qualifications | C55: Manage Graduated Licenses | D55: Check Convictions/Infractions | E55: Validate Operator Qualifications-Manage Graduated Licenses-Check Convictions/Infractions | F55: Ensuring individual does not have any convictions or infractions that would prevent them from graduating to the next license level | H55: =IF(LEN(D55)=0,"",COUNTIF(User_Stories!$I$1:$I$800,"=" & IF(LEN(E55) > 5,E55,"zzzz"))) -> 1
B56: Validate Operator Qualifications | C56: Manage Graduated Licenses | D56: Update Permit Status Changes | E56: Validate Operator Qualifications-Manage Graduated Licenses-Update Permit Status Changes | F56: Modification of Permit Status, transitioning from one level to the next (or vice versa) | H56: =IF(LEN(D56)=0,"",COUNTIF(User_Stories!$I$1:$I$800,"=" & IF(LEN(E56) > 5,E56,"zzzz"))) -> 1
C57: Administer Driving Skills Test | H57: =IF(LEN(D57)=0,"",COUNTIF(User_Stories!$I$1:$I$800,"=" & IF(LEN(E57) > 5,E57,"zzzz"))) -> 
B58: Validate Operator Qualifications | C58: Administer Driving Skills Test | D58: Record Driver Skills Test Results | E58: Validate Operator Qualifications-Administer Driving Skills Test-Record Driver Skills Test Results | F58: Recording the results of a driver's skills test. | H58: =IF(LEN(D58)=0,"",COUNTIF(User_Stories!$I$1:$I$800,"=" & IF(LEN(E58) > 5,E58,"zzzz"))) -> 1
C59: Administer Traffic Signs Test | F59: Conducting a test to confirm that an applicant for an NC operator’s license can clearly interpret the meaning of traffic signs, signals and pavement markings. | H59: =IF(LEN(D59)=0,"",COUNTIF(User_Stories!$I$1:$I$800,"=" & IF(LEN(E59) > 5,E59,"zzzz"))) -> 
B60: Validate Operator Qualifications | C60: Administer Traffic Signs Test | D60: Record Traffic Signs Test Results | E60: Validate Operator Qualifications-Administer Traffic Signs Test-Record Traffic Signs Test Results | F60: Enable the operator to manually record Traffic Signs Test Results | G60: Added Record | H60: =IF(LEN(D60)=0,"",COUNTIF(User_Stories!$I$1:$I$800,"=" & IF(LEN(E60) > 5,E60,"zzzz"))) -> 1
C61: Validate Medical Qualifications | F61: Reviewing documentation from appropriate medical authorities to confirm that an applicant for an NC operator’s licenses (or current holder of a DL or CDL) is authorized to drive a motor vehicle. This authorization may include restrictions (e.g., daylight driving only). | H61: =IF(LEN(D61)=0,"",COUNTIF(User_Stories!$I$1:$I$800,"=" & IF(LEN(E61) > 5,E61,"zzzz"))) -> 
B62: Validate Operator Qualifications | C62: Validate Medical Qualificiations | D62: Record Medical Information | E62: Validate Operator Qualifications-Validate Medical Qualificiations-Record Medical Information | F62: Enable the operator to enter medical information manually | H62: =IF(LEN(D62)=0,"",COUNTIF(User_Stories!$I$1:$I$800,"=" & IF(LEN(E62) > 5,E62,"zzzz"))) -> 8
B63: Maintain Third Party Examiner | C63: Retain and Manage Third Party Examiner Information | H63: =IF(LEN(D63)=0,"",COUNTIF(User_Stories!$I$1:$I$800,"=" & IF(LEN(E63) > 5,E63,"zzzz"))) -> 
B64: Maintain Third Party Examiner | C64: Retain and Manage Third Party Examiner Information | D64: Maintain List | E64: Maintain Third Party Examiner-Retain and Manage Third Party Examiner Information-Maintain List | F64: Maintaining an accurate list of Third Party CDL Examiners | H64: =IF(LEN(D64)=0,"",COUNTIF(User_Stories!$I$1:$I$800,"=" & IF(LEN(E64) > 5,E64,"zzzz"))) -> 5
B65: Maintain Third Party Examiner | C65: Retain and Manage Third Party Examiner Information | D65: Manage Audit | E65: Maintain Third Party Examiner-Retain and Manage Third Party Examiner Information-Manage Audit | F65: Manage Schedule and Tracking of Audit Results | H65: =IF(LEN(D65)=0,"",COUNTIF(User_Stories!$I$1:$I$800,"=" & IF(LEN(E65) > 5,E65,"zzzz"))) -> 5
A66: Manage Driver Services | B66: Manage Credentials | C66: Establish Credentials | F66: Determining type of credential to be issued to a customer, including identification of endorsements and restrictions. | H66: =IF(LEN(D66)=0,"",COUNTIF(User_Stories!$I$1:$I$800,"=" & IF(LEN(E66) > 5,E66,"zzzz"))) -> 
B67: Manage Credentials | C67: Establish Credentials | D67: Check Status | E67: Manage Credentials-Establish Credentials-Check Status | F67: If the individual has an existing record, SADLS automatically checks the status of the record to ensure compliance with agency rules procedures. | G67: Added Definition | H67: =IF(LEN(D67)=0,"",COUNTIF(User_Stories!$I$1:$I$800,"=" & IF(LEN(E67) > 5,E67,"zzzz"))) -> 2
B68: Manage Credentials | C68: Establish Credentials | D68: Record Correct Credential Type | E68: Manage Credentials-Establish Credentials-Record Correct Credential Type | F68: Properly determine and record the Type and Class of the Credential being established. (e.g., Regular Class A, Regular Class B, Regular Class C, CDL Class A, CDL Class B, CDL Class C) | H68: =IF(LEN(D68)=0,"",COUNTIF(User_Stories!$I$1:$I$800,"=" & IF(LEN(E68) > 5,E68,"zzzz"))) -> 3
B69: Manage Credentials | C69: Establish Credentials | D69: Capture Driver Log Information | E69: Manage Credentials-Establish Credentials-Capture Driver Log Information | F69: Allow operator to capture driver log information to ensure compliance with driver log rules | G69: Added line item and Definition | H69: =IF(LEN(D69)=0,"",COUNTIF(User_Stories!$I$1:$I$800,"=" & IF(LEN(E69) > 5,E69,"zzzz"))) -> 1
B70: Manage Credentials | C70: Establish Credentials | D70: Review Driver Logs | E70: Manage Credentials-Establish Credentials-Review Driver Logs | F70: System electronically checks number of days if user transitioning from CDL permit to full license | G70: Added line item and Definition | H70: =IF(LEN(D70)=0,"",COUNTIF(User_Stories!$I$1:$I$800,"=" & IF(LEN(E70) > 5,E70,"zzzz"))) -> 2
B71: Manage Credentials | C71: Establish Credentials | D71: Identify and Record Endorsements | E71: =IF(LEN(D71)>0,TRIM(CONCATENATE(B71,"-",C71,"-",D71)),"") -> Manage Credentials-Establish Credentials-Identify and Record Endorsements | F71: Properly determine and record the correct endorsement to be established/added to the credential (e.g., Passenger Transport Endorsement, School Bus/Passenger Transport Combo Endorsement) | H71: =IF(LEN(D71)=0,"",COUNTIF(User_Stories!$I$1:$I$800,"=" & IF(LEN(E71) > 5,E71,"zzzz"))) -> 10
B72: Manage Credentials | C72: Establish Credentials | D72: Record Organ Donor Preference | E72: Manage Credentials-Establish Credentials-Record Organ Donor Preference | F72: North Carolina applicants can register as an organ donor and have their license reflect their donor status | H72: =IF(LEN(D72)=0,"",COUNTIF(User_Stories!$I$1:$I$800,"=" & IF(LEN(E72) > 5,E72,"zzzz"))) -> 2
B73: Manage Credentials | C73: Establish Credentials | D73: Verify Driver Meets Eligibility Requirements | E73: Manage Credentials-Establish Credentials-Verify Driver Meets Eligibility Requirements | F73: A personal or commercial driver applicant must meet certain requirements related to past driving record, medical and physical requirements, as well as training and testing requirements established for the license. | H73: =IF(LEN(D73)=0,"",COUNTIF(User_Stories!$I$1:$I$800,"=" & IF(LEN(E73) > 5,E73,"zzzz"))) -> 34
B74: Manage Credentials | C74: Establish Credentials | D74: Verify Other CDL Operator Meets Eligibility Requirements | E74: Manage Credentials-Establish Credentials-Verify Other CDL Operator Meets Eligibility Requirements | F74: A commercial CDL applicant must meet certain requirements related to past driving record, medical and physical requirements, as well as training and testing requirements established for the license. | H74: =IF(LEN(D74)=0,"",COUNTIF(User_Stories!$I$1:$I$800,"=" & IF(LEN(E74) > 5,E74,"zzzz"))) -> 8
B75: Manage Credentials | C75: Establish Credentials | D75: Record Medical Waivers | E75: Manage Credentials-Establish Credentials-Record Medical Waivers | F75: Record temporary relief from medical requirements for a CDL applicant for up to 3 months, as regulatred and authorized by the FMCSA | H75: =IF(LEN(D75)=0,"",COUNTIF(User_Stories!$I$1:$I$800,"=" & IF(LEN(E75) > 5,E75,"zzzz"))) -> 2
B76: Manage Credentials | C76: Establish Credentials | D76: Record Medical Exemptions | E76: Manage Credentials-Establish Credentials-Record Medical Exemptions | F76: Record relief from medical requirements for a CDL applicant for up to 2 years, as regulatred and authorized by the FMCSA | H76: =IF(LEN(D76)=0,"",COUNTIF(User_Stories!$I$1:$I$800,"=" & IF(LEN(E76) > 5,E76,"zzzz"))) -> 2
B77: Manage Credentials | C77: Establish Credentials | D77: Renew Bus Driver Certification | E77: Manage Credentials-Establish Credentials-Renew Bus Driver Certification | F77: Renew Bus Driver Certification based on requirements being met. | H77: =IF(LEN(D77)=0,"",COUNTIF(User_Stories!$I$1:$I$800,"=" & IF(LEN(E77) > 5,E77,"zzzz"))) -> 7
C78: Authorize Issuance of Initial TDC/TIC/DL/ID | F78: Authorize the Issuance of a Temporary Driving Certificate (TDC), Temporary Identification Certificate (TIC) to a customer at a DMV office to serve as his/her credentials until a permanent (plastic) credential is mailed to the customer. | H78: =IF(LEN(D78)=0,"",COUNTIF(User_Stories!$I$1:$I$800,"=" & IF(LEN(E78) > 5,E78,"zzzz"))) -> 
B79: Manage Credentials | C79: Authorize Issuance of Initial TDC/TIC/DL/ID | D79: Issue TDC/TIC | E79: Manage Credentials-Authorize Issuance of Initial TDC/TIC/DL/ID-Issue TDC/TIC | F79: To prevent identity theft and fraud, the N.C. Division of Motor Vehicles creates and mails driver licenses, learner permits and IDs from a central location in an unmarked envelope. Drivers receive a 60-day Temporary Driving certificate and their license or permit should arrive before expiration. | H79: =IF(LEN(D79)=0,"",COUNTIF(User_Stories!$I$1:$I$800,"=" & IF(LEN(E79) > 5,E79,"zzzz"))) -> 3
B80: Manage Credentials | C80: Authorize Issuance of Initial TDC/TIC/DL/ID | D80: Renew TDC/TIC | E80: Manage Credentials-Authorize Issuance of Initial TDC/TIC/DL/ID-Renew TDC/TIC | F80: Authorize the renewal of a temporary driving certificate when certain conditions warrant | H80: =IF(LEN(D80)=0,"",COUNTIF(User_Stories!$I$1:$I$800,"=" & IF(LEN(E80) > 5,E80,"zzzz"))) -> 4
B81: Manage Credentials | C81: Authorize Issuance of Initial TDC/TIC/DL/ID | D81: Issuance of DL/ID Card | E81: Manage Credentials-Authorize Issuance of Initial TDC/TIC/DL/ID-Issuance of DL/ID Card | F81: Authorize the DMV's card production vendor to issue a driver license (DL) to replace the TDC or TIC previously issued to a customer. | H81: =IF(LEN(D81)=0,"",COUNTIF(User_Stories!$I$1:$I$800,"=" & IF(LEN(E81) > 5,E81,"zzzz"))) -> 6
C82: Authorize DL/ID Renewal | F82: Renewing an individual’s DL/ID credentials by the expiration date noted in DMV records and on the physical DL/ID card. DL/ID renewal may require the DMV to acquire a more recent facial image of the customer and/or to administer tests to check the customer’s vision or cognitive functioning. | H82: =IF(LEN(D82)=0,"",COUNTIF(User_Stories!$I$1:$I$800,"=" & IF(LEN(E82) > 5,E82,"zzzz"))) -> 
B83: Manage Credentials | C83: Authorize DL/ID Renewal | D83: Administer Required Tests | E83: Manage Credentials-Authorize DL/ID Renewal-Administer Required Tests | F83: Administer written, vision or cognitive testing as is necessary to ensure individual is capable of operating a motor vehicle. | H83: =IF(LEN(D83)=0,"",COUNTIF(User_Stories!$I$1:$I$800,"=" & IF(LEN(E83) > 5,E83,"zzzz"))) -> 11
B84: Manage Credentials | C84: Authorize DL/ID Renewal | D84: Update Record | E84: Manage Credentials-Authorize DL/ID Renewal-Update Record | F84: Update the expiration date, status, and any endorsements on the licensees credentials. | H84: =IF(LEN(D84)=0,"",COUNTIF(User_Stories!$I$1:$I$800,"=" & IF(LEN(E84) > 5,E84,"zzzz"))) -> 4
B85: Manage Credentials | C85: Authorize DL/ID Renewal | D85: Authorize DL/ID Card Renewal | E85: Manage Credentials-Authorize DL/ID Renewal-Authorize DL/ID Card Renewal | F85: Authorize the DMV's card vendor to produce and mail a renewed DL/ID card to a customer | H85: =IF(LEN(D85)=0,"",COUNTIF(User_Stories!$I$1:$I$800,"=" & IF(LEN(E85) > 5,E85,"zzzz"))) -> 1
C86: Authorize Issuance of Duplicate DL/ID | F86: Providing a DMV customer with a duplicate copy of his/her DL/ID credential to replace copies that may have been lost, stolen or damaged. | H86: =IF(LEN(D86)=0,"",COUNTIF(User_Stories!$I$1:$I$800,"=" & IF(LEN(E86) > 5,E86,"zzzz"))) -> 
B87: Manage Credentials | C87: Authorize Issuance of Duplicate DL/ID | D87: Authorize Issuance of Duplicate DL/ID Card | E87: Manage Credentials-Authorize Issuance of Duplicate DL/ID-Authorize Issuance of Duplicate DL/ID Card | F87: Review DMV customer record and confirm authorization for card vendor to issue a duplicate DL or Identification | H87: =IF(LEN(D87)=0,"",COUNTIF(User_Stories!$I$1:$I$800,"=" & IF(LEN(E87) > 5,E87,"zzzz"))) -> 11
C88: Record DL Restrictions | F88: Documenting any driving restrictions attached to an individual’s DL – both in DMV records and on the physical DL card. | H88: =IF(LEN(D88)=0,"",COUNTIF(User_Stories!$I$1:$I$800,"=" & IF(LEN(E88) > 5,E88,"zzzz"))) -> 
B89: Manage Credentials | C89: Record DL Restrictions | D89: Record all DL Restrictions in System | E89: Manage Credentials-Record DL Restrictions-Record all DL Restrictions in System | F89: Record all Driver’s license restrictions in the system of record | H89: =IF(LEN(D89)=0,"",COUNTIF(User_Stories!$I$1:$I$800,"=" & IF(LEN(E89) > 5,E89,"zzzz"))) -> 2
B90: Manage Credentials | C90: Record DL Restrictions | D90: Print DL Restrictions | E90: Manage Credentials-Record DL Restrictions-Print DL Restrictions | F90: Print any Driver’s license restrictions code on physical license and temporary certificate issued L - NO AIR BRAKES Z - NO FULL AIR BRAKE EQUIPPED P - NO PASSNGER-CMV 12 - DRIVE 6AM-8PM ONLY 0 - NONE 13 - AUTO TRANSMISSION 1 - CORRECTIVE LENS 2 - 45 MPH/NO INTERSTATE 3 - DAYLIGHT DRIVING ONLY 16 - GRAD LIC LEVEL 1 RESTRICTION 17 - GRAD LIC LEVEL 2 RESTRICTION 18 - NO PASSENGER 19 - BLOOD/ALCOHOL CONC. .04 20 - BAC .04/IGNITION INTERLOCK 21 - BLOOD/ALCOHOL CONC. .00 22 - BAC .00/IGNITION INTERLOCK 23 - IGNITION INTERLOCK ONLY M - PASSENGER CLASS B & C ONLY N - PASSENGER CLASS C ONLY K - INTRASTATE ONLY-CDL X - NO CARGO-CMV TANK E - NO MANUAL TRANSMISSION CMV 7 - OUTSIDE MIRRORS O - NO TRACTOR-TRAILER *9 - OTHER-AS SHOWN 10 - ACCOMPANIED BY CLASS DRIVER | G90: Just added all the restrictions in the definition instead of adding individual level 3 for each one. We can break out into story | H90: =IF(LEN(D90)=0,"",COUNTIF(User_Stories!$I$1:$I$800,"=" & IF(LEN(E90) > 5,E90,"zzzz"))) -> 7
B91: Manage Credentials | C91: Record DL Restrictions | D91: Remove DL Restrictions | E91: Manage Credentials-Record DL Restrictions-Remove DL Restrictions | F91: Remove Driver's license restrictions (individual or multiple) in the system of record | H91: =IF(LEN(D91)=0,"",COUNTIF(User_Stories!$I$1:$I$800,"=" & IF(LEN(E91) > 5,E91,"zzzz"))) -> 2
B92: Manage Credentials | C92: Produce and Mail Cards | D92: Conduct Verification/QA | E92: Manage Credentials-Produce and Mail Cards-Conduct Verification/QA | F92: Central Issuance confirms the accuracy of a customer’s demographic information prior to releasing a DL/ID card for production and mailing (e.g, facial recognition check, address verification, various national registry checks). | H92: =IF(LEN(D92)=0,"",COUNTIF(User_Stories!$I$1:$I$800,"=" & IF(LEN(E92) > 5,E92,"zzzz"))) -> 5
B93: Manage Credentials | C93: Produce and Mail Cards | D93: Track Card Issuance | E93: Manage Credentials-Produce and Mail Cards-Track Card Issuance | F93: Monitoring the status of a DL/ID (new/renewed/duplicate) from authorization and verification checks to production and mailing by the DMV's card vendor. | H93: =IF(LEN(D93)=0,"",COUNTIF(User_Stories!$I$1:$I$800,"=" & IF(LEN(E93) > 5,E93,"zzzz"))) -> 4
C94: Suspend DL | F94: Withdrawing an individual’s driving privilege for a specific time period until the terms of the suspension are fulfilled. DL suspensions may be processed for any of a number of reasons included driving while impaired, speeding, accumulation of points, etc. | H94: =IF(LEN(D94)=0,"",COUNTIF(User_Stories!$I$1:$I$800,"=" & IF(LEN(E94) > 5,E94,"zzzz"))) -> 
B95: Manage Credentials | C95: Suspend DL | D95: Suspend Drivers License - Defined Time Period | E95: Manage Credentials-Suspend DL-Suspend Drivers License - Defined Time Period | F95: When a suspension is enacted the suspension can be enacted for a defined time period. | H95: =IF(LEN(D95)=0,"",COUNTIF(User_Stories!$I$1:$I$800,"=" & IF(LEN(E95) > 5,E95,"zzzz"))) -> 5
B96: Manage Credentials | C96: Suspend DL | D96: Suspend Drivers License - Defined Conditions | E96: Manage Credentials-Suspend DL-Suspend Drivers License - Defined Conditions | F96: When a driver suspension is enacted the suspension can be based on defined conditions. | H96: =IF(LEN(D96)=0,"",COUNTIF(User_Stories!$I$1:$I$800,"=" & IF(LEN(E96) > 5,E96,"zzzz"))) -> 7
B97: Manage Credentials | C97: Suspend DL | D97: Modify Suspension | E97: Manage Credentials-Suspend DL-Modify Suspension | F97: Correcting a suspension made against the license or complying with a judicial order modifying the suspension or revocation. | H97: =IF(LEN(D97)=0,"",COUNTIF(User_Stories!$I$1:$I$800,"=" & IF(LEN(E97) > 5,E97,"zzzz"))) -> 3
B98: Manage Credentials | C98: Suspend DL | D98: Remove Suspension | E98: Manage Credentials-Suspend DL-Remove Suspension | F98: Removing a suspension made against the license or complying with a judicial order removing the suspension or revocation | H98: =IF(LEN(D98)=0,"",COUNTIF(User_Stories!$I$1:$I$800,"=" & IF(LEN(E98) > 5,E98,"zzzz"))) -> 7
C99: Revoke DL | F99: Terminating an individual’s driving privileges indefinitely and demanding that his/her physical DL be surrendered to the DMV. | H99: =IF(LEN(D99)=0,"",COUNTIF(User_Stories!$I$1:$I$800,"=" & IF(LEN(E99) > 5,E99,"zzzz"))) -> 
B100: Manage Credentials | C100: Revoke DL | D100: Demand Physical License Be Returned | E100: Manage Credentials-Revoke DL-Demand Physical License Be Returned | F100: Notify the individual that their driver’s license has been revoked and demand that the License or Identification be returned. | H100: =IF(LEN(D100)=0,"",COUNTIF(User_Stories!$I$1:$I$800,"=" & IF(LEN(E100) > 5,E100,"zzzz"))) -> 1
B101: Manage Credentials | C101: Revoke DL | D101: Collect License | E101: Manage Credentials-Revoke DL-Collect License | F101: Collect license from individual, when the credential is returned, NC-DMV will dispose of it according to laws and regulations established. | H101: =IF(LEN(D101)=0,"",COUNTIF(User_Stories!$I$1:$I$800,"=" & IF(LEN(E101) > 5,E101,"zzzz"))) -> 10
B102: Manage Credentials | C102: Revoke DL | D102: Receive Dropout Notice from School Authority | E102: Manage Credentials-Revoke DL-Receive Dropout Notice from School Authority | F102: Receive dropout notice from school authority that individual is no longer attending school. The Dropout Prevention/Driver’s License guidelines require that a driving permit or license be revoked when certain conditions are not met. | H102: =IF(LEN(D102)=0,"",COUNTIF(User_Stories!$I$1:$I$800,"=" & IF(LEN(E102) > 5,E102,"zzzz"))) -> 1
B103: Manage Credentials | C103: Revoke DL | D103: Execute Child Support Revoke | E103: Manage Credentials-Revoke DL-Execute Child Support Revoke | F103: Execute a Child Support revoke procedure when notification is received. | H103: =IF(LEN(D103)=0,"",COUNTIF(User_Stories!$I$1:$I$800,"=" & IF(LEN(E103) > 5,E103,"zzzz"))) -> 1
B104: Manage Credentials | C104: Revoke DL | D104: Record Revocation | E104: Manage Credentials-Revoke DL-Record Revocation | F104: When a credential is revoked, the driver’s license is electronically within the system to reflect the revoked status. (Status is updated) | H104: =IF(LEN(D104)=0,"",COUNTIF(User_Stories!$I$1:$I$800,"=" & IF(LEN(E104) > 5,E104,"zzzz"))) -> 1
B105: Manage Credentials | C105: Revoke DL | D105: Disqualify CDL License | E105: Manage Credentials-Revoke DL-Disqualify CDL License | F105: Disqualifying a CDL credential when a specific event occurs. | H105: =IF(LEN(D105)=0,"",COUNTIF(User_Stories!$I$1:$I$800,"=" & IF(LEN(E105) > 5,E105,"zzzz"))) -> 1
C106: Reinstate DL | F106: Reinstating an individual’s driving privileges once he/she satisfies eligibility requirements and any conditions or terms set forth in a hearing by the DMV. An individual will need to reapply for a DL once these eligibility requirements/conditions are met. | H106: =IF(LEN(D106)=0,"",COUNTIF(User_Stories!$I$1:$I$800,"=" & IF(LEN(E106) > 5,E106,"zzzz"))) -> 
B107: Manage Credentials | C107: Reinstate DL | D107: Accept Reapplication | E107: Manage Credentials-Reinstate DL-Accept Reapplication | F107: After a driver’s license has been suspended, a reapplication must be submitted for the individual to reestablish their license or identification | H107: =IF(LEN(D107)=0,"",COUNTIF(User_Stories!$I$1:$I$800,"=" & IF(LEN(E107) > 5,E107,"zzzz"))) -> 1
B108: Manage Credentials | C108: Reinstate DL | D108: Verify Reinstatement Conditions Met | E108: Manage Credentials-Reinstate DL-Verify Reinstatement Conditions Met | F108: Prior to reinstating a credential, DMV personnel must verify that the conditions imposed for suspension have been met. | H108: =IF(LEN(D108)=0,"",COUNTIF(User_Stories!$I$1:$I$800,"=" & IF(LEN(E108) > 5,E108,"zzzz"))) -> 2
B109: Manage Credentials | C109: Reinstate DL | D109: Authorize Reinstated License | E109: Manage Credentials-Reinstate DL-Authorize Reinstated License | F109: Reissue license by issuing a temporary driver certificate and submitting record for license creation after individual has complied with appropriate suspension requirements | H109: =IF(LEN(D109)=0,"",COUNTIF(User_Stories!$I$1:$I$800,"=" & IF(LEN(E109) > 5,E109,"zzzz"))) -> 1
C110: Modify DL/ID | F110: Modifying a DL or ID by changing a status based on an event occuring. | H110: =IF(LEN(D110)=0,"",COUNTIF(User_Stories!$I$1:$I$800,"=" & IF(LEN(E110) > 5,E110,"zzzz"))) -> 
B111: Manage Credentials | C111: Modify DL/ID | D111: Change License Status | E111: Manage Credentials-Modify DL/ID-Change License Status | F111: Changing the individual’s DL credential status in DMV records (e.g., in instances where the customer dies or moves to another state). This can include cancelling or disqualifying the credential. | H111: =IF(LEN(D111)=0,"",COUNTIF(User_Stories!$I$1:$I$800,"=" & IF(LEN(E111) > 5,E111,"zzzz"))) -> 21
B112: Manage Credentials | C112: Modify DL/ID | D112: Change Identification Status | E112: Manage Credentials-Modify DL/ID-Change Identification Status | F112: Changing an individual’s Identification status in DMV records (e.g., in instances where the customer dies or moves to another state). | H112: =IF(LEN(D112)=0,"",COUNTIF(User_Stories!$I$1:$I$800,"=" & IF(LEN(E112) > 5,E112,"zzzz"))) -> 1
C113: Disable Record | H113: =IF(LEN(D113)=0,"",COUNTIF(User_Stories!$I$1:$I$800,"=" & IF(LEN(E113) > 5,E113,"zzzz"))) -> 
B114: Manage Credentials | C114: Disable Record | D114: Block Record | E114: Manage Credentials-Disable Record-Block Record | F114: Allow system user to block/stop to an account when it is determined that the user should not be allowed to immediately return the account to active. | H114: =IF(LEN(D114)=0,"",COUNTIF(User_Stories!$I$1:$I$800,"=" & IF(LEN(E114) > 5,E114,"zzzz"))) -> 6
B115: Manage Credentials | C115: Disable Record | D115: Unblock Record | E115: Manage Credentials-Disable Record-Unblock Record | F115: Allow system user to unblock account after a stop or block has been placed on the record | H115: =IF(LEN(D115)=0,"",COUNTIF(User_Stories!$I$1:$I$800,"=" & IF(LEN(E115) > 5,E115,"zzzz"))) -> 4
B116: Manage Credentials | C116: Disable Record | D116: Report Unpaid Balances | E116: =IF(LEN(D116)>0,TRIM(CONCATENATE(B116,"-",C116,"-",D116)),"") -> Manage Credentials-Disable Record-Report Unpaid Balances | F116: Allow system user to verify that accounts targeted for closing still have unpaid balances | H116: =IF(LEN(D116)=0,"",COUNTIF(User_Stories!$I$1:$I$800,"=" & IF(LEN(E116) > 5,E116,"zzzz"))) -> 1
B117: Manage Classes | C117: School Bus and Traffic Safety | E117: =IF(LEN(D117)>0,TRIM(CONCATENATE(B117,"-",C117,"-",D117)),"") ->  | H117: =IF(LEN(D117)=0,"",COUNTIF(User_Stories!$I$1:$I$800,"=" & IF(LEN(E117) > 5,E117,"zzzz"))) -> 
B118: Record School Bus and Traffic Safety Information | C118: Manage Classes | D118: Update Schedule | E118: Record School Bus and Traffic Safety Information-Manage Classes-Update Schedule | F118: Allow system user with appropriate permissions to update School and Bus Traffic Safety schedule | H118: =IF(LEN(D118)=0,"",COUNTIF(User_Stories!$I$1:$I$800,"=" & IF(LEN(E118) > 5,E118,"zzzz"))) -> 4
B119: Record School Bus and Traffic Safety Information | C119: Manage Classes | D119: Update Class Results | E119: Record School Bus and Traffic Safety Information-Manage Classes-Update Class Results | F119: Allow system user with appropriate permissions to update class results related to the School and Bus Traffic Safety classes | H119: =IF(LEN(D119)=0,"",COUNTIF(User_Stories!$I$1:$I$800,"=" & IF(LEN(E119) > 5,E119,"zzzz"))) -> 6
B120: Record School Bus and Traffic Safety Information | C120: Manage Classes | D120: Print Results | E120: Record School Bus and Traffic Safety Information-Manage Classes-Print Results | F120: Allow system user with appropriate permissions to print records related to the School and Bus Traffic Safety classes | H120: =IF(LEN(D120)=0,"",COUNTIF(User_Stories!$I$1:$I$800,"=" & IF(LEN(E120) > 5,E120,"zzzz"))) -> 2
B121: Record School Bus and Traffic Safety Information | C121: Track Accounts Receivable | D121: Record Fees | E121: Record School Bus and Traffic Safety Information-Track Accounts Receivable-Record Fees | F121: Allow system user with appropriate permissions to record fees related to the School and Bus Traffic Safety classes | H121: =IF(LEN(D121)=0,"",COUNTIF(User_Stories!$I$1:$I$800,"=" & IF(LEN(E121) > 5,E121,"zzzz"))) -> 4
A122: Conduct Regulatory and Enforcement Activities | B122: Conduct Criminal History Checks | F122: Comparing photographs of an individual with facial images maintained by the DMV (and in some instances, other states) to ascertain an individual’s identity and related personal information. | H122: =IF(LEN(D122)=0,"",COUNTIF(User_Stories!$I$1:$I$800,"=" & IF(LEN(E122) > 5,E122,"zzzz"))) -> 
C123: Review and Analyze Records | F123: Reviewing DMV records/files, as well as records obtained from external sources to support criminal history checks. | H123: =IF(LEN(D123)=0,"",COUNTIF(User_Stories!$I$1:$I$800,"=" & IF(LEN(E123) > 5,E123,"zzzz"))) -> 
B124: Conduct Criminal History Checks | C124: Review and Analyze Records | D124: Enter Conviction Info from External Sources | E124: Conduct Criminal History Checks-Review and Analyze Records-Enter Conviction Info from External Sources | F124: Allow user to enter conviction information from External Entities after reviewing the records manually | G124: Added Line Item and Definition | H124: =IF(LEN(D124)=0,"",COUNTIF(User_Stories!$I$1:$I$800,"=" & IF(LEN(E124) > 5,E124,"zzzz"))) -> 5
A125: Conduct Regulatory and Enforcement Activities | B125: License Businesses and Individuals | C125: Review and Process License Applications | F125: Review and process applications submitted by businesses and individuals – including, Motor Vehicle Dealers and Manufacturers, Motor Vehicle Sales Persons, Inspection Stations, Inspection Technicians, License Plate Agencies, Vehicle Towing and Storage Facilities, Vehicle Repair Businesses, Ignition Interlock Installers and Ignition Interlock Technicians. Application processing includes receipt of fees and may require an investigation and/or criminal history check. | H125: =IF(LEN(D125)=0,"",COUNTIF(User_Stories!$I$1:$I$800,"=" & IF(LEN(E125) > 5,E125,"zzzz"))) -> 
B126: License Businesses and Individuals | C126: Review and Process License Applications | D126: Accept Application Fees | E126: License Businesses and Individuals -Review and Process License Applications-Accept Application Fees | F126: Accept application fees based on a license that the individual is applying for. | H126: =IF(LEN(D126)=0,"",COUNTIF(User_Stories!$I$1:$I$800,"=" & IF(LEN(E126) > 5,E126,"zzzz"))) -> 3
B127: License Businesses and Individuals | C127: Review and Process License Applications | D127: Investigate Dealer | E127: License Businesses and Individuals-Review and Process License Applications-Investigate Dealer | F127: Investigating a salesman to determine whether they should be licensed as a dealer based on past history. | H127: =IF(LEN(D127)=0,"",COUNTIF(User_Stories!$I$1:$I$800,"=" & IF(LEN(E127) > 5,E127,"zzzz"))) -> 2
A128: Conduct Regulatory and Enforcement Activities | B128: Conduct Investigations | C128: Investigate Potential DL/ID Fraud | F128: Investigating any instance of fraudulently produced copy of a driver license or identity document used or recovered in North Carolina. | H128: =IF(LEN(D128)=0,"",COUNTIF(User_Stories!$I$1:$I$800,"=" & IF(LEN(E128) > 5,E128,"zzzz"))) -> 
B129: Conduct Investigations | C129: Investigate Potential DL/ID Fraud | D129: Record Investigation Results | E129: Conduct Investigations-Investigate Potential DL/ID Fraud-Record Investigation Results | F129: Document investigation results and communicate/make information available as is appropriate based on state law | H129: =IF(LEN(D129)=0,"",COUNTIF(User_Stories!$I$1:$I$800,"=" & IF(LEN(E129) > 5,E129,"zzzz"))) -> 5
C130: Investigate Potential Identity Theft | F130: Investigate any instance where an individual’s identity information, as maintained by the NC DMV, has been stolen or compromised. | H130: =IF(LEN(D130)=0,"",COUNTIF(User_Stories!$I$1:$I$800,"=" & IF(LEN(E130) > 5,E130,"zzzz"))) -> 
B131: Conduct Investigations | C131: Investigate Potential Identity Theft | D131: Investigate Identity Information stolen from NC-DMV | E131: Conduct Investigations-Investigate Potential Identity Theft-Investigate Identity Information stolen from NC-DMV | F131: Investigate any instance where an individual’s identity information, as maintained by the NC DMV, is suspected of being (or has been) stolen | H131: =IF(LEN(D131)=0,"",COUNTIF(User_Stories!$I$1:$I$800,"=" & IF(LEN(E131) > 5,E131,"zzzz"))) -> 4
A132: Perform Financial Administration | B132: Manage Payments, Credits, and Refunds | C132: Maintain Records | F132: Collecting and documenting all credits, refunds, reversals issued by the DMV. | H132: =IF(LEN(D132)=0,"",COUNTIF(User_Stories!$I$1:$I$800,"=" & IF(LEN(E132) > 5,E132,"zzzz"))) -> 
B133: Manage Payments, Credits, and Refunds | C133: Maintain Records | D133: Collect Transaction Receipt Type | E133: Manage Payments, Credits, and Refunds-Maintain Records-Collect Transaction Receipt Type | F133: Collect the payment method or transaction receipt type which the User will choose to pay with | G133: Added Line Item and Definition | H133: =IF(LEN(D133)=0,"",COUNTIF(User_Stories!$I$1:$I$800,"=" & IF(LEN(E133) > 5,E133,"zzzz"))) -> 8
B134: Manage Payments, Credits, and Refunds | C134: Maintain Records | D134: Collect Credits | E134: Manage Payments, Credits, and Refunds-Maintain Records-Collect Credits | F134: Collect and document all credits captured. | H134: =IF(LEN(D134)=0,"",COUNTIF(User_Stories!$I$1:$I$800,"=" & IF(LEN(E134) > 5,E134,"zzzz"))) -> 8
B135: Manage Payments, Credits, and Refunds | C135: Maintain Records | D135: Collect Debits | E135: Manage Payments, Credits, and Refunds -Maintain Records-Collect Debits | F135: Collect and document all debits captured. | H135: =IF(LEN(D135)=0,"",COUNTIF(User_Stories!$I$1:$I$800,"=" & IF(LEN(E135) > 5,E135,"zzzz"))) -> 10
B136: Manage Payments, Credits, and Refunds | C136: Maintain Records | D136: Issue Refunds | E136: =IF(LEN(D136)>0,TRIM(CONCATENATE(B136,"-",C136,"-",D136)),"") -> Manage Payments, Credits, and Refunds-Maintain Records-Issue Refunds | F136: Utilize the backout screen to Issue and document all refunds issued by the DMV. | G136: Changed Definition and Line Item | H136: =IF(LEN(D136)=0,"",COUNTIF(User_Stories!$I$1:$I$800,"=" & IF(LEN(E136) > 5,E136,"zzzz"))) -> 4
B137: Manage Payments, Credits, and Refunds | C137: Maintain Records | D137: Collect Reversals | E137: Manage Payments, Credits, and Refunds-Maintain Records-Collect Reversals | F137: Collect and document all reversals issued by the DMV. | H137: =IF(LEN(D137)=0,"",COUNTIF(User_Stories!$I$1:$I$800,"=" & IF(LEN(E137) > 5,E137,"zzzz"))) -> 3
C138: Provide Refunds | F138: Researching, validating, processing, and issuing a refund the DMV owes to a customer for transactions such as returned plates, property taxes paid on a vehicle, customer overpayments, etc. | H138: =IF(LEN(D138)=0,"",COUNTIF(User_Stories!$I$1:$I$800,"=" & IF(LEN(E138) > 5,E138,"zzzz"))) -> 
B139: Manage Payments, Credits, and Refunds | C139: Provide Refunds | D139: Initiate Refund | E139: Manage Payments, Credits, and Refunds-Provide Refunds-Initiate Refund | F139: Allow user to research information and Initiate request to separate group regarding a potential refund that is potentially owed by the DMV to a customer account. | H139: =IF(LEN(D139)=0,"",COUNTIF(User_Stories!$I$1:$I$800,"=" & IF(LEN(E139) > 5,E139,"zzzz"))) -> 7
B140: Manage Payments, Credits, and Refunds | C140: Provide Refunds | D140: Validate Refund | E140: Manage Payments, Credits, and Refunds-Provide Refunds-Validate Refund | F140: Allow system user to validate refund that is potentially owed by the DMV to an Account Holder. | H140: =IF(LEN(D140)=0,"",COUNTIF(User_Stories!$I$1:$I$800,"=" & IF(LEN(E140) > 5,E140,"zzzz"))) -> 8
B141: Manage Payments, Credits, and Refunds | C141: Provide Refunds | D141: Capture Reason | E141: Manage Payments, Credits, and Refunds-Provide Refunds-Capture Reason | F141: Enable user to capture refund reason for a refund that is researched and validated | H141: =IF(LEN(D141)=0,"",COUNTIF(User_Stories!$I$1:$I$800,"=" & IF(LEN(E141) > 5,E141,"zzzz"))) -> 8
B142: Manage Payments, Credits, and Refunds | C142: Provide Refunds | D142: Issue Refund | E142: Manage Payments, Credits, and Refunds-Provide Refunds-Issue Refund | F142: Enable user to issue refund when refund workflow has been completed and authorized. | H142: =IF(LEN(D142)=0,"",COUNTIF(User_Stories!$I$1:$I$800,"=" & IF(LEN(E142) > 5,E142,"zzzz"))) -> 1
C143: Conduct Reversals | F143: Researching, validating, processing, and issuing reversals for all customer fees collected or paid in error or for fees not required to be paid by the customer. | H143: =IF(LEN(D143)=0,"",COUNTIF(User_Stories!$I$1:$I$800,"=" & IF(LEN(E143) > 5,E143,"zzzz"))) -> 
B144: Manage Payments, Credits, and Refunds | C144: Conduct Reversals | D144: Research Reversal | E144: Manage Payments, Credits, and Refunds-Conduct Reversals-Research Reversal | F144: Allow user to research information regarding a potential reversal for a fee that was paid in error | H144: =IF(LEN(D144)=0,"",COUNTIF(User_Stories!$I$1:$I$800,"=" & IF(LEN(E144) > 5,E144,"zzzz"))) -> 7
B145: Manage Payments, Credits, and Refunds | C145: Conduct Reversals | D145: Validate Reversal | E145: Manage Payments, Credits, and Refunds-Conduct Reversals-Validate Reversal | F145: Allow system user to validate information regarding a potential reversal for a fee that was paid in error | H145: =IF(LEN(D145)=0,"",COUNTIF(User_Stories!$I$1:$I$800,"=" & IF(LEN(E145) > 5,E145,"zzzz"))) -> 7
B146: Manage Payments, Credits, and Refunds | C146: Conduct Reversals | D146: Process Reversal | E146: Manage Payments, Credits, and Refunds-Conduct Reversals-Process Reversal | F146: Allow system user to process a reversal when the potential reversal has been researched and validated to be a true and proper reversal. | H146: =IF(LEN(D146)=0,"",COUNTIF(User_Stories!$I$1:$I$800,"=" & IF(LEN(E146) > 5,E146,"zzzz"))) -> 9
A147: Perform Financial Administration | B147: Maintain Accounts Receivable | C147: Maintain AR Records | F147: Documenting revenues collected in SADLS (including fees, penalties, etc.) collected by the department, including invoice processing, aging, collections, revenue recovery, liens, processing refunds, cash posting, credit card payments, check deposits, and the transfer of funds and vouchers. | H147: =IF(LEN(D147)=0,"",COUNTIF(User_Stories!$I$1:$I$800,"=" & IF(LEN(E147) > 5,E147,"zzzz"))) -> 
B148: Maintain Accounts Receivable | C148: Maintain AR Records | D148: Document Debits | E148: Maintain Accounts Receivable -Maintain AR Records-Document Debits | F148: Document debit records processed by the department. | H148: =IF(LEN(D148)=0,"",COUNTIF(User_Stories!$I$1:$I$800,"=" & IF(LEN(E148) > 5,E148,"zzzz"))) -> 2
B149: Maintain Accounts Receivable | C149: Maintain AR Records | D149: Document Credits | E149: Maintain Accounts Receivable -Maintain AR Records-Document Credits | F149: Document credit records processed by the department | H149: =IF(LEN(D149)=0,"",COUNTIF(User_Stories!$I$1:$I$800,"=" & IF(LEN(E149) > 5,E149,"zzzz"))) -> 1
B150: Maintain Accounts Receivable | C150: Maintain AR Records | D150: Summarize Records | E150: Maintain Accounts Receivable -Maintain AR Records-Summarize Records | F150: Summarize all debit and credit records associated with a single account to calculate system balance. | H150: =IF(LEN(D150)=0,"",COUNTIF(User_Stories!$I$1:$I$800,"=" & IF(LEN(E150) > 5,E150,"zzzz"))) -> 3
C151: Reconcile AR | F151: Ensuring the detailed amounts of all unpaid customer DMV bills and fees match declared totals in the DMV general ledger or financial reports. | H151: =IF(LEN(D151)=0,"",COUNTIF(User_Stories!$I$1:$I$800,"=" & IF(LEN(E151) > 5,E151,"zzzz"))) -> 
B152: Maintain Accounts Receivable | C152: Reconcile AR | D152: Review Unpaid Fees | E152: Maintain Accounts Receivable -Reconcile AR -Review Unpaid Fees | F152: Review unpaid customer fee information stored in the system in summary and detail. | H152: =IF(LEN(D152)=0,"",COUNTIF(User_Stories!$I$1:$I$800,"=" & IF(LEN(E152) > 5,E152,"zzzz"))) -> 19
C153: Generate Accounts Receivable Reports | F153: Tracking and documenting all revenues collected by all departments within the DMV on a daily, weekly, or monthly basis to ensure financial accuracy. | H153: =IF(LEN(D153)=0,"",COUNTIF(User_Stories!$I$1:$I$800,"=" & IF(LEN(E153) > 5,E153,"zzzz"))) -> 
B154: Maintain Accounts Receivable | C154: Generate Accounts Receivable Reports | D154: Document Daily Accounts Receivable Summary | E154: Maintain Accounts Receivable-Generate Accounts Receivable Reports-Document Daily Accounts Receivable Summary | F154: Enable user to view Daily Accounts Receivable Summary | H154: =IF(LEN(D154)=0,"",COUNTIF(User_Stories!$I$1:$I$800,"=" & IF(LEN(E154) > 5,E154,"zzzz"))) -> 17
B155: Maintain Accounts Receivable | C155: Generate Accounts Receivable Reports | D155: Document Weekly Accounts Receivable Summary | E155: Maintain Accounts Receivable-Generate Accounts Receivable Reports-Document Weekly Accounts Receivable Summary | F155: Enable user to view Weekly Accounts Receivable Summary | H155: =IF(LEN(D155)=0,"",COUNTIF(User_Stories!$I$1:$I$800,"=" & IF(LEN(E155) > 5,E155,"zzzz"))) -> 1
B156: Maintain Accounts Receivable | C156: Generate Accounts Receivable Reports | D156: Document Monthly Accounts Receivable Summary | E156: Maintain Accounts Receivable-Generate Accounts Receivable Reports-Document Monthly Accounts Receivable Summary | F156: Enable user to view Monthly Accounts Receivable Summary | H156: =IF(LEN(D156)=0,"",COUNTIF(User_Stories!$I$1:$I$800,"=" & IF(LEN(E156) > 5,E156,"zzzz"))) -> 1
B157: Maintain Accounts Receivable | C157: Generate Accounts Receivable Reports | D157: Document Date Range AR Summary Report | E157: Maintain Accounts Receivable-Generate Accounts Receivable Reports-Document Date Range AR Summary Report | F157: Enable user to view Date Range Accounts Receivable Summary Report. | G157: Added Line Item and Definition | H157: =IF(LEN(D157)=0,"",COUNTIF(User_Stories!$I$1:$I$800,"=" & IF(LEN(E157) > 5,E157,"zzzz"))) -> 1
B158: Maintain Accounts Receivable | C158: Generate Accounts Receivable Reports | D158: Execute Report | E158: Maintain Accounts Receivable-Generate Accounts Receivable Reports-Execute Report | F158: Execute Accounts Receivable Reports | H158: =IF(LEN(D158)=0,"",COUNTIF(User_Stories!$I$1:$I$800,"=" & IF(LEN(E158) > 5,E158,"zzzz"))) -> 1
C159: Track Outstanding Receivables | F159: Tracking all outstanding balances and unpaid bills / invoices that are due to the DMV; tracking outstanding A/R amounts sent to collections agencies; performing write-off of uncollected DMV fees. | H159: =IF(LEN(D159)=0,"",COUNTIF(User_Stories!$I$1:$I$800,"=" & IF(LEN(E159) > 5,E159,"zzzz"))) -> 
B160: Maintain Accounts Receivable | C160: Track Outstanding Receivables | D160: Review Outstanding Balance | E160: Maintain Accounts Receivable-Track Outstanding Receivables-Review Outstanding Balance | F160: Summarize all debit and credit records associated with a single account to calculate system balance. | H160: =IF(LEN(D160)=0,"",COUNTIF(User_Stories!$I$1:$I$800,"=" & IF(LEN(E160) > 5,E160,"zzzz"))) -> 18
B161: Maintain Accounts Receivable | C161: Track Outstanding Receivables | D161: Track Revenues sent to Collection Agency | E161: Maintain Accounts Receivable-Track Outstanding Receivables-Track Revenues sent to Collection Agency | F161: Capture information sent to a collection agency for payment. | H161: =IF(LEN(D161)=0,"",COUNTIF(User_Stories!$I$1:$I$800,"=" & IF(LEN(E161) > 5,E161,"zzzz"))) -> 1
C162: Disable Accounts | F162: Blocking accounts for future services based on unpaid balances and closing accounts that are no longer needed. | H162: =IF(LEN(D162)=0,"",COUNTIF(User_Stories!$I$1:$I$800,"=" & IF(LEN(E162) > 5,E162,"zzzz"))) -> 
A163: Perform Financial Administration | B163: Manage Point of Sale | C163: Identify Deposit Groups | F163: Collecting and running all customer payments received via cash, check, or credit card and identifying deposit by a deposit group such as the CIQA unit or Military/Internet unit. | H163: =IF(LEN(D163)=0,"",COUNTIF(User_Stories!$I$1:$I$800,"=" & IF(LEN(E163) > 5,E163,"zzzz"))) -> 
B164: Manage Point of Sale | C164: Identify Deposit Groups | D164: Collect Deposits | E164: Manage Point of Sale-Identify Deposit Groups-Collect Deposits | F164: Collect customer payments at the station level and whether it is received via cash, check, or credit card. | G164: Modified Definition | H164: =IF(LEN(D164)=0,"",COUNTIF(User_Stories!$I$1:$I$800,"=" & IF(LEN(E164) > 5,E164,"zzzz"))) -> 9
B165: Manage Point of Sale | C165: Identify Deposit Groups | D165: Identify Deposit by Deposit Group | E165: Manage Point of Sale-Identify Deposit Groups-Identify Deposit by Deposit Group | F165: Identify deposit group information on a deposit and conduct end of day cash drawer reporting in SADLS | G165: Modified Definition | H165: =IF(LEN(D165)=0,"",COUNTIF(User_Stories!$I$1:$I$800,"=" & IF(LEN(E165) > 5,E165,"zzzz"))) -> 2
B166: Manage Point of Sale | C166: Identify Deposit Groups | D166: Execute Reports | E166: Manage Point of Sale-Identify Deposit Groups-Execute Reports | F166: Execute Deposit Reports for use in the Deposit. | H166: =IF(LEN(D166)=0,"",COUNTIF(User_Stories!$I$1:$I$800,"=" & IF(LEN(E166) > 5,E166,"zzzz"))) -> 10
C167: Document Daily Transactions | F167: Recording all daily accounting and financial transactions including sales transactions, revenue transactions, expenditures, etc., for financial reports and general ledger entries. | H167: =IF(LEN(D167)=0,"",COUNTIF(User_Stories!$I$1:$I$800,"=" & IF(LEN(E167) > 5,E167,"zzzz"))) -> 
B168: Manage Point of Sale | C168: Document Daily Transactions | D168: Record Revenue | E168: Manage Point of Sale-Document Daily Transactions-Record Revenue | F168: Record Daily Account Transactions for Revenue | H168: =IF(LEN(D168)=0,"",COUNTIF(User_Stories!$I$1:$I$800,"=" & IF(LEN(E168) > 5,E168,"zzzz"))) -> 9
A169: Perform Financial Administration | B169: Manage Fees | C169: Determine Fees | F169: Ascertaining the type of fees and costs to charge a customer for DMV processes and services. For example, services such as speeding ticket hearings, DWI hearings, insurance hearings, safety and inspection hearings all require different fees and costs. | H169: =IF(LEN(D169)=0,"",COUNTIF(User_Stories!$I$1:$I$800,"=" & IF(LEN(E169) > 5,E169,"zzzz"))) -> 
B170: Manage Fees | C170: Determine Fees | D170: Select Fee Type | E170: Manage Fees-Determine Fees-Select Fee Type | F170: Select Proper Fee Type that is applicable based on Customer Action (e.g., Application, Renewal) | H170: =IF(LEN(D170)=0,"",COUNTIF(User_Stories!$I$1:$I$800,"=" & IF(LEN(E170) > 5,E170,"zzzz"))) -> 1
B171: Manage Fees | C171: Determine Fees | D171: Calculate Fee | E171: Manage Fees-Determine Fees-Calculate Fee | F171: Execute Fee calculation correctly based on proper variables and formulas. | H171: =IF(LEN(D171)=0,"",COUNTIF(User_Stories!$I$1:$I$800,"=" & IF(LEN(E171) > 5,E171,"zzzz"))) -> 1
B172: Manage Fees | C172: Determine Fees | D172: Add Fee Manually | E172: Manage Fees-Determine Fees-Add Fee Manually | F172: Allow user to add fee and fee codes manually based on agency rule | G172: Added Line Item and Definition | H172: =IF(LEN(D172)=0,"",COUNTIF(User_Stories!$I$1:$I$800,"=" & IF(LEN(E172) > 5,E172,"zzzz"))) -> 1
C173: Document Fees | F173: Recording and categorization of all collected fees. | H173: =IF(LEN(D173)=0,"",COUNTIF(User_Stories!$I$1:$I$800,"=" & IF(LEN(E173) > 5,E173,"zzzz"))) -> 
B174: Manage Fees | C174: Document Fees | D174: Record Collected Fees | E174: Manage Fees-Document Fees-Record Collected Fees | F174: Record all collected fees by category | H174: =IF(LEN(D174)=0,"",COUNTIF(User_Stories!$I$1:$I$800,"=" & IF(LEN(E174) > 5,E174,"zzzz"))) -> 2
B175: Manage Fees | C175: Document Fees | D175: Index Collected Fees | E175: Manage Fees-Document Fees-Index Collected Fees | F175: Index all collected fees to proper account. | H175: =IF(LEN(D175)=0,"",COUNTIF(User_Stories!$I$1:$I$800,"=" & IF(LEN(E175) > 5,E175,"zzzz"))) -> 1
B176: Manage Fees | C176: Document Fees | D176: Print Receipt | E176: Manage Fees-Document Fees-Print Receipt | F176: Allow User to Print a Receipt Report that SADLS generates | G176: Modified Definition | H176: =IF(LEN(D176)=0,"",COUNTIF(User_Stories!$I$1:$I$800,"=" & IF(LEN(E176) > 5,E176,"zzzz"))) -> 1
C177: Process Written Requests | F177: Creating and finalizing written requests specifically to waive hearing fees for applicants who meet a certain household criteria. Drivers fill out the request forms along with an affidavit of indigence, which the DMV collects, validates, and scans. | H177: =IF(LEN(D177)=0,"",COUNTIF(User_Stories!$I$1:$I$800,"=" & IF(LEN(E177) > 5,E177,"zzzz"))) -> 
B178: Manage Fees | C178: Process Written Requests | D178: Record Written Request | E178: Manage Fees-Process Written Requests-Record Written Request | F178: Allow user to Record written request to waive hearing fees for applicants who meet certain household criteria. Written request is noted in SADLS and scanned into document retention solution. | H178: =IF(LEN(D178)=0,"",COUNTIF(User_Stories!$I$1:$I$800,"=" & IF(LEN(E178) > 5,E178,"zzzz"))) -> 1
C179: Map Fees to General Ledger | F179: Mapping collected fees to the general ledger to produce reports, reconciliations, ensure accuracy, etc. | H179: =IF(LEN(D179)=0,"",COUNTIF(User_Stories!$I$1:$I$800,"=" & IF(LEN(E179) > 5,E179,"zzzz"))) -> 
B180: Manage Fees | C180: Map Fees to General Ledger | D180: Evaluate Administrative Fee Setup | E180: Manage Fees-Map Fees to General Ledger-Evaluate Administrative Fee Setup | F180: Allow Administrator to view and map certain fees to appropriate General ledger number based on State Law/Administrative Code. | G180: Changed definition slightly since only certain fees have this setup. | H180: =IF(LEN(D180)=0,"",COUNTIF(User_Stories!$I$1:$I$800,"=" & IF(LEN(E180) > 5,E180,"zzzz"))) -> 1
B181: Manage Fees | C181: Map Fees to General Ledger | D181: Create Journal Records | E181: Manage Fees-Map Fees to General Ledger-Create Journal Records | F181: Associate General records created to appropriate general ledger number based on Administrative configuration | H181: =IF(LEN(D181)=0,"",COUNTIF(User_Stories!$I$1:$I$800,"=" & IF(LEN(E181) > 5,E181,"zzzz"))) -> 1
B182: Review unpaid fees | C182: Assess Driver Records | F182: Reviewing a driver’s record to determine the type of fees to collect or the type of services to perform based a driver’s offenses / convictions. Some of these offenses / convictions include DWI, speeding tickets, etc. | H182: =IF(LEN(D182)=0,"",COUNTIF(User_Stories!$I$1:$I$800,"=" & IF(LEN(E182) > 5,E182,"zzzz"))) -> 
B183: Manage Fees | C183: Assess Driver Records | D183: Apply Service Fee | E183: Manage Fees-Assess Driver Records-Apply Service Fee | F183: Check for and apply service fee if it is necessary based on the customer account record. | G183: Changed Definition | H183: =IF(LEN(D183)=0,"",COUNTIF(User_Stories!$I$1:$I$800,"=" & IF(LEN(E183) > 5,E183,"zzzz"))) -> 10
B184: Manage Fees | C184: Assess Driver Records | D184: Apply Restoration Fee | E184: Manage Fees-Assess Driver Records-Apply Restoration Fee | F184: Check for and apply restoration fee if is necessary based on the customer account record. | G184: Changed Definition | H184: =IF(LEN(D184)=0,"",COUNTIF(User_Stories!$I$1:$I$800,"=" & IF(LEN(E184) > 5,E184,"zzzz"))) -> 1
B185: Manage Fees | C185: Assess Driver Records | D185: Apply Other Fees | E185: Manage Fees-Assess Driver Records-Apply Other Fees | F185: Check for an apply Other Service Fees as necessary based on the customer account record or based on a manual entry. | G185: Added and Changed Definition | H185: =IF(LEN(D185)=0,"",COUNTIF(User_Stories!$I$1:$I$800,"=" & IF(LEN(E185) > 5,E185,"zzzz"))) -> 1
A186: Manage Adjudications and Conduct Hearings | B186: Facilitate Adjudications | C186: Receive Court Judgements, Orders and Convictions | F186: Receiving and gathering of all documentation that provide judge-issued sanctions and recommendations for offenses relating to dealer license violations, inspection station violations, driver’s license violations, ignition interlock program, etc. | G186: Dealer Violation and Inspection Violations is not done in SADLS. Out of State they do receive a Document. In-State is electronic. Big Feed from AOC. Have to be able to key. Non-CDL is paper. | H186: =IF(LEN(D186)=0,"",COUNTIF(User_Stories!$I$1:$I$800,"=" & IF(LEN(E186) > 5,E186,"zzzz"))) -> 
B187: Facilitate Adjudications | C187: Receive Court Judgements, Orders and Convictions | D187: Receive Documentation or Court Order | E187: Facilitate Adjudications-Receive Court Judgements, Orders and Convictions-Receive Documentation or Court Order | F187: Receive Court Judgement, Order, or Conviction document Electronically from AOC related to a proceeding, violation, ignition interlock program or other violation | G187: Changed Definition and added the Electronic item to the Level 3 | H187: =IF(LEN(D187)=0,"",COUNTIF(User_Stories!$I$1:$I$800,"=" & IF(LEN(E187) > 5,E187,"zzzz"))) -> 1
B188: Facilitate Adjudications | C188: Receive Court Judgements, Orders and Convictions | D188: Record Documentation or Court Order | E188: =IF(LEN(D188)>0,TRIM(CONCATENATE(B188,"-",C188,"-",D188)),"") -> Facilitate Adjudications-Receive Court Judgements, Orders and Convictions-Record Documentation or Court Order | F188: Allow user to record Court Judgement, Order, or Conviction document that was received from AOC related to a proceeding, violation, ignition interlock program or other violation | G188: Added Item and Changed Definition | H188: =IF(LEN(D188)=0,"",COUNTIF(User_Stories!$I$1:$I$800,"=" & IF(LEN(E188) > 5,E188,"zzzz"))) -> 6
C189: Assess Court Judgements, Orders and Convictions | F189: Reviewing received documentation that contains judge-issued sanctions and recommendations for customer violations and offenses, in order to determine the need for a hearing and other administrative procedures or the lack thereof. | H189: =IF(LEN(D189)=0,"",COUNTIF(User_Stories!$I$1:$I$800,"=" & IF(LEN(E189) > 5,E189,"zzzz"))) -> 
B190: Facilitate Adjudications | C190: Assess Court Judgements, Orders and Convictions | D190: Review Received Documentation | E190: Facilitate Adjudications-Assess Court Judgements, Orders and Convictions-Review Received Documentation | F190: Programmatically review received documentation to determine need for hearing or administrative procedure | G190: Changed Definition | H190: =IF(LEN(D190)=0,"",COUNTIF(User_Stories!$I$1:$I$800,"=" & IF(LEN(E190) > 5,E190,"zzzz"))) -> 3
B191: Facilitate Adjudications | C191: Assess Court Judgements, Orders and Convictions | D191: Determine need for Hearing | E191: Facilitate Adjudications-Assess Court Judgements, Orders and Convictions-Determine need for Hearing | F191: Based on document review programmatically determine the need for a hearing procedure | G191: Changed Definition | H191: =IF(LEN(D191)=0,"",COUNTIF(User_Stories!$I$1:$I$800,"=" & IF(LEN(E191) > 5,E191,"zzzz"))) -> 1
B192: Facilitate Adjudications | C192: Assess Court Judgements, Orders and Convictions | D192: Communicate Action to Customer | E192: Facilitate Adjudications-Assess Court Judgements, Orders and Convictions-Communicate Action to Customer | F192: Communicate with the customer when there is an action performed. | G192: Changed Definition | H192: =IF(LEN(D192)=0,"",COUNTIF(User_Stories!$I$1:$I$800,"=" & IF(LEN(E192) > 5,E192,"zzzz"))) -> 1
C193: Process Suspensions and Limitations | F193: Placing suspensions and limitations on customer and licenses as a result of violations and offenses. Some of these suspensions and limitations include revoking driving privileges, suspending licenses, etc. | G193: Changed Definition | H193: =IF(LEN(D193)=0,"",COUNTIF(User_Stories!$I$1:$I$800,"=" & IF(LEN(E193) > 5,E193,"zzzz"))) -> 
B194: Facilitate Adjudications | C194: Process Suspensions and Limitations | D194: Place Suspension on Customer Licenses | E194: Facilitate Adjudications-Process Suspensions and Limitations-Place Suspension on Customer Licenses | F194: Place a suspension on a customer license programmatically based on court or administrative judgement received | G194: Changed Definition | H194: =IF(LEN(D194)=0,"",COUNTIF(User_Stories!$I$1:$I$800,"=" & IF(LEN(E194) > 5,E194,"zzzz"))) -> 6
B195: Facilitate Adjudications | C195: Process Suspensions and Limitations | D195: Communicate Suspension | E195: Facilitate Adjudications-Process Suspensions and Limitations-Communicate Suspension | F195: Communicate suspension order programmatically as necessary to those involved with the proceeding | G195: Changed Definition | H195: =IF(LEN(D195)=0,"",COUNTIF(User_Stories!$I$1:$I$800,"=" & IF(LEN(E195) > 5,E195,"zzzz"))) -> 7
B196: Facilitate Adjudications | C196: Process Suspensions and Limitations | D196: Remove and/or Comply with Suspension | E196: Facilitate Adjudications-Process Suspensions and Limitations-Remove and/or Comply with Suspension | F196: Allow user to remove suspension previously enacted based on court result, administrative action, or mistake found | H196: =IF(LEN(D196)=0,"",COUNTIF(User_Stories!$I$1:$I$800,"=" & IF(LEN(E196) > 5,E196,"zzzz"))) -> 2
B197: Facilitate Adjudications | C197: Process Suspensions and Limitations | D197: View Suspension | E197: Facilitate Adjudications-Process Suspensions and Limitations-View Suspension | F197: Allow user to view suspension previously enacted | H197: =IF(LEN(D197)=0,"",COUNTIF(User_Stories!$I$1:$I$800,"=" & IF(LEN(E197) > 5,E197,"zzzz"))) -> 2
C198: Add Conviction to Driver Records | F198: Adding convictions or offenses to a driver’s records prior to initiating suspensions and limitations or updating a driver’s record during the course of a driver undergoing the period of suspension of limitations, if the driver commits other offenses or violations. | H198: =IF(LEN(D198)=0,"",COUNTIF(User_Stories!$I$1:$I$800,"=" & IF(LEN(E198) > 5,E198,"zzzz"))) -> 
B199: Facilitate Adjudications | C199: Add Conviction to Driver Records | D199: Initiate Suspension or Limitation | E199: Facilitate Adjudications-Add Conviction to Driver Records-Initiate Suspension or Limitation | F199: Add conviction programmatically/manually to the driver record which will initiate a suspension or limitation on the credential. | G199: Changed Definition | H199: =IF(LEN(D199)=0,"",COUNTIF(User_Stories!$I$1:$I$800,"=" & IF(LEN(E199) > 5,E199,"zzzz"))) -> 1
B200: Facilitate Adjudications | C200: Add Conviction to Driver Records | D200: Update Record | E200: Facilitate Adjudications-Add Conviction to Driver Records-Update Record | F200: Update record during driver suspension if another driving offense is committed during driver suspension. Allow user to record update manually if necessary | G200: Changed Definition | H200: =IF(LEN(D200)=0,"",COUNTIF(User_Stories!$I$1:$I$800,"=" & IF(LEN(E200) > 5,E200,"zzzz"))) -> 12
... 90 more rows

Sheet SADLS Users (hidden)
A1: Adjudication Officer
A2: Administrative Support Unit
A3: Call Center
A4: CDL Med CERT
A5: CDL Unit
A6: Central Issuance Quality Assurance
A7: Central Issuance Verification
A8: Crash Unit
A9: Data Capture Unit
A10: DMV - Raleigh
A11: DMV Medical Unit
A12: Driver Education Program Specialist
A13: Examiner - Any
A14: Fiscal
A15: Fraud Unit
A16: Hearing Officer
A17: Help Desk
A18: Ignition Interlock Unit
A19: License and Theft Bureau Inspector
A20: Military Internet Unit
A21: S2S Unit
A22: Safety & Responsibility Unit
A23: School Bus and Traffic Safety
A24: Special Issuance Unit
A25: SR Hearing Officer
A26: System
A27: System Administrator
A28: Traffic Records
A29: Transit

Sheet DMV Staff Pos Codes (hidden)
A1: Staff Position Code | B1: Position Description
A3: AD | B3: ADMINISTRATION
A4: AH | B4: ACCIDENT HEARING OFFICER
A5: AO | B5: AOC CHILD SUPPORT
A6: AS | B6: ASST. DISTRICT SUPERVISOR
A7: AU | B7: AUDITOR (collect DMV money every day)
A8: CA | B8: CENTRAL ISSUANCE ADMINISTRATOR (higher access than CI)
A9: CD | B9: CONTRACT DOCTORS
A10: CH | B10: CHIEF HEARING OFFICER
A11: CI | B11: CENTRAL ISSUANCE
A12: CM | B12: CUSTOMER MERGE PERSONNEL (GENERAL STAFF)
A13: CR | B13: APPROVER OF CONDITIONAL RESTORATIONS
A14: CS | B14: CUSTOMER SERVICE
A15: DC | B15: CDL MEDICAL CERTIFICATION CLERK
A16: DE | B16: DATA ENTRY
A17: DI | B17: DEPT. OF REVENUE
A18: DM | B18: CDL MEDICAL CERTIFICATION MANAGER
A19: DO | B19: DROP OUT PREVENTION
A20: DQ | B20: GENERIC PASSTHRU FOR D116, NOT SET UP ON STAFF TABLE
A21: DS | B21: DISTRICT SUPERVISOR
A22: EL | B22: EDUCATION LOTTERY
A23: ER | B23: EXEMPTION REVIEW OFFICER
A24: ES | B24: ESCORT OPERATOR
A25: EX | B25: EXAMINER
A26: FA | B26: FISCAL DEPARTMENT ACCOUNTANT
A27: FC | B27: HELP DESK/FEE COLLECTOR
A28: FM | B28: FISCAL DEPARTMENT MANAGER
A29: FP | B29: FIELD SUPPORT
A30: FR | B30: DSS FRAUD UNIT
A31: FS | B31: FISCAL DEPARTMENT SUPERVISOR
A32: HD | B32: HELP DESK
A33: HO | B33: HEARING OFFICER
A34: HR | B34: DHR CHILD SUPPORT
A35: ID | B35: INDIGENT DEFENSE SERVICES (AOC)
A36: IS | B36: INFORMATION SYSTEMS PERSONNEL
A37: IU | B37: INTERNET PROCESSING UNIT(DL)
A38: LE | B38: LAW ENFORCEMENT
A39: LT | B39: LICENSE AND THEFT STAFF
A40: MA | B40: MEDICAL ADVISORY
A41: MC | B41: MVR CUSTOMER SERVICE
A42: MD | B42: MEDICAL DOCTOR
A43: MF | B43: MICROFILM
A44: MH | B44: MEDICAL HEARING OFFICER
A45: MM | B45: MEDICAL MANAGER
A46: MR | B46: MEDICAL RECEIVING
A47: PA | B47: PUBLIC AFFAIARS
A48: PH | B48: PHONE ROOM
A49: PR | B49: PROBLEM RESOLUTION
A50: PS | B50: PROCESS SERVER
A51: QG | B51: QUERY HELP DESK
A52: QH | B52: QUERY HELP DESK
A53: RU | B53: RECORDS UNIT
A54: SA | B54: SCHOOL BUS & TRAFFIC SAFETY ADMINISTRATION
A55: SB | B55: SCHOOL BUS AND TRAFFIC SAFETY EDUCATION
A56: SE | B56: STATE BOARD OF ELECTIONS
A57: SI | B57: NORTH CAROLINA STATE BUREAU OF INVESTIGATION
A58: SM | B58: CUSTOMER MERGE PERSONNEL (SUPERVISORY STAFF)
A59: SS | B59: SPECIAL SERVICES
A60: SX | B60: SENIOR EXAMINER
A61: TD | B61: TRANSIT DRIVER
A62: TM | B62: TEMPORARY LICENSE
A63: TP | B63: THIRD PARTY
A64: UL | B64: SPECIAL LICENSE
A65: VR | B65: VOTER BACK OFFICE
A66: VU | B66: VOICE RESPONSE
A67: XD | B67: TRANSPORTATION DIRECTOR
A68: XX | B68: NO CURRENT AUTHORITY
